Body,Body Name,Date,TransNo,Amount � (Excl VAT),Supplier name,Supplier ID,Expense Area,Expense Type,Expense Code
http://statistics.data.gov.uk/id/local-authority/00BF,London Borough of Sutton,12/07/2016,5014758,"-2,400.00",3Fox International,20767,"Environment, Housing & Regeneration Directorate",Fees - Consultants (Ad Hoc),F283
http://statistics.data.gov.uk/id/local-authority/00BF,London Borough of Sutton,31/08/2016,6893770,884.00,777 Demolition & Haulage Co Ltd,25578,"Environment, Housing & Regeneration Directorate",Materials - General,F100
http://statistics.data.gov.uk/id/local-authority/00BF,London Borough of Sutton,04/10/2016,6893336,600.00,A Froley & B Ghoorbin,25732,Peoples Services Directorate,Provider Contract Payments,F470
http://statistics.data.gov.uk/id/local-authority/00BF,London Borough of Sutton,02/08/2016,6893164,700.00,A Roberts,25847,Peoples Services Directorate,Other Services,F340
http://statistics.data.gov.uk/id/local-authority/00BF,London Borough of Sutton,30/09/2016,1225253,"1,444.00",A Star Transport Ltd,24386,Peoples Services Directorate,Hired Peoples Transport (Children),E072
http://statistics.data.gov.uk/id/local-authority/00BF,London Borough of Sutton,15/09/2020,5014705,-550.00,A T Sound Hire,10306,Resources Directorate,Special,D535
http://statistics.data.gov.uk/id/local-authority/00BF,London Borough of Sutton,15/09/2020,5014705,-655.00,A T Sound Hire,10306,Resources Directorate,Special,D535
http://statistics.data.gov.uk/id/local-authority/00BF,London Borough of Sutton,15/09/2016,6893115,"1,205.00",A T Sound Hire,10306,Resources Directorate,Special,D535
http://statistics.data.gov.uk/id/local-authority/00BF,London Borough of Sutton,19/10/2016,6894265,"1,310.00",A T Sound Hire,10306,"Environment, Housing & Regeneration Directorate",Other Equipment-Hire,F070
http://statistics.data.gov.uk/id/local-authority/00BF,London Borough of Sutton,17/10/2016,1225591,"3,414.60",ABC Pre-School Beddington LLP,28675,Peoples Services Directorate,Non-Maintained Childrens' Nurseries - 2 Year Olds,G404
http://statistics.data.gov.uk/id/local-authority/00BF,London Borough of Sutton,17/10/2016,1225656,"3,791.76",ABC Pre-School Beddington LLP,28675,Peoples Services Directorate,Non-Maintained Childrens' Nurseries - 3 Year Olds,G405
http://statistics.data.gov.uk/id/local-authority/00BF,London Borough of Sutton,22/02/2016,6893157,"10,911.70",Ability Housing Association,23287,Peoples Services Directorate,Rent - General,D650
http://statistics.data.gov.uk/id/local-authority/00BF,London Borough of Sutton,22/02/2016,6893158,"9,044.80",Ability Housing Association,23287,Peoples Services Directorate,Rent - General,D650
http://statistics.data.gov.uk/id/local-authority/00BF,London Borough of Sutton,24/10/2016,6894635,"32,789.34",Abritas Ltd,15186,"Environment, Housing & Regeneration Directorate",IT Equipment - Repair and Maintenance,F382
http://statistics.data.gov.uk/id/local-authority/00BF,London Borough of Sutton,18/09/2016,4993031,556.12,Absolute Care Services Ltd,10021,Peoples Services Directorate,Home Care,G334
http://statistics.data.gov.uk/id/local-authority/00BF,London Borough of Sutton,18/09/2016,4993032,817.91,Absolute Care Services Ltd,10021,Peoples Services Directorate,Home Care,G334
http://statistics.data.gov.uk/id/local-authority/00BF,London Borough of Sutton,18/09/2016,4993038,518.08,Absolute Care Services Ltd,10021,Peoples Services Directorate,Home Care,G334
http://statistics.data.gov.uk/id/local-authority/00BF,London Borough of Sutton,18/09/2016,4993054,455.74,Absolute Care Services Ltd,10021,Peoples Services Directorate,Home Care,G334
http://statistics.data.gov.uk/id/local-authority/00BF,London Borough of Sutton,18/09/2016,4993061,437.97,Absolute Care Services Ltd,10021,Peoples Services Directorate,Home Care,G334
http://statistics.data.gov.uk/id/local-authority/00BF,London Borough of Sutton,18/09/2016,4993123,546.00,Absolute Care Services Ltd,10021,Peoples Services Directorate,Home Care,G334
http://statistics.data.gov.uk/id/local-authority/00BF,London Borough of Sutton,18/09/2016,4993128,455.00,Absolute Care Services Ltd,10021,Peoples Services Directorate,Home Care,G334
http://statistics.data.gov.uk/id/local-authority/00BF,London Borough of Sutton,18/09/2016,4993170,"2,415.00",Absolute Care Services Ltd,10021,Peoples Services Directorate,Home Care,G334
http://statistics.data.gov.uk/id/local-authority/00BF,London Borough of Sutton,25/09/2016,4993300,556.12,Absolute Care Services Ltd,10021,Peoples Services Directorate,Home Care,G334
http://statistics.data.gov.uk/id/local-authority/00BF,London Borough of Sutton,25/09/2016,4993315,817.91,Absolute Care Services Ltd,10021,Peoples Services Directorate,Home Care,G334
http://statistics.data.gov.uk/id/local-authority/00BF,London Borough of Sutton,25/09/2016,4993324,518.08,Absolute Care Services Ltd,10021,Peoples Services Directorate,Home Care,G334
http://statistics.data.gov.uk/id/local-authority/00BF,London Borough of Sutton,25/09/2016,4993406,455.74,Absolute Care Services Ltd,10021,Peoples Services Directorate,Home Care,G334
http://statistics.data.gov.uk/id/local-authority/00BF,London Borough of Sutton,25/09/2016,4993511,437.97,Absolute Care Services Ltd,10021,Peoples Services Directorate,Home Care,G334
http://statistics.data.gov.uk/id/local-authority/00BF,London Borough of Sutton,29/07/2016,4994797,451.95,Absolute Care Services Ltd,10021,Peoples Services Directorate,Home Care,G334
http://statistics.data.gov.uk/id/local-authority/00BF,London Borough of Sutton,04/08/2016,4994804,451.95,Absolute Care Services Ltd,10021,Peoples Services Directorate,Home Care,G334
http://statistics.data.gov.uk/id/local-authority/00BF,London Borough of Sutton,04/08/2016,4994815,451.75,Absolute Care Services Ltd,10021,Peoples Services Directorate,Home Care,G334
http://statistics.data.gov.uk/id/local-authority/00BF,London Borough of Sutton,28/08/2016,4994818,"2,415.00",Absolute Care Services Ltd,10021,Peoples Services Directorate,Home Care,G334
http://statistics.data.gov.uk/id/local-authority/00BF,London Borough of Sutton,28/08/2016,4994855,455.74,Absolute Care Services Ltd,10021,Peoples Services Directorate,Home Care,G334
http://statistics.data.gov.uk/id/local-authority/00BF,London Borough of Sutton,28/08/2016,4994884,437.97,Absolute Care Services Ltd,10021,Peoples Services Directorate,Home Care,G334
http://statistics.data.gov.uk/id/local-authority/00BF,London Borough of Sutton,28/08/2016,4994906,416.00,Absolute Care Services Ltd,10021,Peoples Services Directorate,Home Care,G334
http://statistics.data.gov.uk/id/local-authority/00BF,London Borough of Sutton,28/08/2016,4994911,455.00,Absolute Care Services Ltd,10021,Peoples Services Directorate,Home Care,G334
http://statistics.data.gov.uk/id/local-authority/00BF,London Borough of Sutton,25/09/2016,4996277,"2,415.00",Absolute Care Services Ltd,10021,Peoples Services Directorate,Home Care,G334
http://statistics.data.gov.uk/id/local-authority/00BF,London Borough of Sutton,02/10/2016,4996278,"2,415.00",Absolute Care Services Ltd,10021,Peoples Services Directorate,Home Care,G334
http://statistics.data.gov.uk/id/local-authority/00BF,London Borough of Sutton,02/10/2016,4996322,455.74,Absolute Care Services Ltd,10021,Peoples Services Directorate,Home Care,G334
http://statistics.data.gov.uk/id/local-authority/00BF,London Borough of Sutton,02/10/2016,4996368,437.97,Absolute Care Services Ltd,10021,Peoples Services Directorate,Home Care,G334
http://statistics.data.gov.uk/id/local-authority/00BF,London Borough of Sutton,25/09/2016,4996522,546.00,Absolute Care Services Ltd,10021,Peoples Services Directorate,Home Care,G334
http://statistics.data.gov.uk/id/local-authority/00BF,London Borough of Sutton,02/10/2016,4996523,546.00,Absolute Care Services Ltd,10021,Peoples Services Directorate,Home Care,G334
http://statistics.data.gov.uk/id/local-authority/00BF,London Borough of Sutton,25/09/2016,4996532,455.00,Absolute Care Services Ltd,10021,Peoples Services Directorate,Home Care,G334
http://statistics.data.gov.uk/id/local-authority/00BF,London Borough of Sutton,02/10/2016,4996533,455.00,Absolute Care Services Ltd,10021,Peoples Services Directorate,Home Care,G334
http://statistics.data.gov.uk/id/local-authority/00BF,London Borough of Sutton,28/08/2016,4996577,556.12,Absolute Care Services Ltd,10021,Peoples Services Directorate,Home Care,G334
http://statistics.data.gov.uk/id/local-authority/00BF,London Borough of Sutton,02/10/2016,4996578,556.12,Absolute Care Services Ltd,10021,Peoples Services Directorate,Home Care,G334
http://statistics.data.gov.uk/id/local-authority/00BF,London Borough of Sutton,28/08/2016,4996581,817.91,Absolute Care Services Ltd,10021,Peoples Services Directorate,Home Care,G334
http://statistics.data.gov.uk/id/local-authority/00BF,London Borough of Sutton,02/10/2016,4996582,504.70,Absolute Care Services Ltd,10021,Peoples Services Directorate,Home Care,G334
http://statistics.data.gov.uk/id/local-authority/00BF,London Borough of Sutton,28/08/2016,4996595,518.08,Absolute Care Services Ltd,10021,Peoples Services Directorate,Home Care,G334
http://statistics.data.gov.uk/id/local-authority/00BF,London Borough of Sutton,02/10/2016,4996596,518.08,Absolute Care Services Ltd,10021,Peoples Services Directorate,Home Care,G334
http://statistics.data.gov.uk/id/local-authority/00BF,London Borough of Sutton,09/10/2016,4996925,455.00,Absolute Care Services Ltd,10021,Peoples Services Directorate,Home Care,G334
http://statistics.data.gov.uk/id/local-authority/00BF,London Borough of Sutton,09/10/2016,4996946,556.12,Absolute Care Services Ltd,10021,Peoples Services Directorate,Home Care,G334
http://statistics.data.gov.uk/id/local-authority/00BF,London Borough of Sutton,09/10/2016,4996992,437.97,Absolute Care Services Ltd,10021,Peoples Services Directorate,Home Care,G334
http://statistics.data.gov.uk/id/local-authority/00BF,London Borough of Sutton,09/10/2016,4997028,423.05,Absolute Care Services Ltd,10021,Peoples Services Directorate,Home Care,G334
http://statistics.data.gov.uk/id/local-authority/00BF,London Borough of Sutton,09/10/2016,4997032,564.06,Absolute Care Services Ltd,10021,Peoples Services Directorate,Home Care,G334
http://statistics.data.gov.uk/id/local-authority/00BF,London Borough of Sutton,09/10/2016,4997033,564.06,Absolute Care Services Ltd,10021,Peoples Services Directorate,Home Care,G334
http://statistics.data.gov.uk/id/local-authority/00BF,London Borough of Sutton,09/10/2016,4997038,738.14,Absolute Care Services Ltd,10021,Peoples Services Directorate,Home Care,G334
http://statistics.data.gov.uk/id/local-authority/00BF,London Borough of Sutton,09/10/2016,4997048,518.08,Absolute Care Services Ltd,10021,Peoples Services Directorate,Home Care,G334
http://statistics.data.gov.uk/id/local-authority/00BF,London Borough of Sutton,09/10/2016,4997083,517.06,Absolute Care Services Ltd,10021,Peoples Services Directorate,Home Care,G334
http://statistics.data.gov.uk/id/local-authority/00BF,London Borough of Sutton,09/10/2016,4997094,503.63,Absolute Care Services Ltd,10021,Peoples Services Directorate,Home Care,G334
http://statistics.data.gov.uk/id/local-authority/00BF,London Borough of Sutton,09/10/2016,4997095,725.22,Absolute Care Services Ltd,10021,Peoples Services Directorate,Home Care,G334
http://statistics.data.gov.uk/id/local-authority/00BF,London Borough of Sutton,09/10/2016,4997102,"2,415.00",Absolute Care Services Ltd,10021,Peoples Services Directorate,Home Care,G334
http://statistics.data.gov.uk/id/local-authority/00BF,London Borough of Sutton,09/10/2016,4997133,529.11,Absolute Care Services Ltd,10021,Peoples Services Directorate,Home Care,G334
http://statistics.data.gov.uk/id/local-authority/00BF,London Borough of Sutton,09/10/2016,4997202,546.00,Absolute Care Services Ltd,10021,Peoples Services Directorate,Home Care,G334
http://statistics.data.gov.uk/id/local-authority/00BF,London Borough of Sutton,09/10/2016,4997219,455.74,Absolute Care Services Ltd,10021,Peoples Services Directorate,Home Care,G334
http://statistics.data.gov.uk/id/local-authority/00BF,London Borough of Sutton,26/09/2016,6892689,772.10,Absolute Care Services Ltd,10021,Peoples Services Directorate,Homecare Core Services,G336
http://statistics.data.gov.uk/id/local-authority/00BF,London Borough of Sutton,03/10/2016,6892865,877.80,Absolute Care Services Ltd,10021,Peoples Services Directorate,Homecare Core Services,G336
http://statistics.data.gov.uk/id/local-authority/00BF,London Borough of Sutton,03/10/2016,6892866,"6,902.75",Absolute Care Services Ltd,10021,Peoples Services Directorate,Homecare Core Services,G336
http://statistics.data.gov.uk/id/local-authority/00BF,London Borough of Sutton,03/10/2016,6892867,"4,620.00",Absolute Care Services Ltd,10021,Peoples Services Directorate,Homecare Core Services,G336
http://statistics.data.gov.uk/id/local-authority/00BF,London Borough of Sutton,03/10/2016,6892868,"4,828.75",Absolute Care Services Ltd,10021,Peoples Services Directorate,Homecare Core Services,G336
http://statistics.data.gov.uk/id/local-authority/00BF,London Borough of Sutton,03/10/2016,6893204,772.10,Absolute Care Services Ltd,10021,Peoples Services Directorate,Homecare Core Services,G336
http://statistics.data.gov.uk/id/local-authority/00BF,London Borough of Sutton,10/10/2016,6893558,"4,620.00",Absolute Care Services Ltd,10021,Peoples Services Directorate,Homecare Core Services,G336
http://statistics.data.gov.uk/id/local-authority/00BF,London Borough of Sutton,10/10/2016,6893559,772.10,Absolute Care Services Ltd,10021,Peoples Services Directorate,Homecare Core Services,G336
http://statistics.data.gov.uk/id/local-authority/00BF,London Borough of Sutton,10/10/2016,6893560,"4,828.75",Absolute Care Services Ltd,10021,Peoples Services Directorate,Homecare Core Services,G336
http://statistics.data.gov.uk/id/local-authority/00BF,London Borough of Sutton,10/10/2016,6893561,"6,902.75",Absolute Care Services Ltd,10021,Peoples Services Directorate,Homecare Core Services,G336
http://statistics.data.gov.uk/id/local-authority/00BF,London Borough of Sutton,10/10/2016,6893562,877.80,Absolute Care Services Ltd,10021,Peoples Services Directorate,Homecare Core Services,G336
http://statistics.data.gov.uk/id/local-authority/00BF,London Borough of Sutton,17/10/2016,6894023,"4,828.75",Absolute Care Services Ltd,10021,Peoples Services Directorate,Homecare Core Services,G336
http://statistics.data.gov.uk/id/local-authority/00BF,London Borough of Sutton,17/10/2016,6894024,"4,620.00",Absolute Care Services Ltd,10021,Peoples Services Directorate,Homecare Core Services,G336
http://statistics.data.gov.uk/id/local-authority/00BF,London Borough of Sutton,17/10/2016,6894025,877.80,Absolute Care Services Ltd,10021,Peoples Services Directorate,Homecare Core Services,G336
http://statistics.data.gov.uk/id/local-authority/00BF,London Borough of Sutton,17/10/2016,6894026,"6,902.75",Absolute Care Services Ltd,10021,Peoples Services Directorate,Homecare Core Services,G336
http://statistics.data.gov.uk/id/local-authority/00BF,London Borough of Sutton,17/10/2016,6894405,772.10,Absolute Care Services Ltd,10021,Peoples Services Directorate,Homecare Core Services,G336
http://statistics.data.gov.uk/id/local-authority/00BF,London Borough of Sutton,24/10/2016,6894813,"4,620.00",Absolute Care Services Ltd,10021,Peoples Services Directorate,Homecare Core Services,G336
http://statistics.data.gov.uk/id/local-authority/00BF,London Borough of Sutton,24/10/2016,6894815,877.80,Absolute Care Services Ltd,10021,Peoples Services Directorate,Homecare Core Services,G336
http://statistics.data.gov.uk/id/local-authority/00BF,London Borough of Sutton,24/10/2016,6894816,"6,902.75",Absolute Care Services Ltd,10021,Peoples Services Directorate,Homecare Core Services,G336
http://statistics.data.gov.uk/id/local-authority/00BF,London Borough of Sutton,24/10/2016,6894817,"4,828.75",Absolute Care Services Ltd,10021,Peoples Services Directorate,Homecare Core Services,G336
http://statistics.data.gov.uk/id/local-authority/00BF,London Borough of Sutton,18/09/2016,40005334,521.65,Absolute Care Services Ltd,10021,Peoples Services Directorate,Home Care,G334
http://statistics.data.gov.uk/id/local-authority/00BF,London Borough of Sutton,18/09/2016,40005335,483.48,Absolute Care Services Ltd,10021,Peoples Services Directorate,Home Care,G334
http://statistics.data.gov.uk/id/local-authority/00BF,London Borough of Sutton,18/09/2016,40005359,443.19,Absolute Care Services Ltd,10021,Peoples Services Directorate,Home Care,G334
http://statistics.data.gov.uk/id/local-authority/00BF,London Borough of Sutton,18/09/2016,40005369,429.76,Absolute Care Services Ltd,10021,Peoples Services Directorate,Home Care,G334
http://statistics.data.gov.uk/id/local-authority/00BF,London Borough of Sutton,18/09/2016,40005370,520.41,Absolute Care Services Ltd,10021,Peoples Services Directorate,Home Care,G334
http://statistics.data.gov.uk/id/local-authority/00BF,London Borough of Sutton,18/09/2016,40005382,463.33,Absolute Care Services Ltd,10021,Peoples Services Directorate,Home Care,G334
http://statistics.data.gov.uk/id/local-authority/00BF,London Borough of Sutton,16/10/2016,40005414,455.00,Absolute Care Services Ltd,10021,Peoples Services Directorate,Home Care,G334
http://statistics.data.gov.uk/id/local-authority/00BF,London Borough of Sutton,16/10/2016,40005450,556.12,Absolute Care Services Ltd,10021,Peoples Services Directorate,Home Care,G334
http://statistics.data.gov.uk/id/local-authority/00BF,London Borough of Sutton,16/10/2016,40005461,817.91,Absolute Care Services Ltd,10021,Peoples Services Directorate,Home Care,G334
http://statistics.data.gov.uk/id/local-authority/00BF,London Borough of Sutton,16/10/2016,40005469,518.08,Absolute Care Services Ltd,10021,Peoples Services Directorate,Home Care,G334
http://statistics.data.gov.uk/id/local-authority/00BF,London Borough of Sutton,16/10/2016,40005499,"2,415.00",Absolute Care Services Ltd,10021,Peoples Services Directorate,Home Care,G334
http://statistics.data.gov.uk/id/local-authority/00BF,London Borough of Sutton,16/10/2016,40005534,455.74,Absolute Care Services Ltd,10021,Peoples Services Directorate,Home Care,G334
http://statistics.data.gov.uk/id/local-authority/00BF,London Borough of Sutton,16/10/2016,40005581,437.97,Absolute Care Services Ltd,10021,Peoples Services Directorate,Home Care,G334
http://statistics.data.gov.uk/id/local-authority/00BF,London Borough of Sutton,16/10/2016,40005613,423.05,Absolute Care Services Ltd,10021,Peoples Services Directorate,Home Care,G334
http://statistics.data.gov.uk/id/local-authority/00BF,London Borough of Sutton,16/10/2016,40005617,602.52,Absolute Care Services Ltd,10021,Peoples Services Directorate,Home Care,G334
http://statistics.data.gov.uk/id/local-authority/00BF,London Borough of Sutton,16/10/2016,40005618,564.06,Absolute Care Services Ltd,10021,Peoples Services Directorate,Home Care,G334
http://statistics.data.gov.uk/id/local-authority/00BF,London Borough of Sutton,16/10/2016,40005642,517.06,Absolute Care Services Ltd,10021,Peoples Services Directorate,Home Care,G334
http://statistics.data.gov.uk/id/local-authority/00BF,London Borough of Sutton,16/10/2016,40005653,517.06,Absolute Care Services Ltd,10021,Peoples Services Directorate,Home Care,G334
http://statistics.data.gov.uk/id/local-authority/00BF,London Borough of Sutton,16/10/2016,40005654,725.22,Absolute Care Services Ltd,10021,Peoples Services Directorate,Home Care,G334
http://statistics.data.gov.uk/id/local-authority/00BF,London Borough of Sutton,16/10/2016,40005666,517.68,Absolute Care Services Ltd,10021,Peoples Services Directorate,Home Care,G334
http://statistics.data.gov.uk/id/local-authority/00BF,London Borough of Sutton,30/09/2016,1225259,"1,216.00",Access Mobility Transport Ltd,27456,Peoples Services Directorate,Hired Peoples Transport (Children),E072
http://statistics.data.gov.uk/id/local-authority/00BF,London Borough of Sutton,30/09/2016,1225260,"2,960.00",Access Mobility Transport Ltd,27456,Peoples Services Directorate,Hired Peoples Transport (Children),E072
http://statistics.data.gov.uk/id/local-authority/00BF,London Borough of Sutton,22/09/2016,6892597,840.00,Achieving For Children Limited,28009,Peoples Services Directorate,Fees - Other,F299
http://statistics.data.gov.uk/id/local-authority/00BF,London Borough of Sutton,31/08/2016,4992649,"3,964.20",Acorn Homes UK Ltd,25726,Peoples Services Directorate,Approved Lodgings,H323
http://statistics.data.gov.uk/id/local-authority/00BF,London Borough of Sutton,30/09/2016,40004903,"4,096.34",Acorn Homes UK Ltd,25726,Peoples Services Directorate,Approved Lodgings,H323
http://statistics.data.gov.uk/id/local-authority/00BF,London Borough of Sutton,07/10/2016,4994014,"2,903.20",Acorn Lodge,15804,Peoples Services Directorate,Residential Care - Ext Provider,G310
http://statistics.data.gov.uk/id/local-authority/00BF,London Borough of Sutton,07/10/2016,4994231,"3,042.36",Acorn Residential Home,15828,Peoples Services Directorate,Residential Care - Ext Provider,G310
http://statistics.data.gov.uk/id/local-authority/00BF,London Borough of Sutton,12/10/2016,6894770,"1,050.00",Adaram Ltd T/A Rosehill Lodging,12014,"Environment, Housing & Regeneration Directorate",Bed and Breakfast Accommodation,G400
http://statistics.data.gov.uk/id/local-authority/00BF,London Borough of Sutton,28/09/2016,6894771,"1,050.00",Adaram Ltd T/A Rosehill Lodging,12014,"Environment, Housing & Regeneration Directorate",Bed and Breakfast Accommodation,G400
http://statistics.data.gov.uk/id/local-authority/00BF,London Borough of Sutton,18/10/2016,6894772,"1,050.00",Adaram Ltd T/A Rosehill Lodging,12014,"Environment, Housing & Regeneration Directorate",Bed and Breakfast Accommodation,G400
http://statistics.data.gov.uk/id/local-authority/00BF,London Borough of Sutton,28/09/2016,6894773,"1,050.00",Adaram Ltd T/A Rosehill Lodging,12014,"Environment, Housing & Regeneration Directorate",Bed and Breakfast Accommodation,G400
http://statistics.data.gov.uk/id/local-authority/00BF,London Borough of Sutton,12/10/2016,6894774,"1,050.00",Adaram Ltd T/A Rosehill Lodging,12014,"Environment, Housing & Regeneration Directorate",Bed and Breakfast Accommodation,G400
http://statistics.data.gov.uk/id/local-authority/00BF,London Borough of Sutton,12/10/2016,6894775,"1,050.00",Adaram Ltd T/A Rosehill Lodging,12014,"Environment, Housing & Regeneration Directorate",Bed and Breakfast Accommodation,G400
http://statistics.data.gov.uk/id/local-authority/00BF,London Borough of Sutton,28/09/2016,6892911,"190,644.35",Adecco Uk Ltd,10059,Resources Directorate,Suspense/Holding Accounts,X550
http://statistics.data.gov.uk/id/local-authority/00BF,London Borough of Sutton,21/09/2016,6892912,"187,634.51",Adecco Uk Ltd,10059,Resources Directorate,Suspense/Holding Accounts,X550
http://statistics.data.gov.uk/id/local-authority/00BF,London Borough of Sutton,28/09/2016,6893370,611.05,Adecco Uk Ltd,10059,"Environment, Housing & Regeneration Directorate",Agency Staff - Adecco,A300
http://statistics.data.gov.uk/id/local-authority/00BF,London Borough of Sutton,28/09/2016,6893371,608.40,Adecco Uk Ltd,10059,"Environment, Housing & Regeneration Directorate",Agency Staff - Adecco,A300
http://statistics.data.gov.uk/id/local-authority/00BF,London Borough of Sutton,05/10/2016,6893584,"211,122.65",Adecco Uk Ltd,10059,Resources Directorate,Suspense/Holding Accounts,X550
http://statistics.data.gov.uk/id/local-authority/00BF,London Borough of Sutton,19/09/2016,6893853,535.88,Adecco Uk Ltd,10059,Resources Directorate,Suspense/Holding Accounts,X550
http://statistics.data.gov.uk/id/local-authority/00BF,London Borough of Sutton,12/10/2016,6894076,"173,006.79",Adecco Uk Ltd,10059,Resources Directorate,Suspense/Holding Accounts,X550
http://statistics.data.gov.uk/id/local-authority/00BF,London Borough of Sutton,07/09/2016,6894784,434.30,Adecco Uk Ltd,10059,"Environment, Housing & Regeneration Directorate",Agency Staff - Adecco,A300
http://statistics.data.gov.uk/id/local-authority/00BF,London Borough of Sutton,21/09/2016,6894785,717.10,Adecco Uk Ltd,10059,"Environment, Housing & Regeneration Directorate",Agency Staff - Adecco,A300
http://statistics.data.gov.uk/id/local-authority/00BF,London Borough of Sutton,14/09/2016,6894786,545.40,Adecco Uk Ltd,10059,"Environment, Housing & Regeneration Directorate",Agency Staff - Adecco,A300
http://statistics.data.gov.uk/id/local-authority/00BF,London Borough of Sutton,04/09/2016,6893933,532.17,Adt Fire & Security Plc,10063,Peoples Services Directorate,Security Systems - SCH,D880
http://statistics.data.gov.uk/id/local-authority/00BF,London Borough of Sutton,07/09/2016,6893151,"6,750.00",Advocacy For All,24795,Peoples Services Directorate,Provider Contract Payments,F470
http://statistics.data.gov.uk/id/local-authority/00BF,London Borough of Sutton,05/10/2016,6893156,"4,266.56",Advocacy For All,24795,Peoples Services Directorate,Provider Contract Payments,F470
http://statistics.data.gov.uk/id/local-authority/00BF,London Borough of Sutton,03/08/2016,6893302,"2,538.90",Advocacy For All,24795,Peoples Services Directorate,Provider Contract Payments,F470
http://statistics.data.gov.uk/id/local-authority/00BF,London Borough of Sutton,28/09/2016,6892979,"1,896.00",Affinity Workforce Ltd,26099,Peoples Services Directorate,Agency Staff - Adecco,A300
http://statistics.data.gov.uk/id/local-authority/00BF,London Borough of Sutton,05/10/2016,6893231,"1,422.00",Affinity Workforce Ltd,26099,Peoples Services Directorate,Agency Staff - Adecco,A300
http://statistics.data.gov.uk/id/local-authority/00BF,London Borough of Sutton,12/10/2016,6893870,"1,422.00",Affinity Workforce Ltd,26099,Peoples Services Directorate,Agency Staff - Adecco,A300
http://statistics.data.gov.uk/id/local-authority/00BF,London Borough of Sutton,19/10/2016,6894354,"1,422.00",Affinity Workforce Ltd,26099,Peoples Services Directorate,Agency Staff - Adecco,A300
http://statistics.data.gov.uk/id/local-authority/00BF,London Borough of Sutton,05/10/2016,6893469,"1,290.88",Agilisys Contact Services Ltd,25894,Resources Directorate,Fees - Bailiffs,F302
http://statistics.data.gov.uk/id/local-authority/00BF,London Borough of Sutton,07/10/2016,4994073,"7,511.00",Aims Care Partnership (Leighton House Ltd),12628,Peoples Services Directorate,Residential Care - Ext Provider,G310
http://statistics.data.gov.uk/id/local-authority/00BF,London Borough of Sutton,07/10/2016,4994017,"5,278.00",Aitch Care Homes,20446,Peoples Services Directorate,Residential Care - Ext Provider,G310
http://statistics.data.gov.uk/id/local-authority/00BF,London Borough of Sutton,07/10/2016,4994102,"8,400.16",Aitch Care Homes,20446,Peoples Services Directorate,Residential Care - Ext Provider,G310
http://statistics.data.gov.uk/id/local-authority/00BF,London Borough of Sutton,01/10/2016,6892881,"1,423.83",All Security Ltd,97190,"Environment, Housing & Regeneration Directorate",Agency Services,G431
http://statistics.data.gov.uk/id/local-authority/00BF,London Borough of Sutton,03/10/2016,6892859,464.80,Allan White Motors Ltd,14584,"Environment, Housing & Regeneration Directorate",Centralised Transport Hire,E068
http://statistics.data.gov.uk/id/local-authority/00BF,London Borough of Sutton,05/10/2016,6893111,924.00,Allan White Motors Ltd,14584,"Environment, Housing & Regeneration Directorate",Centralised Transport Hire,E068
http://statistics.data.gov.uk/id/local-authority/00BF,London Borough of Sutton,20/10/2016,6894344,924.00,Allan White Motors Ltd,14584,"Environment, Housing & Regeneration Directorate",Centralised Transport Hire,E068
http://statistics.data.gov.uk/id/local-authority/00BF,London Borough of Sutton,05/09/2016,6894724,"1,845.00",Allan White Motors Ltd,14584,"Environment, Housing & Regeneration Directorate",Centralised Transport Hire,E068
http://statistics.data.gov.uk/id/local-authority/00BF,London Borough of Sutton,22/09/2016,6894725,924.00,Allan White Motors Ltd,14584,"Environment, Housing & Regeneration Directorate",Centralised Transport Hire,E068
http://statistics.data.gov.uk/id/local-authority/00BF,London Borough of Sutton,30/09/2016,6894726,924.00,Allan White Motors Ltd,14584,"Environment, Housing & Regeneration Directorate",Centralised Transport Hire,E068
http://statistics.data.gov.uk/id/local-authority/00BF,London Borough of Sutton,27/09/2016,6893516,752.64,Allen Lane Ltd,18334,"Environment, Housing & Regeneration Directorate",Agency Staff - Adecco,A300
http://statistics.data.gov.uk/id/local-authority/00BF,London Borough of Sutton,20/09/2016,6893517,954.24,Allen Lane Ltd,18334,"Environment, Housing & Regeneration Directorate",Agency Staff - Adecco,A300
http://statistics.data.gov.uk/id/local-authority/00BF,London Borough of Sutton,04/10/2016,6893800,940.80,Allen Lane Ltd,18334,"Environment, Housing & Regeneration Directorate",Agency Staff - Adecco,A300
http://statistics.data.gov.uk/id/local-authority/00BF,London Borough of Sutton,11/10/2016,6893875,983.27,Allen Lane Ltd,18334,"Environment, Housing & Regeneration Directorate",Agency Staff - Adecco,A300
http://statistics.data.gov.uk/id/local-authority/00BF,London Borough of Sutton,07/10/2016,4994008,"6,234.48",Allied Care (Mhs) Ltd,10145,Peoples Services Directorate,Residential Care - Ext Provider,G310
http://statistics.data.gov.uk/id/local-authority/00BF,London Borough of Sutton,07/10/2016,4994090,"8,013.56",Allswell Care Services Ltd,20761,Peoples Services Directorate,Residential Care - Ext Provider,G310
http://statistics.data.gov.uk/id/local-authority/00BF,London Borough of Sutton,03/10/2016,1224703,600.00,Amy Johnson Day Nursery,22840,Peoples Services Directorate,Non-Maintained Childrens' Nurseries - 2 Year Olds,G404
http://statistics.data.gov.uk/id/local-authority/00BF,London Borough of Sutton,17/10/2016,1225593,"12,520.40",Amy Johnson Day Nursery,22840,Peoples Services Directorate,Non-Maintained Childrens' Nurseries - 2 Year Olds,G404
http://statistics.data.gov.uk/id/local-authority/00BF,London Borough of Sutton,17/10/2016,1225658,"7,236.39",Amy Johnson Day Nursery,22840,Peoples Services Directorate,Non-Maintained Childrens' Nurseries - 3 Year Olds,G405
http://statistics.data.gov.uk/id/local-authority/00BF,London Borough of Sutton,12/10/2016,1225839,"2,625.00",Amy Johnson Day Nursery,22840,Peoples Services Directorate,Top-up Funding,G064
http://statistics.data.gov.uk/id/local-authority/00BF,London Borough of Sutton,18/10/2016,6894370,"18,000.00",Amy Johnson Day Nursery,22840,Peoples Services Directorate,Provider Contract Payments,F470
http://statistics.data.gov.uk/id/local-authority/00BF,London Borough of Sutton,26/10/2016,1226111,718.99,Anchor Housing,10181,"Environment, Housing & Regeneration Directorate",Supporting People - Older People Services,H244
http://statistics.data.gov.uk/id/local-authority/00BF,London Borough of Sutton,30/09/2016,40003725,"17,994.67",Anderida Adolescent Care Ltd,26195,Peoples Services Directorate,Residential Care-Children,G330
http://statistics.data.gov.uk/id/local-authority/00BF,London Borough of Sutton,04/10/2016,6893859,"3,000.00",Andrew Alonzi Ltd,26153,Peoples Services Directorate,Training - Course Fees,A520
http://statistics.data.gov.uk/id/local-authority/00BF,London Borough of Sutton,10/09/2016,4993711,699.20,Angel Home AS Ltd,10173,Peoples Services Directorate,Day Care,G337
http://statistics.data.gov.uk/id/local-authority/00BF,London Borough of Sutton,23/09/2016,4993729,699.20,Angel Home AS Ltd,10173,Peoples Services Directorate,Day Care,G337
http://statistics.data.gov.uk/id/local-authority/00BF,London Borough of Sutton,10/09/2016,4993730,699.20,Angel Home AS Ltd,10173,Peoples Services Directorate,Day Care,G337
http://statistics.data.gov.uk/id/local-authority/00BF,London Borough of Sutton,23/09/2016,4993750,699.20,Angel Home AS Ltd,10173,Peoples Services Directorate,Day Care,G337
http://statistics.data.gov.uk/id/local-authority/00BF,London Borough of Sutton,10/09/2016,4993751,699.20,Angel Home AS Ltd,10173,Peoples Services Directorate,Day Care,G337
http://statistics.data.gov.uk/id/local-authority/00BF,London Borough of Sutton,07/10/2016,4994009,"2,842.00",Angel Home AS Ltd,10173,Peoples Services Directorate,Residential Care - Ext Provider,G310
http://statistics.data.gov.uk/id/local-authority/00BF,London Borough of Sutton,07/10/2016,4994307,"2,458.96",Angel Home AS Ltd,10173,Peoples Services Directorate,Residential Care - Ext Provider,G310
http://statistics.data.gov.uk/id/local-authority/00BF,London Borough of Sutton,07/10/2016,4994355,"2,131.92",Angel Home AS Ltd,10173,Peoples Services Directorate,Residential Care - Ext Provider,G310
http://statistics.data.gov.uk/id/local-authority/00BF,London Borough of Sutton,07/10/2016,4994357,"2,200.00",Angel Home AS Ltd,10173,Peoples Services Directorate,Residential Care - Ext Provider,G310
http://statistics.data.gov.uk/id/local-authority/00BF,London Borough of Sutton,07/10/2016,4994379,"2,056.80",Angel Home AS Ltd,10173,Peoples Services Directorate,Residential Care - Ext Provider,G310
http://statistics.data.gov.uk/id/local-authority/00BF,London Borough of Sutton,26/10/2016,6894643,"8,715.00",ANS Group Europe LLP,23713,"Environment, Housing & Regeneration Directorate",Other Services,F340
http://statistics.data.gov.uk/id/local-authority/00BF,London Borough of Sutton,09/10/2016,6893554,"1,013.70",Antonio D'agostino,28665,Peoples Services Directorate,Provider Contract Payments,F470
http://statistics.data.gov.uk/id/local-authority/00BF,London Borough of Sutton,14/10/2016,6894045,630.45,Antonio D'agostino,28665,Peoples Services Directorate,Provider Contract Payments,F470
http://statistics.data.gov.uk/id/local-authority/00BF,London Borough of Sutton,30/09/2016,6893496,"4,415.00",Aoc Archaeology Group,28515,Peoples Services Directorate,Other,Y194
http://statistics.data.gov.uk/id/local-authority/00BF,London Borough of Sutton,31/08/2016,6893767,"6,243.78",Apetito Ltd,10206,Peoples Services Directorate,Provisions - General,F150
http://statistics.data.gov.uk/id/local-authority/00BF,London Borough of Sutton,21/10/2016,6894657,"1,332.00",APL Properties,26226,"Environment, Housing & Regeneration Directorate",Bed and Breakfast Accommodation,G400
http://statistics.data.gov.uk/id/local-authority/00BF,London Borough of Sutton,24/08/2016,6892864,"4,732.90",Aquarius Blinds,10221,Peoples Services Directorate,Furniture & Fittings,Y500
http://statistics.data.gov.uk/id/local-authority/00BF,London Borough of Sutton,05/10/2016,6893385,"3,150.00",Architype Ltd,25419,Peoples Services Directorate,Building Regs & Planning App. Fees,Y191
http://statistics.data.gov.uk/id/local-authority/00BF,London Borough of Sutton,27/09/2016,6893393,"3,150.00",Architype Ltd,25419,Peoples Services Directorate,External Fees  - Architects,Y100
http://statistics.data.gov.uk/id/local-authority/00BF,London Borough of Sutton,10/10/2016,6893626,"5,250.00",Architype Ltd,25419,Peoples Services Directorate,Building Regs & Planning App. Fees,Y191
http://statistics.data.gov.uk/id/local-authority/00BF,London Borough of Sutton,12/10/2016,6893893,"4,889.10",Architype Ltd,25419,Peoples Services Directorate,External Fees  - Other,Y130
http://statistics.data.gov.uk/id/local-authority/00BF,London Borough of Sutton,05/10/2016,6893980,"135,553.00",Architype Ltd,25419,Peoples Services Directorate,External Fees  - Architects,Y100
http://statistics.data.gov.uk/id/local-authority/00BF,London Borough of Sutton,12/10/2016,6893981,"17,543.00",Architype Ltd,25419,Peoples Services Directorate,External Fees  - Architects,Y100
http://statistics.data.gov.uk/id/local-authority/00BF,London Borough of Sutton,30/09/2016,6892781,460.00,Arianna Patrick,28919,Peoples Services Directorate,Agency Staff - Adecco,A300
http://statistics.data.gov.uk/id/local-authority/00BF,London Borough of Sutton,07/10/2016,6893367,460.00,Arianna Patrick,28919,Peoples Services Directorate,Agency Staff - Adecco,A300
http://statistics.data.gov.uk/id/local-authority/00BF,London Borough of Sutton,14/10/2016,6893919,460.00,Arianna Patrick,28919,Peoples Services Directorate,Agency Staff - Adecco,A300
http://statistics.data.gov.uk/id/local-authority/00BF,London Borough of Sutton,22/10/2016,6894476,460.00,Arianna Patrick,28919,Peoples Services Directorate,Agency Staff - Adecco,A300
http://statistics.data.gov.uk/id/local-authority/00BF,London Borough of Sutton,27/10/2016,6894766,460.00,Arianna Patrick,28919,Peoples Services Directorate,Agency Staff - Adecco,A300
http://statistics.data.gov.uk/id/local-authority/00BF,London Borough of Sutton,05/10/2016,6893283,"4,558.14",Arnold & Self,16110,"Environment, Housing & Regeneration Directorate",Bed and Breakfast Accommodation,G400
http://statistics.data.gov.uk/id/local-authority/00BF,London Borough of Sutton,15/09/2016,4992682,"3,428.57",Artemis Support Limited,28947,Peoples Services Directorate,Residential Care-Children,G330
http://statistics.data.gov.uk/id/local-authority/00BF,London Borough of Sutton,08/09/2016,4992689,"12,000.00",Artemis Support Limited,28947,Peoples Services Directorate,Residential Care-Children,G330
http://statistics.data.gov.uk/id/local-authority/00BF,London Borough of Sutton,01/09/2016,4993651,"1,016.10",Ashbrook House Ltd,23499,Peoples Services Directorate,Supported Living - Ext Provider,G306
http://statistics.data.gov.uk/id/local-authority/00BF,London Borough of Sutton,07/10/2016,4993979,"7,000.04",Ashcroft Care Services,22571,Peoples Services Directorate,Residential Care - Ext Provider,G310
http://statistics.data.gov.uk/id/local-authority/00BF,London Borough of Sutton,01/09/2016,4993652,"1,422.90",Ashlong House Ltd,23101,Peoples Services Directorate,Supported Living - Ext Provider,G306
http://statistics.data.gov.uk/id/local-authority/00BF,London Borough of Sutton,07/10/2016,4993968,"5,436.00",Ashlong House Ltd,23101,Peoples Services Directorate,Residential Care - Ext Provider,G310
http://statistics.data.gov.uk/id/local-authority/00BF,London Borough of Sutton,01/10/2016,40003342,884.48,Ashlong House Ltd,23101,Peoples Services Directorate,Supported Living - Ext Provider,G306
http://statistics.data.gov.uk/id/local-authority/00BF,London Borough of Sutton,30/09/2016,6893780,"1,410.00",Assetgrove Lettings Ltd,28820,"Environment, Housing & Regeneration Directorate",Bed and Breakfast Accommodation,G400
http://statistics.data.gov.uk/id/local-authority/00BF,London Borough of Sutton,30/09/2016,6893781,"1,050.00",Assetgrove Lettings Ltd,28820,"Environment, Housing & Regeneration Directorate",Bed and Breakfast Accommodation,G400
http://statistics.data.gov.uk/id/local-authority/00BF,London Borough of Sutton,30/09/2016,6893782,"1,050.00",Assetgrove Lettings Ltd,28820,"Environment, Housing & Regeneration Directorate",Bed and Breakfast Accommodation,G400
http://statistics.data.gov.uk/id/local-authority/00BF,London Borough of Sutton,30/09/2016,6893783,"1,567.50",Assetgrove Lettings Ltd,28820,"Environment, Housing & Regeneration Directorate",Bed and Breakfast Accommodation,G400
http://statistics.data.gov.uk/id/local-authority/00BF,London Borough of Sutton,30/09/2016,6893788,"1,050.00",Assetgrove Lettings Ltd,28820,"Environment, Housing & Regeneration Directorate",Bed and Breakfast Accommodation,G400
http://statistics.data.gov.uk/id/local-authority/00BF,London Borough of Sutton,30/09/2016,6893789,"1,410.00",Assetgrove Lettings Ltd,28820,"Environment, Housing & Regeneration Directorate",Bed and Breakfast Accommodation,G400
http://statistics.data.gov.uk/id/local-authority/00BF,London Borough of Sutton,30/09/2016,6893790,"1,140.00",Assetgrove Lettings Ltd,28820,"Environment, Housing & Regeneration Directorate",Bed and Breakfast Accommodation,G400
http://statistics.data.gov.uk/id/local-authority/00BF,London Borough of Sutton,30/09/2016,6893791,"1,050.00",Assetgrove Lettings Ltd,28820,"Environment, Housing & Regeneration Directorate",Bed and Breakfast Accommodation,G400
http://statistics.data.gov.uk/id/local-authority/00BF,London Borough of Sutton,30/09/2016,6893792,"1,050.00",Assetgrove Lettings Ltd,28820,"Environment, Housing & Regeneration Directorate",Bed and Breakfast Accommodation,G400
http://statistics.data.gov.uk/id/local-authority/00BF,London Borough of Sutton,30/09/2016,6893793,"1,050.00",Assetgrove Lettings Ltd,28820,"Environment, Housing & Regeneration Directorate",Bed and Breakfast Accommodation,G400
http://statistics.data.gov.uk/id/local-authority/00BF,London Borough of Sutton,30/09/2016,6893958,"1,050.00",Assetgrove Lettings Ltd,28820,"Environment, Housing & Regeneration Directorate",Bed and Breakfast Accommodation,G400
http://statistics.data.gov.uk/id/local-authority/00BF,London Borough of Sutton,17/10/2016,6894077,480.00,Association of Democratic Services Officers,23679,Resources Directorate,Staff Advertising,A500
http://statistics.data.gov.uk/id/local-authority/00BF,London Borough of Sutton,07/10/2016,4994098,"3,639.72",Assurance Care Services Ltd T/A Christ the King Residential Care Homes,27458,Peoples Services Directorate,Residential Care - Ext Provider,G310
http://statistics.data.gov.uk/id/local-authority/00BF,London Borough of Sutton,30/09/2016,6893052,"3,434.18",ATS Euromaster Ltd,23885,"Environment, Housing & Regeneration Directorate",Tyre Expenditure,E015
http://statistics.data.gov.uk/id/local-authority/00BF,London Borough of Sutton,31/08/2016,6893625,"6,751.19",ATS Euromaster Ltd,23885,"Environment, Housing & Regeneration Directorate",Tyre Expenditure,E015
http://statistics.data.gov.uk/id/local-authority/00BF,London Borough of Sutton,07/10/2016,4994012,"4,580.72",Autism & Aspergers Care Services,10327,Peoples Services Directorate,Residential Care - Ext Provider,G310
http://statistics.data.gov.uk/id/local-authority/00BF,London Borough of Sutton,07/10/2016,4993989,"2,805.00",Avante Ltd (Weybourne),24009,Peoples Services Directorate,Residential Care - Ext Provider,G310
http://statistics.data.gov.uk/id/local-authority/00BF,London Borough of Sutton,27/09/2016,6892567,"3,600.00",Axiell ALM Ltd,24854,Peoples Services Directorate,Purchase of Software,F381
http://statistics.data.gov.uk/id/local-authority/00BF,London Borough of Sutton,24/10/2016,6894593,560.00,Axiell Ltd,25933,Peoples Services Directorate,IT Equipment - Repair and Maintenance,F382
http://statistics.data.gov.uk/id/local-authority/00BF,London Borough of Sutton,17/10/2016,1225657,"14,544.50",B Mallen T/A The Adventure Pre-School,10072,Peoples Services Directorate,Non-Maintained Childrens' Nurseries - 3 Year Olds,G405
http://statistics.data.gov.uk/id/local-authority/00BF,London Borough of Sutton,19/09/2016,5014770,"-4,600.00",Bahbak Hashemi-Nezhad,97697,"Environment, Housing & Regeneration Directorate",External Fees  - Other,Y130
http://statistics.data.gov.uk/id/local-authority/00BF,London Borough of Sutton,19/09/2016,6892652,"4,600.00",Bahbak Hashemi-Nezhad,97697,"Environment, Housing & Regeneration Directorate",External Fees  - Other,Y130
http://statistics.data.gov.uk/id/local-authority/00BF,London Borough of Sutton,11/01/2016,6894661,"1,987.38",Bailey Consulting,99815,"Environment, Housing & Regeneration Directorate",Grants -Made,Y610
http://statistics.data.gov.uk/id/local-authority/00BF,London Borough of Sutton,07/10/2016,4994146,"3,200.00",Balcombe Care Homes Ltd,10367,Peoples Services Directorate,Nursing Care - Ext Provider,G311
http://statistics.data.gov.uk/id/local-authority/00BF,London Borough of Sutton,07/10/2016,4994206,"3,200.00",Balcombe Care Homes Ltd,10367,Peoples Services Directorate,Nursing Care - Ext Provider,G311
http://statistics.data.gov.uk/id/local-authority/00BF,London Borough of Sutton,04/10/2016,6893694,"3,760.00",Bamberry Consulting LTD,28686,Peoples Services Directorate,Agency Staff - Adecco,A300
http://statistics.data.gov.uk/id/local-authority/00BF,London Borough of Sutton,17/10/2016,1225594,975.30,Bandon Hill Pre-School,10357,Peoples Services Directorate,Non-Maintained Childrens' Nurseries - 2 Year Olds,G404
http://statistics.data.gov.uk/id/local-authority/00BF,London Borough of Sutton,17/10/2016,1225659,"6,889.00",Bandon Hill Pre-School,10357,Peoples Services Directorate,Non-Maintained Childrens' Nurseries - 3 Year Olds,G405
http://statistics.data.gov.uk/id/local-authority/00BF,London Borough of Sutton,11/10/2016,6894805,"5,476.71",Bandon Hill Primary,10372,Peoples Services Directorate,Other,Y450
http://statistics.data.gov.uk/id/local-authority/00BF,London Borough of Sutton,07/10/2016,4994198,"4,780.00",Barchester Healthcare (Epsom Beaumont Care Home),19157,Peoples Services Directorate,Nursing Care - Ext Provider,G311
http://statistics.data.gov.uk/id/local-authority/00BF,London Borough of Sutton,07/10/2016,4994001,"1,996.00",Barchester Healthcare (Tandridge Heights),16499,Peoples Services Directorate,Nursing Care - Ext Provider,G311
http://statistics.data.gov.uk/id/local-authority/00BF,London Borough of Sutton,07/10/2016,4994035,"4,400.00","Barchester Healthcare, Marriott House",26322,Peoples Services Directorate,Nursing Care - Ext Provider,G311
http://statistics.data.gov.uk/id/local-authority/00BF,London Borough of Sutton,19/09/2016,4992399,682.00,Barnardo's,10370,Peoples Services Directorate,Provider Contract Payments,F470
http://statistics.data.gov.uk/id/local-authority/00BF,London Borough of Sutton,19/09/2016,4992400,528.00,Barnardo's,10370,Peoples Services Directorate,Provider Contract Payments,F470
http://statistics.data.gov.uk/id/local-authority/00BF,London Borough of Sutton,19/09/2016,4992402,"1,288.00",Barnardo's,10370,Peoples Services Directorate,Provider Contract Payments,F470
http://statistics.data.gov.uk/id/local-authority/00BF,London Borough of Sutton,19/09/2016,4992404,504.00,Barnardo's,10370,Peoples Services Directorate,Provider Contract Payments,F470
http://statistics.data.gov.uk/id/local-authority/00BF,London Borough of Sutton,19/09/2016,4992405,609.00,Barnardo's,10370,Peoples Services Directorate,Provider Contract Payments,F470
http://statistics.data.gov.uk/id/local-authority/00BF,London Borough of Sutton,19/09/2016,4992406,440.00,Barnardo's,10370,Peoples Services Directorate,Provider Contract Payments,F470
http://statistics.data.gov.uk/id/local-authority/00BF,London Borough of Sutton,19/09/2016,4992408,550.00,Barnardo's,10370,Peoples Services Directorate,Provider Contract Payments,F470
http://statistics.data.gov.uk/id/local-authority/00BF,London Borough of Sutton,19/09/2016,4992409,552.00,Barnardo's,10370,Peoples Services Directorate,Provider Contract Payments,F470
http://statistics.data.gov.uk/id/local-authority/00BF,London Borough of Sutton,19/09/2016,4992410,567.00,Barnardo's,10370,Peoples Services Directorate,Provider Contract Payments,F470
http://statistics.data.gov.uk/id/local-authority/00BF,London Borough of Sutton,19/09/2016,4992412,"1,512.25",Barnardo's,10370,Peoples Services Directorate,Provider Contract Payments,F470
http://statistics.data.gov.uk/id/local-authority/00BF,London Borough of Sutton,19/09/2016,4992413,"1,240.00",Barnardo's,10370,Peoples Services Directorate,Provider Contract Payments,F470
http://statistics.data.gov.uk/id/local-authority/00BF,London Borough of Sutton,19/09/2016,4992414,"1,331.00",Barnardo's,10370,Peoples Services Directorate,Provider Contract Payments,F470
http://statistics.data.gov.uk/id/local-authority/00BF,London Borough of Sutton,19/09/2016,4992416,517.00,Barnardo's,10370,Peoples Services Directorate,Provider Contract Payments,F470
http://statistics.data.gov.uk/id/local-authority/00BF,London Borough of Sutton,19/09/2016,4992418,672.00,Barnardo's,10370,Peoples Services Directorate,Provider Contract Payments,F470
http://statistics.data.gov.uk/id/local-authority/00BF,London Borough of Sutton,19/10/2016,40004243,"1,754.50",Barnardo's,10370,Peoples Services Directorate,Provider Contract Payments,F470
http://statistics.data.gov.uk/id/local-authority/00BF,London Borough of Sutton,19/10/2016,40004248,736.00,Barnardo's,10370,Peoples Services Directorate,Provider Contract Payments,F470
http://statistics.data.gov.uk/id/local-authority/00BF,London Borough of Sutton,19/10/2016,40004250,441.00,Barnardo's,10370,Peoples Services Directorate,Provider Contract Payments,F470
http://statistics.data.gov.uk/id/local-authority/00BF,London Borough of Sutton,19/10/2016,40004251,"1,472.00",Barnardo's,10370,Peoples Services Directorate,Provider Contract Payments,F470
http://statistics.data.gov.uk/id/local-authority/00BF,London Borough of Sutton,19/10/2016,40004254,567.00,Barnardo's,10370,Peoples Services Directorate,Provider Contract Payments,F470
http://statistics.data.gov.uk/id/local-authority/00BF,London Borough of Sutton,19/10/2016,40004257,440.00,Barnardo's,10370,Peoples Services Directorate,Provider Contract Payments,F470
http://statistics.data.gov.uk/id/local-authority/00BF,London Borough of Sutton,19/10/2016,40004258,550.00,Barnardo's,10370,Peoples Services Directorate,Provider Contract Payments,F470
http://statistics.data.gov.uk/id/local-authority/00BF,London Borough of Sutton,04/09/2016,6894262,"1,465.64",Barts Health Nhs Trust,28991,Peoples Services Directorate,Provider Contract Payments,F470
http://statistics.data.gov.uk/id/local-authority/00BF,London Borough of Sutton,07/10/2016,4994121,"2,120.00",Beaumont Lodge Ltd,16849,Peoples Services Directorate,Nursing Care - Ext Provider,G311
http://statistics.data.gov.uk/id/local-authority/00BF,London Borough of Sutton,20/09/2016,6893977,"15,960.00",Beddington Infants School,10445,Peoples Services Directorate,Building Works -Main Contractor,Y350
http://statistics.data.gov.uk/id/local-authority/00BF,London Borough of Sutton,15/07/2016,5014751,"1,054.94",Beech Lodge,22010,Peoples Services Directorate,Residential Care - Ext Provider,G310
http://statistics.data.gov.uk/id/local-authority/00BF,London Borough of Sutton,28/10/2016,6894850,"2,190.00",Beechwood Investments Ltd,99898,"Environment, Housing & Regeneration Directorate",Depositors,X460
http://statistics.data.gov.uk/id/local-authority/00BF,London Borough of Sutton,17/10/2016,1225595,986.36,Belmont Village Playgroup,17807,Peoples Services Directorate,Non-Maintained Childrens' Nurseries - 2 Year Olds,G404
http://statistics.data.gov.uk/id/local-authority/00BF,London Borough of Sutton,17/10/2016,1225660,"4,169.00",Belmont Village Playgroup,17807,Peoples Services Directorate,Non-Maintained Childrens' Nurseries - 3 Year Olds,G405
http://statistics.data.gov.uk/id/local-authority/00BF,London Borough of Sutton,30/09/2016,6892788,980.00,Ben Musgrave,26809,Peoples Services Directorate,Arts Programme,F306
http://statistics.data.gov.uk/id/local-authority/00BF,London Borough of Sutton,08/10/2016,6893466,"3,602.50",Benhill & Belmont GP Centre,15665,Peoples Services Directorate,Provider Contract Payments,F470
http://statistics.data.gov.uk/id/local-authority/00BF,London Borough of Sutton,08/10/2016,6894035,920.00,Benhill & Belmont GP Centre,15665,Peoples Services Directorate,Provider Contract Payments,F470
http://statistics.data.gov.uk/id/local-authority/00BF,London Borough of Sutton,20/08/2016,4992674,"16,200.00",Benjamin UK Ltd,23244,Peoples Services Directorate,Residential Care-Children,G330
http://statistics.data.gov.uk/id/local-authority/00BF,London Borough of Sutton,18/10/2016,6894236,"1,266.66",Benjamin UK Ltd,23244,Peoples Services Directorate,Payments to Schools,G065
http://statistics.data.gov.uk/id/local-authority/00BF,London Borough of Sutton,20/08/2016,40004895,"16,740.00",Benjamin UK Ltd,23244,Peoples Services Directorate,Residential Care-Children,G330
http://statistics.data.gov.uk/id/local-authority/00BF,London Borough of Sutton,05/09/2016,6893499,"5,607.00",Bevan Brittan LLP,28285,"Environment, Housing & Regeneration Directorate",External Fees  - Other,Y130
http://statistics.data.gov.uk/id/local-authority/00BF,London Borough of Sutton,07/10/2016,4994141,"3,200.00",Beverley Lodge Nursing Home,10434,Peoples Services Directorate,Nursing Care - Ext Provider,G311
http://statistics.data.gov.uk/id/local-authority/00BF,London Borough of Sutton,07/10/2016,4994149,"2,800.00",Beverley Lodge Nursing Home,10434,Peoples Services Directorate,Nursing Care - Ext Provider,G311
http://statistics.data.gov.uk/id/local-authority/00BF,London Borough of Sutton,07/10/2016,4994199,"3,400.00",Beverley Lodge Nursing Home,10434,Peoples Services Directorate,Nursing Care - Ext Provider,G311
http://statistics.data.gov.uk/id/local-authority/00BF,London Borough of Sutton,07/10/2016,4994244,"2,459.04",Beverley Lodge Nursing Home,10434,Peoples Services Directorate,Nursing Care - Ext Provider,G311
http://statistics.data.gov.uk/id/local-authority/00BF,London Borough of Sutton,07/10/2016,4994346,"2,462.44",Beverley Lodge Nursing Home,10434,Peoples Services Directorate,Nursing Care - Ext Provider,G311
http://statistics.data.gov.uk/id/local-authority/00BF,London Borough of Sutton,07/10/2016,4994369,"2,226.40",Beverley Lodge Nursing Home,10434,Peoples Services Directorate,Nursing Care - Ext Provider,G311
http://statistics.data.gov.uk/id/local-authority/00BF,London Borough of Sutton,07/10/2016,4994415,"2,019.96",Beverley Lodge Nursing Home,10434,Peoples Services Directorate,Nursing Care - Ext Provider,G311
http://statistics.data.gov.uk/id/local-authority/00BF,London Borough of Sutton,07/10/2016,4994420,"1,979.48",Beverley Lodge Nursing Home,10434,Peoples Services Directorate,Nursing Care - Ext Provider,G311
http://statistics.data.gov.uk/id/local-authority/00BF,London Borough of Sutton,18/10/2016,6894183,550.00,Bibliotheca Ltd,28968,Peoples Services Directorate,IT Equipment - Repair and Maintenance,F382
http://statistics.data.gov.uk/id/local-authority/00BF,London Borough of Sutton,17/10/2016,1225596,"6,260.00",Bizzy Bees Day Nursery,10483,Peoples Services Directorate,Non-Maintained Childrens' Nurseries - 2 Year Olds,G404
http://statistics.data.gov.uk/id/local-authority/00BF,London Borough of Sutton,17/10/2016,1225661,"4,706.40",Bizzy Bees Day Nursery,10483,Peoples Services Directorate,Non-Maintained Childrens' Nurseries - 3 Year Olds,G405
http://statistics.data.gov.uk/id/local-authority/00BF,London Borough of Sutton,06/10/2016,6893280,953.00,Bond Dickinson LLP,26337,Resources Directorate,Fees - Consultants (Ad Hoc),F283
http://statistics.data.gov.uk/id/local-authority/00BF,London Borough of Sutton,06/10/2016,6893280,"6,030.49",Bond Dickinson LLP,26337,Resources Directorate,Fees - Consultants (Ad Hoc),F283
http://statistics.data.gov.uk/id/local-authority/00BF,London Borough of Sutton,17/10/2016,1225662,"2,356.60",Brambles Pre-School,10612,Peoples Services Directorate,Non-Maintained Childrens' Nurseries - 3 Year Olds,G405
http://statistics.data.gov.uk/id/local-authority/00BF,London Borough of Sutton,31/07/2015,5014718,520.00,Bredon School (2002) Ltd,25346,Peoples Services Directorate,Independent Schools,G325
http://statistics.data.gov.uk/id/local-authority/00BF,London Borough of Sutton,03/10/2016,6892988,"1,182.50",Brennan & Scott,25733,Peoples Services Directorate,Provider Contract Payments,F470
http://statistics.data.gov.uk/id/local-authority/00BF,London Borough of Sutton,07/10/2016,4994054,"19,435.00",Bridge House Care Centre,10620,Peoples Services Directorate,Nursing Care - Ext Provider,G311
http://statistics.data.gov.uk/id/local-authority/00BF,London Borough of Sutton,07/10/2016,4994061,"2,121.43",Bridge House Care Centre,10620,Peoples Services Directorate,Nursing Care - Ext Provider,G311
http://statistics.data.gov.uk/id/local-authority/00BF,London Borough of Sutton,07/10/2016,4994070,"1,942.48",Bridge House Care Centre,10620,Peoples Services Directorate,Nursing Care - Ext Provider,G311
http://statistics.data.gov.uk/id/local-authority/00BF,London Borough of Sutton,07/10/2016,4994112,"2,033.92",Bridge House Care Centre,10620,Peoples Services Directorate,Nursing Care - Ext Provider,G311
http://statistics.data.gov.uk/id/local-authority/00BF,London Borough of Sutton,07/10/2016,4994131,"3,400.00",Bridge House Care Centre,10620,Peoples Services Directorate,Nursing Care - Ext Provider,G311
http://statistics.data.gov.uk/id/local-authority/00BF,London Borough of Sutton,07/10/2016,4994173,"3,475.36",Bridge House Care Centre,10620,Peoples Services Directorate,Nursing Care - Ext Provider,G311
http://statistics.data.gov.uk/id/local-authority/00BF,London Borough of Sutton,07/10/2016,4994189,"3,400.00",Bridge House Care Centre,10620,Peoples Services Directorate,Nursing Care - Ext Provider,G311
http://statistics.data.gov.uk/id/local-authority/00BF,London Borough of Sutton,07/10/2016,4994204,"3,200.00",Bridge House Care Centre,10620,Peoples Services Directorate,Nursing Care - Ext Provider,G311
http://statistics.data.gov.uk/id/local-authority/00BF,London Borough of Sutton,07/10/2016,4994207,"3,200.00",Bridge House Care Centre,10620,Peoples Services Directorate,Nursing Care - Ext Provider,G311
http://statistics.data.gov.uk/id/local-authority/00BF,London Borough of Sutton,07/10/2016,4994253,"3,000.00",Bridge House Care Centre,10620,Peoples Services Directorate,Nursing Care - Ext Provider,G311
http://statistics.data.gov.uk/id/local-authority/00BF,London Borough of Sutton,07/10/2016,4994257,"2,005.84",Bridge House Care Centre,10620,Peoples Services Directorate,Nursing Care - Ext Provider,G311
http://statistics.data.gov.uk/id/local-authority/00BF,London Borough of Sutton,07/10/2016,4994309,"2,034.96",Bridge House Care Centre,10620,Peoples Services Directorate,Nursing Care - Ext Provider,G311
http://statistics.data.gov.uk/id/local-authority/00BF,London Borough of Sutton,07/10/2016,4994315,"2,552.00",Bridge House Care Centre,10620,Peoples Services Directorate,Nursing Care - Ext Provider,G311
http://statistics.data.gov.uk/id/local-authority/00BF,London Borough of Sutton,07/10/2016,4994358,"1,996.00",Bridge House Care Centre,10620,Peoples Services Directorate,Nursing Care - Ext Provider,G311
http://statistics.data.gov.uk/id/local-authority/00BF,London Borough of Sutton,14/07/2016,6890152,"2,140.11",British Gas,10641,"Environment, Housing & Regeneration Directorate",Gas - General,D610
http://statistics.data.gov.uk/id/local-authority/00BF,London Borough of Sutton,07/10/2016,4994076,"2,710.40",British Home & Hospital For Incurables,10589,Peoples Services Directorate,Nursing Care - Ext Provider,G311
http://statistics.data.gov.uk/id/local-authority/00BF,London Borough of Sutton,07/10/2016,4994321,"2,439.36",British Home & Hospital For Incurables,10589,Peoples Services Directorate,Nursing Care - Ext Provider,G311
http://statistics.data.gov.uk/id/local-authority/00BF,London Borough of Sutton,07/10/2016,4994322,"2,439.36",British Home & Hospital For Incurables,10589,Peoples Services Directorate,Nursing Care - Ext Provider,G311
http://statistics.data.gov.uk/id/local-authority/00BF,London Borough of Sutton,05/10/2016,6893207,434.04,British Telecommunications Plc,10574,Peoples Services Directorate,Telephones - Installation,H252
http://statistics.data.gov.uk/id/local-authority/00BF,London Borough of Sutton,08/07/2016,6893209,434.04,British Telecommunications Plc,10574,Peoples Services Directorate,Telephones - Installation,H252
http://statistics.data.gov.uk/id/local-authority/00BF,London Borough of Sutton,07/10/2016,4994041,"2,945.00",Broadlands Nursing Home,10586,Peoples Services Directorate,Nursing Care - Ext Provider,G311
http://statistics.data.gov.uk/id/local-authority/00BF,London Borough of Sutton,07/10/2016,4994079,"3,277.16",Broadlands Nursing Home,10586,Peoples Services Directorate,Nursing Care - Ext Provider,G311
http://statistics.data.gov.uk/id/local-authority/00BF,London Borough of Sutton,07/10/2016,4994082,"2,088.64",Broadlands Nursing Home,10586,Peoples Services Directorate,Nursing Care - Ext Provider,G311
http://statistics.data.gov.uk/id/local-authority/00BF,London Borough of Sutton,07/10/2016,4994418,"2,444.00",Broadlands Nursing Home,10586,Peoples Services Directorate,Nursing Care - Ext Provider,G311
http://statistics.data.gov.uk/id/local-authority/00BF,London Borough of Sutton,07/10/2016,4994421,"1,835.60",Broadlands Nursing Home,10586,Peoples Services Directorate,Nursing Care - Ext Provider,G311
http://statistics.data.gov.uk/id/local-authority/00BF,London Borough of Sutton,30/09/2016,40003762,"5,271.39",Broadwood Educational Services Ltd,24807,Peoples Services Directorate,Residential Care-Children,G330
http://statistics.data.gov.uk/id/local-authority/00BF,London Borough of Sutton,01/10/2016,40004926,"18,157.01",Broadwood Educational Services Ltd,24807,Peoples Services Directorate,Residential Care-Children,G330
http://statistics.data.gov.uk/id/local-authority/00BF,London Borough of Sutton,07/10/2016,4994110,"2,242.72",Brook Care Homes (BH),10582,Peoples Services Directorate,Residential Care - Ext Provider,G310
http://statistics.data.gov.uk/id/local-authority/00BF,London Borough of Sutton,07/10/2016,4994254,"2,279.56",Brook Care Homes (BH),10582,Peoples Services Directorate,Residential Care - Ext Provider,G310
http://statistics.data.gov.uk/id/local-authority/00BF,London Borough of Sutton,07/10/2016,4994271,"3,694.60",Brook Care Homes (BH),10582,Peoples Services Directorate,Residential Care - Ext Provider,G310
http://statistics.data.gov.uk/id/local-authority/00BF,London Borough of Sutton,07/10/2016,4994277,"1,924.40",Brook Care Homes (BH),10582,Peoples Services Directorate,Residential Care - Ext Provider,G310
http://statistics.data.gov.uk/id/local-authority/00BF,London Borough of Sutton,07/10/2016,4994280,"6,090.00",Brook Care Homes (BH),10582,Peoples Services Directorate,Residential Care - Ext Provider,G310
http://statistics.data.gov.uk/id/local-authority/00BF,London Borough of Sutton,07/10/2016,4994282,"4,234.40",Brook Care Homes (BH),10582,Peoples Services Directorate,Residential Care - Ext Provider,G310
http://statistics.data.gov.uk/id/local-authority/00BF,London Borough of Sutton,07/10/2016,4994317,"3,150.56",Brook Care Homes (BH),10582,Peoples Services Directorate,Residential Care - Ext Provider,G310
http://statistics.data.gov.uk/id/local-authority/00BF,London Borough of Sutton,07/10/2016,4994343,"4,400.92",Brook Care Homes (BH),10582,Peoples Services Directorate,Residential Care - Ext Provider,G310
http://statistics.data.gov.uk/id/local-authority/00BF,London Borough of Sutton,07/10/2016,4994356,"2,639.00",Brook Care Homes (BH),10582,Peoples Services Directorate,Residential Care - Ext Provider,G310
http://statistics.data.gov.uk/id/local-authority/00BF,London Borough of Sutton,20/09/2016,6893967,"3,000.00",Brookfield Primary School,10624,Peoples Services Directorate,Building Works -Main Contractor,Y350
http://statistics.data.gov.uk/id/local-authority/00BF,London Borough of Sutton,20/09/2016,6893967,712.13,Brookfield Primary School,10624,Peoples Services Directorate,Building Works -Main Contractor,Y350
http://statistics.data.gov.uk/id/local-authority/00BF,London Borough of Sutton,30/09/2016,1225363,"2,505.00",Brunswick Cars 9761/1961276/Loc09,10611,Peoples Services Directorate,Hired Peoples Transport (Children),E072
http://statistics.data.gov.uk/id/local-authority/00BF,London Borough of Sutton,30/09/2016,1225365,720.00,Brunswick Cars 9761/1961276/Loc09,10611,Peoples Services Directorate,Hired Peoples Transport (Children),E072
http://statistics.data.gov.uk/id/local-authority/00BF,London Borough of Sutton,30/09/2016,1225366,"1,204.00",Brunswick Cars 9761/1961276/Loc09,10611,Peoples Services Directorate,Hired Peoples Transport (Children),E072
http://statistics.data.gov.uk/id/local-authority/00BF,London Borough of Sutton,30/09/2016,1225367,"1,419.00",Brunswick Cars 9761/1961276/Loc09,10611,Peoples Services Directorate,Hired Peoples Transport (Children),E072
http://statistics.data.gov.uk/id/local-authority/00BF,London Borough of Sutton,30/09/2016,1225368,"3,900.00",Brunswick Cars 9761/1961276/Loc09,10611,Peoples Services Directorate,Hired Peoples Transport (Children),E072
http://statistics.data.gov.uk/id/local-authority/00BF,London Borough of Sutton,30/09/2016,1225369,"2,906.00",Brunswick Cars 9761/1961276/Loc09,10611,Peoples Services Directorate,Hired Peoples Transport (Children),E072
http://statistics.data.gov.uk/id/local-authority/00BF,London Borough of Sutton,30/09/2016,1225370,998.00,Brunswick Cars 9761/1961276/Loc09,10611,Peoples Services Directorate,Hired Peoples Transport (Children),E072
http://statistics.data.gov.uk/id/local-authority/00BF,London Borough of Sutton,30/09/2016,1225371,880.00,Brunswick Cars 9761/1961276/Loc09,10611,Peoples Services Directorate,Hired Peoples Transport (Children),E072
http://statistics.data.gov.uk/id/local-authority/00BF,London Borough of Sutton,30/09/2016,1225372,"2,718.00",Brunswick Cars 9761/1961276/Loc09,10611,Peoples Services Directorate,Hired Peoples Transport (Children),E072
http://statistics.data.gov.uk/id/local-authority/00BF,London Borough of Sutton,30/09/2016,1225373,"2,386.50",Brunswick Cars 9761/1961276/Loc09,10611,Peoples Services Directorate,Hired Peoples Transport (Children),E072
http://statistics.data.gov.uk/id/local-authority/00BF,London Borough of Sutton,30/09/2016,1225374,"3,186.00",Brunswick Cars 9761/1961276/Loc09,10611,Peoples Services Directorate,Hired Peoples Transport (Children),E072
http://statistics.data.gov.uk/id/local-authority/00BF,London Borough of Sutton,30/09/2016,1225375,"2,525.00",Brunswick Cars 9761/1961276/Loc09,10611,Peoples Services Directorate,Hired Peoples Transport (Children),E072
http://statistics.data.gov.uk/id/local-authority/00BF,London Borough of Sutton,30/09/2016,1225376,"2,690.00",Brunswick Cars 9761/1961276/Loc09,10611,Peoples Services Directorate,Hired Peoples Transport (Children),E072
http://statistics.data.gov.uk/id/local-authority/00BF,London Borough of Sutton,30/09/2016,1225377,"1,444.00",Brunswick Cars 9761/1961276/Loc09,10611,Peoples Services Directorate,Hired Peoples Transport (Children),E072
http://statistics.data.gov.uk/id/local-authority/00BF,London Borough of Sutton,30/09/2016,1225378,"4,522.00",Brunswick Cars 9761/1961276/Loc09,10611,Peoples Services Directorate,Hired Peoples Transport (Children),E072
http://statistics.data.gov.uk/id/local-authority/00BF,London Borough of Sutton,30/09/2016,1225379,"2,090.00",Brunswick Cars 9761/1961276/Loc09,10611,Peoples Services Directorate,Hired Peoples Transport (Children),E072
http://statistics.data.gov.uk/id/local-authority/00BF,London Borough of Sutton,30/09/2016,1225380,"2,080.00",Brunswick Cars 9761/1961276/Loc09,10611,Peoples Services Directorate,Hired Peoples Transport (Children),E072
http://statistics.data.gov.uk/id/local-authority/00BF,London Borough of Sutton,30/09/2016,1225381,"1,760.00",Brunswick Cars 9761/1961276/Loc09,10611,Peoples Services Directorate,Hired Peoples Transport (Children),E072
http://statistics.data.gov.uk/id/local-authority/00BF,London Borough of Sutton,30/09/2016,1225382,"3,059.00",Brunswick Cars 9761/1961276/Loc09,10611,Peoples Services Directorate,Hired Peoples Transport (Children),E072
http://statistics.data.gov.uk/id/local-authority/00BF,London Borough of Sutton,30/09/2016,1225383,"5,472.00",Brunswick Cars 9761/1961276/Loc09,10611,Peoples Services Directorate,Hired Peoples Transport (Children),E072
http://statistics.data.gov.uk/id/local-authority/00BF,London Borough of Sutton,30/09/2016,1225384,"4,284.00",Brunswick Cars 9761/1961276/Loc09,10611,Peoples Services Directorate,Hired Peoples Transport (Children),E072
http://statistics.data.gov.uk/id/local-authority/00BF,London Borough of Sutton,30/09/2016,1225385,"3,781.00",Brunswick Cars 9761/1961276/Loc09,10611,Peoples Services Directorate,Hired Peoples Transport (Children),E072
http://statistics.data.gov.uk/id/local-authority/00BF,London Borough of Sutton,30/09/2016,1225386,"3,135.00",Brunswick Cars 9761/1961276/Loc09,10611,Peoples Services Directorate,Hired Peoples Transport (Children),E072
http://statistics.data.gov.uk/id/local-authority/00BF,London Borough of Sutton,30/09/2016,1225387,"2,040.00",Brunswick Cars 9761/1961276/Loc09,10611,Peoples Services Directorate,Hired Peoples Transport (Children),E072
http://statistics.data.gov.uk/id/local-authority/00BF,London Borough of Sutton,30/09/2016,1225388,"1,638.00",Brunswick Cars 9761/1961276/Loc09,10611,Peoples Services Directorate,Hired Peoples Transport (Children),E072
http://statistics.data.gov.uk/id/local-authority/00BF,London Borough of Sutton,30/09/2016,1225389,"2,826.00",Brunswick Cars 9761/1961276/Loc09,10611,Peoples Services Directorate,Hired Peoples Transport (Children),E072
http://statistics.data.gov.uk/id/local-authority/00BF,London Borough of Sutton,30/09/2016,1225390,"3,836.00",Brunswick Cars 9761/1961276/Loc09,10611,Peoples Services Directorate,Hired Peoples Transport (Children),E072
http://statistics.data.gov.uk/id/local-authority/00BF,London Borough of Sutton,30/09/2016,1225391,"1,940.00",Brunswick Cars 9761/1961276/Loc09,10611,Peoples Services Directorate,Hired Peoples Transport (Children),E072
http://statistics.data.gov.uk/id/local-authority/00BF,London Borough of Sutton,30/09/2016,1225392,"1,526.00",Brunswick Cars 9761/1961276/Loc09,10611,Peoples Services Directorate,Hired Peoples Transport (Children),E072
http://statistics.data.gov.uk/id/local-authority/00BF,London Borough of Sutton,30/09/2016,1225393,"1,020.00",Brunswick Cars 9761/1961276/Loc09,10611,Peoples Services Directorate,Hired Peoples Transport (Children),E072
http://statistics.data.gov.uk/id/local-authority/00BF,London Borough of Sutton,30/09/2016,1225394,"3,888.00",Brunswick Cars 9761/1961276/Loc09,10611,Peoples Services Directorate,Hired Peoples Transport (Children),E072
http://statistics.data.gov.uk/id/local-authority/00BF,London Borough of Sutton,30/09/2016,1225395,"1,512.00",Brunswick Cars 9761/1961276/Loc09,10611,Peoples Services Directorate,Hired Peoples Transport (Children),E072
http://statistics.data.gov.uk/id/local-authority/00BF,London Borough of Sutton,30/09/2016,1225396,"3,546.00",Brunswick Cars 9761/1961276/Loc09,10611,Peoples Services Directorate,Hired Peoples Transport (Children),E072
http://statistics.data.gov.uk/id/local-authority/00BF,London Borough of Sutton,30/09/2016,1225397,"1,760.00",Brunswick Cars 9761/1961276/Loc09,10611,Peoples Services Directorate,Hired Peoples Transport (Children),E072
http://statistics.data.gov.uk/id/local-authority/00BF,London Borough of Sutton,30/09/2016,1225398,"4,177.50",Brunswick Cars 9761/1961276/Loc09,10611,Peoples Services Directorate,Hired Peoples Transport (Children),E072
http://statistics.data.gov.uk/id/local-authority/00BF,London Borough of Sutton,30/09/2016,1225399,"5,481.00",Brunswick Cars 9761/1961276/Loc09,10611,Peoples Services Directorate,Hired Peoples Transport (Children),E072
http://statistics.data.gov.uk/id/local-authority/00BF,London Borough of Sutton,30/09/2016,1225400,"5,198.50",Brunswick Cars 9761/1961276/Loc09,10611,Peoples Services Directorate,Hired Peoples Transport (Children),E072
http://statistics.data.gov.uk/id/local-authority/00BF,London Borough of Sutton,30/09/2016,1225401,"2,070.00",Brunswick Cars 9761/1961276/Loc09,10611,Peoples Services Directorate,Hired Peoples Transport (Children),E072
http://statistics.data.gov.uk/id/local-authority/00BF,London Borough of Sutton,30/09/2016,1225402,"3,924.00",Brunswick Cars 9761/1961276/Loc09,10611,Peoples Services Directorate,Hired Peoples Transport (Children),E072
http://statistics.data.gov.uk/id/local-authority/00BF,London Borough of Sutton,30/09/2016,1225403,"4,821.00",Brunswick Cars 9761/1961276/Loc09,10611,Peoples Services Directorate,Hired Peoples Transport (Children),E072
http://statistics.data.gov.uk/id/local-authority/00BF,London Borough of Sutton,30/09/2016,1225404,"4,536.00",Brunswick Cars 9761/1961276/Loc09,10611,Peoples Services Directorate,Hired Peoples Transport (Children),E072
http://statistics.data.gov.uk/id/local-authority/00BF,London Borough of Sutton,30/09/2016,1225405,"2,318.00",Brunswick Cars 9761/1961276/Loc09,10611,Peoples Services Directorate,Hired Peoples Transport (Children),E072
http://statistics.data.gov.uk/id/local-authority/00BF,London Borough of Sutton,30/09/2016,1225406,"4,314.00",Brunswick Cars 9761/1961276/Loc09,10611,Peoples Services Directorate,Hired Peoples Transport (Children),E072
http://statistics.data.gov.uk/id/local-authority/00BF,London Borough of Sutton,30/09/2016,1225408,"5,089.50",Brunswick Cars 9761/1961276/Loc09,10611,Peoples Services Directorate,Hired Peoples Transport (Children),E072
http://statistics.data.gov.uk/id/local-authority/00BF,London Borough of Sutton,30/09/2016,1225409,"3,325.00",Brunswick Cars 9761/1961276/Loc09,10611,Peoples Services Directorate,Hired Peoples Transport (Children),E072
http://statistics.data.gov.uk/id/local-authority/00BF,London Borough of Sutton,30/09/2016,1225410,"2,926.00",Brunswick Cars 9761/1961276/Loc09,10611,Peoples Services Directorate,Hired Peoples Transport (Children),E072
http://statistics.data.gov.uk/id/local-authority/00BF,London Borough of Sutton,30/09/2016,1225411,"9,532.00",Brunswick Cars 9761/1961276/Loc09,10611,Peoples Services Directorate,Hired Peoples Transport (Children),E072
http://statistics.data.gov.uk/id/local-authority/00BF,London Borough of Sutton,30/09/2016,1225412,"4,890.00",Brunswick Cars 9761/1961276/Loc09,10611,Peoples Services Directorate,Hired Peoples Transport (Children),E072
http://statistics.data.gov.uk/id/local-authority/00BF,London Borough of Sutton,30/09/2016,1225413,"1,800.00",Brunswick Cars 9761/1961276/Loc09,10611,Peoples Services Directorate,Hired Peoples Transport (Children),E072
http://statistics.data.gov.uk/id/local-authority/00BF,London Borough of Sutton,30/09/2016,1225414,"1,890.00",Brunswick Cars 9761/1961276/Loc09,10611,Peoples Services Directorate,Hired Peoples Transport (Children),E072
http://statistics.data.gov.uk/id/local-authority/00BF,London Borough of Sutton,30/09/2016,1225415,"2,242.00",Brunswick Cars 9761/1961276/Loc09,10611,Peoples Services Directorate,Hired Peoples Transport (Children),E072
http://statistics.data.gov.uk/id/local-authority/00BF,London Borough of Sutton,30/09/2016,1225417,"4,050.00",Brunswick Cars 9761/1961276/Loc09,10611,Peoples Services Directorate,Hired Peoples Transport (Children),E072
http://statistics.data.gov.uk/id/local-authority/00BF,London Borough of Sutton,30/09/2016,1225418,630.00,Brunswick Cars 9761/1961276/Loc09,10611,Peoples Services Directorate,Hired Peoples Transport (Children),E072
http://statistics.data.gov.uk/id/local-authority/00BF,London Borough of Sutton,30/09/2016,1225420,"2,232.00",Brunswick Cars 9761/1961276/Loc09,10611,Peoples Services Directorate,Hired Peoples Transport (Children),E072
http://statistics.data.gov.uk/id/local-authority/00BF,London Borough of Sutton,30/09/2016,1225421,"1,638.00",Brunswick Cars 9761/1961276/Loc09,10611,Peoples Services Directorate,Hired Peoples Transport (Children),E072
http://statistics.data.gov.uk/id/local-authority/00BF,London Borough of Sutton,30/09/2016,1225422,"2,850.00",Brunswick Cars 9761/1961276/Loc09,10611,Peoples Services Directorate,Hired Peoples Transport (Children),E072
http://statistics.data.gov.uk/id/local-authority/00BF,London Borough of Sutton,30/09/2016,1225423,"4,428.00",Brunswick Cars 9761/1961276/Loc09,10611,Peoples Services Directorate,Hired Peoples Transport (Children),E072
http://statistics.data.gov.uk/id/local-authority/00BF,London Borough of Sutton,01/09/2016,4992668,"11,662.97",Bryn Melyn Care Ltd,27547,Peoples Services Directorate,Residential Care-Children,G330
http://statistics.data.gov.uk/id/local-authority/00BF,London Borough of Sutton,01/09/2016,4992668,"8,445.60",Bryn Melyn Care Ltd,27547,Peoples Services Directorate,Independent Schools,G325
http://statistics.data.gov.uk/id/local-authority/00BF,London Borough of Sutton,01/10/2016,6892918,"1,309.00",BSI British Standard Institute,17913,"Environment, Housing & Regeneration Directorate",Subscriptions - General,F450
http://statistics.data.gov.uk/id/local-authority/00BF,London Borough of Sutton,30/09/2016,6893810,825.00,Buller Hotel,23493,"Environment, Housing & Regeneration Directorate",Bed and Breakfast Accommodation,G400
http://statistics.data.gov.uk/id/local-authority/00BF,London Borough of Sutton,30/09/2016,6893811,990.00,Buller Hotel,23493,"Environment, Housing & Regeneration Directorate",Bed and Breakfast Accommodation,G400
http://statistics.data.gov.uk/id/local-authority/00BF,London Borough of Sutton,30/09/2016,6893812,792.00,Buller Hotel,23493,"Environment, Housing & Regeneration Directorate",Bed and Breakfast Accommodation,G400
http://statistics.data.gov.uk/id/local-authority/00BF,London Borough of Sutton,30/09/2016,6893814,495.00,Buller Hotel,23493,"Environment, Housing & Regeneration Directorate",Bed and Breakfast Accommodation,G400
http://statistics.data.gov.uk/id/local-authority/00BF,London Borough of Sutton,30/09/2016,6893816,840.00,Buller Hotel,23493,"Environment, Housing & Regeneration Directorate",Bed and Breakfast Accommodation,G400
http://statistics.data.gov.uk/id/local-authority/00BF,London Borough of Sutton,30/09/2016,6893817,476.00,Buller Hotel,23493,"Environment, Housing & Regeneration Directorate",Bed and Breakfast Accommodation,G400
http://statistics.data.gov.uk/id/local-authority/00BF,London Borough of Sutton,30/09/2016,6893818,990.00,Buller Hotel,23493,"Environment, Housing & Regeneration Directorate",Bed and Breakfast Accommodation,G400
http://statistics.data.gov.uk/id/local-authority/00BF,London Borough of Sutton,30/09/2016,6893820,495.00,Buller Hotel,23493,"Environment, Housing & Regeneration Directorate",Bed and Breakfast Accommodation,G400
http://statistics.data.gov.uk/id/local-authority/00BF,London Borough of Sutton,31/05/2016,6893826,"1,023.00",Buller Hotel,23493,"Environment, Housing & Regeneration Directorate",Bed and Breakfast Accommodation,G400
http://statistics.data.gov.uk/id/local-authority/00BF,London Borough of Sutton,31/05/2016,6893827,"1,023.00",Buller Hotel,23493,"Environment, Housing & Regeneration Directorate",Bed and Breakfast Accommodation,G400
http://statistics.data.gov.uk/id/local-authority/00BF,London Borough of Sutton,31/05/2016,6893828,"1,056.00",Buller Hotel,23493,"Environment, Housing & Regeneration Directorate",Bed and Breakfast Accommodation,G400
http://statistics.data.gov.uk/id/local-authority/00BF,London Borough of Sutton,31/05/2016,6893829,627.00,Buller Hotel,23493,"Environment, Housing & Regeneration Directorate",Bed and Breakfast Accommodation,G400
http://statistics.data.gov.uk/id/local-authority/00BF,London Borough of Sutton,31/05/2016,6893830,561.00,Buller Hotel,23493,"Environment, Housing & Regeneration Directorate",Bed and Breakfast Accommodation,G400
http://statistics.data.gov.uk/id/local-authority/00BF,London Borough of Sutton,31/05/2016,6893831,627.00,Buller Hotel,23493,"Environment, Housing & Regeneration Directorate",Bed and Breakfast Accommodation,G400
http://statistics.data.gov.uk/id/local-authority/00BF,London Borough of Sutton,31/05/2016,6893832,"1,023.00",Buller Hotel,23493,"Environment, Housing & Regeneration Directorate",Bed and Breakfast Accommodation,G400
http://statistics.data.gov.uk/id/local-authority/00BF,London Borough of Sutton,31/05/2016,6893833,868.00,Buller Hotel,23493,"Environment, Housing & Regeneration Directorate",Bed and Breakfast Accommodation,G400
http://statistics.data.gov.uk/id/local-authority/00BF,London Borough of Sutton,31/08/2016,6894416,"1,041.60",Buller Hotel,23493,"Environment, Housing & Regeneration Directorate",Bed and Breakfast Accommodation,G400
http://statistics.data.gov.uk/id/local-authority/00BF,London Borough of Sutton,31/08/2016,6894417,"1,227.60",Buller Hotel,23493,"Environment, Housing & Regeneration Directorate",Bed and Breakfast Accommodation,G400
http://statistics.data.gov.uk/id/local-authority/00BF,London Borough of Sutton,31/08/2016,6894418,594.00,Buller Hotel,23493,"Environment, Housing & Regeneration Directorate",Bed and Breakfast Accommodation,G400
http://statistics.data.gov.uk/id/local-authority/00BF,London Borough of Sutton,31/08/2016,6894420,831.60,Buller Hotel,23493,"Environment, Housing & Regeneration Directorate",Bed and Breakfast Accommodation,G400
http://statistics.data.gov.uk/id/local-authority/00BF,London Borough of Sutton,31/08/2016,6894422,"1,041.60",Buller Hotel,23493,"Environment, Housing & Regeneration Directorate",Bed and Breakfast Accommodation,G400
http://statistics.data.gov.uk/id/local-authority/00BF,London Borough of Sutton,31/08/2016,6894426,"1,227.60",Buller Hotel,23493,"Environment, Housing & Regeneration Directorate",Bed and Breakfast Accommodation,G400
http://statistics.data.gov.uk/id/local-authority/00BF,London Borough of Sutton,03/10/2016,1224704,500.00,Bumpsa Daisies Nurserys,10727,Peoples Services Directorate,Provider Contract Payments,F470
http://statistics.data.gov.uk/id/local-authority/00BF,London Borough of Sutton,17/10/2016,1225598,"9,105.80",Bumpsa Daisies Nurserys,10727,Peoples Services Directorate,Non-Maintained Childrens' Nurseries - 2 Year Olds,G404
http://statistics.data.gov.uk/id/local-authority/00BF,London Borough of Sutton,17/10/2016,1225663,"11,986.00",Bumpsa Daisies Nurserys,10727,Peoples Services Directorate,Non-Maintained Childrens' Nurseries - 3 Year Olds,G405
http://statistics.data.gov.uk/id/local-authority/00BF,London Borough of Sutton,21/10/2016,6894474,466.13,Bunzl Catering Supplies,10706,Peoples Services Directorate,Refreshments,F155
http://statistics.data.gov.uk/id/local-authority/00BF,London Borough of Sutton,07/10/2016,4994270,"1,868.00",Bupa Care Services,10175,Peoples Services Directorate,Residential Care - Ext Provider,G310
http://statistics.data.gov.uk/id/local-authority/00BF,London Borough of Sutton,07/10/2016,4994362,"1,971.80",Bupa Care Services,10175,Peoples Services Directorate,Nursing Care - Ext Provider,G311
http://statistics.data.gov.uk/id/local-authority/00BF,London Borough of Sutton,07/10/2016,4993972,"2,439.56",Burlington Nursing Home Ltd,19236,Peoples Services Directorate,Nursing Care - Ext Provider,G311
http://statistics.data.gov.uk/id/local-authority/00BF,London Borough of Sutton,03/10/2016,4992716,"6,002.81",Business Insights,17843,Peoples Services Directorate,Books,F006
http://statistics.data.gov.uk/id/local-authority/00BF,London Borough of Sutton,17/10/2016,1225600,"1,138.20",Busy Bees Day Nurseries Ltd - Cheam,24079,Peoples Services Directorate,Non-Maintained Childrens' Nurseries - 2 Year Olds,G404
http://statistics.data.gov.uk/id/local-authority/00BF,London Borough of Sutton,17/10/2016,1225665,"9,299.40",Busy Bees Day Nurseries Ltd - Cheam,24079,Peoples Services Directorate,Non-Maintained Childrens' Nurseries - 3 Year Olds,G405
http://statistics.data.gov.uk/id/local-authority/00BF,London Borough of Sutton,17/10/2016,1225599,"2,114.00",Busy Bees Day Nursery at Carshalton,24082,Peoples Services Directorate,Non-Maintained Childrens' Nurseries - 2 Year Olds,G404
http://statistics.data.gov.uk/id/local-authority/00BF,London Borough of Sutton,17/10/2016,1225664,"10,698.52",Busy Bees Day Nursery at Carshalton,24082,Peoples Services Directorate,Non-Maintained Childrens' Nurseries - 3 Year Olds,G405
http://statistics.data.gov.uk/id/local-authority/00BF,London Borough of Sutton,17/10/2016,1225601,"-1,349.80",Busy Bees Early Learning Ltd,25160,Peoples Services Directorate,Non-Maintained Childrens' Nurseries - 2 Year Olds,G404
http://statistics.data.gov.uk/id/local-authority/00BF,London Borough of Sutton,17/10/2016,1225666,-496.40,Busy Bees Early Learning Ltd,25160,Peoples Services Directorate,Non-Maintained Childrens' Nurseries - 3 Year Olds,G405
http://statistics.data.gov.uk/id/local-authority/00BF,London Borough of Sutton,07/10/2016,4993988,"7,824.28",Butterfly's Care Homes Ltd,28860,Peoples Services Directorate,Residential Care - Ext Provider,G310
http://statistics.data.gov.uk/id/local-authority/00BF,London Borough of Sutton,03/10/2016,6893085,436.00,C A & K Haywood,99898,"Environment, Housing & Regeneration Directorate",Depositors,X460
http://statistics.data.gov.uk/id/local-authority/00BF,London Borough of Sutton,03/10/2016,6893053,504.00,Caesar Investments UK Ltd,24923,"Environment, Housing & Regeneration Directorate",Bed and Breakfast Accommodation,G400
http://statistics.data.gov.uk/id/local-authority/00BF,London Borough of Sutton,10/10/2016,6893960,504.00,Caesar Investments UK Ltd,24923,"Environment, Housing & Regeneration Directorate",Bed and Breakfast Accommodation,G400
http://statistics.data.gov.uk/id/local-authority/00BF,London Borough of Sutton,17/10/2016,6894345,472.00,Caesar Investments UK Ltd,24923,"Environment, Housing & Regeneration Directorate",Bed and Breakfast Accommodation,G400
http://statistics.data.gov.uk/id/local-authority/00BF,London Borough of Sutton,24/10/2016,6894608,504.00,Caesar Investments UK Ltd,24923,"Environment, Housing & Regeneration Directorate",Bed and Breakfast Accommodation,G400
http://statistics.data.gov.uk/id/local-authority/00BF,London Borough of Sutton,14/10/2016,6894408,"25,000.00",Cale Solicitors,28576,Peoples Services Directorate,External Legal Fees (Corporate Legal Approved),F277
http://statistics.data.gov.uk/id/local-authority/00BF,London Borough of Sutton,12/08/2016,4992683,"15,390.00",Cambian Childcare Ltd,26117,Peoples Services Directorate,Residential Care-Children,G330
http://statistics.data.gov.uk/id/local-authority/00BF,London Borough of Sutton,07/10/2016,4993993,"4,296.92",Cambian Childcare Ltd,26117,Peoples Services Directorate,Residential Care - Ext Provider,G310
http://statistics.data.gov.uk/id/local-authority/00BF,London Borough of Sutton,28/09/2016,40004942,"15,234.42",Cambian Childcare Ltd,26117,Peoples Services Directorate,Residential Care-Children,G330
http://statistics.data.gov.uk/id/local-authority/00BF,London Borough of Sutton,07/10/2016,4994093,"3,884.56",Canterbury Oast Trust,10755,Peoples Services Directorate,Residential Care - Ext Provider,G310
http://statistics.data.gov.uk/id/local-authority/00BF,London Borough of Sutton,23/09/2016,6893550,"3,135.00",Capita Business Services Ltd,10780,Resources Directorate,Fees - Computer Software,F384
http://statistics.data.gov.uk/id/local-authority/00BF,London Borough of Sutton,08/07/2016,6892243,"1,500.00",Capita Treasury Solutions Ltd,16213,Non-Service Cost Centres Directorate,Fees - Consultants (Ad Hoc),F283
http://statistics.data.gov.uk/id/local-authority/00BF,London Borough of Sutton,01/10/2016,6893627,"8,000.00",Capita Treasury Solutions Ltd,16213,Non-Service Cost Centres Directorate,Fees - Consultants (Ad Hoc),F283
http://statistics.data.gov.uk/id/local-authority/00BF,London Borough of Sutton,15/09/2016,4992700,"3,600.00",Care and Support Initiatives at the Rectory,28678,Peoples Services Directorate,Approved Lodgings,H323
http://statistics.data.gov.uk/id/local-authority/00BF,London Borough of Sutton,07/10/2016,4994086,"2,267.40",Care Base(Redhill)Ltd t/a Acorn Court Care Home,24206,Peoples Services Directorate,Residential Care - Ext Provider,G310
http://statistics.data.gov.uk/id/local-authority/00BF,London Borough of Sutton,01/10/2016,6893116,"5,585.08",Care Connections Ltd,10798,Peoples Services Directorate,Supported Living - Ext Provider,G306
http://statistics.data.gov.uk/id/local-authority/00BF,London Borough of Sutton,24/10/2016,6894672,565.70,Care Connections Ltd,10798,Peoples Services Directorate,Supported Living - Ext Provider,G306
http://statistics.data.gov.uk/id/local-authority/00BF,London Borough of Sutton,24/10/2016,6894677,"1,722.73",Care Connections Ltd,10798,Peoples Services Directorate,Supported Living - Ext Provider,G306
http://statistics.data.gov.uk/id/local-authority/00BF,London Borough of Sutton,30/09/2016,6893200,"2,065.15",Care Monitoring 2000 Ltd,20716,Peoples Services Directorate,Telephones - Other Expenses,F373
http://statistics.data.gov.uk/id/local-authority/00BF,London Borough of Sutton,12/08/2016,5014752,"1,800.00",Care UK Homecare Ltd,10853,Peoples Services Directorate,Nursing Care - Ext Provider,G311
http://statistics.data.gov.uk/id/local-authority/00BF,London Borough of Sutton,12/08/2016,5014752,-429.62,Care UK Homecare Ltd,10853,Peoples Services Directorate,Nursing Care - 3rd party top up payment,G360
http://statistics.data.gov.uk/id/local-authority/00BF,London Borough of Sutton,01/09/2016,4993707,"5,070.00",Care Unlimited Domcare Ltd,28906,Peoples Services Directorate,Supported Living - Ext Provider,G306
http://statistics.data.gov.uk/id/local-authority/00BF,London Borough of Sutton,01/09/2016,40003354,"4,060.00",Care Unlimited Domcare Ltd,28906,Peoples Services Directorate,Supported Living - Ext Provider,G306
http://statistics.data.gov.uk/id/local-authority/00BF,London Borough of Sutton,01/09/2016,40003360,"4,060.00",Care Unlimited Domcare Ltd,28906,Peoples Services Directorate,Supported Living - Ext Provider,G306
http://statistics.data.gov.uk/id/local-authority/00BF,London Borough of Sutton,01/09/2016,40003361,"4,060.00",Care Unlimited Domcare Ltd,28906,Peoples Services Directorate,Supported Living - Ext Provider,G306
http://statistics.data.gov.uk/id/local-authority/00BF,London Borough of Sutton,01/09/2016,40003366,"4,060.00",Care Unlimited Domcare Ltd,28906,Peoples Services Directorate,Supported Living - Ext Provider,G306
http://statistics.data.gov.uk/id/local-authority/00BF,London Borough of Sutton,01/09/2016,40003367,"4,060.00",Care Unlimited Domcare Ltd,28906,Peoples Services Directorate,Supported Living - Ext Provider,G306
http://statistics.data.gov.uk/id/local-authority/00BF,London Borough of Sutton,07/10/2016,4994044,"2,550.00",Care Unlimited Group Ltd,10774,Peoples Services Directorate,Interim Placements - Ext Provider,G317
http://statistics.data.gov.uk/id/local-authority/00BF,London Borough of Sutton,07/10/2016,4994080,"2,940.00",Care Unlimited Group Ltd,10774,Peoples Services Directorate,Residential Care - Ext Provider,G310
http://statistics.data.gov.uk/id/local-authority/00BF,London Borough of Sutton,07/10/2016,4994123,"1,780.00",Care Unlimited Group Ltd,10774,Peoples Services Directorate,Residential Care - Ext Provider,G310
http://statistics.data.gov.uk/id/local-authority/00BF,London Borough of Sutton,07/10/2016,4994161,"1,692.00",Care Unlimited Group Ltd,10774,Peoples Services Directorate,Residential Care - Ext Provider,G310
http://statistics.data.gov.uk/id/local-authority/00BF,London Borough of Sutton,07/10/2016,4994407,"1,692.00",Care Unlimited Group Ltd,10774,Peoples Services Directorate,Interim Placements - Ext Provider,G317
http://statistics.data.gov.uk/id/local-authority/00BF,London Borough of Sutton,18/09/2016,4993068,538.62,Caremark (Sutton),25541,Peoples Services Directorate,Home Care,G334
http://statistics.data.gov.uk/id/local-authority/00BF,London Borough of Sutton,18/09/2016,4993239,538.62,Caremark (Sutton),25541,Peoples Services Directorate,Home Care,G334
http://statistics.data.gov.uk/id/local-authority/00BF,London Borough of Sutton,02/10/2016,4996605,538.62,Caremark (Sutton),25541,Peoples Services Directorate,Home Care,G334
http://statistics.data.gov.uk/id/local-authority/00BF,London Borough of Sutton,02/10/2016,4996611,538.62,Caremark (Sutton),25541,Peoples Services Directorate,Home Care,G334
http://statistics.data.gov.uk/id/local-authority/00BF,London Borough of Sutton,26/05/2015,4997271,846.25,Caremark (Sutton),25541,Peoples Services Directorate,Home Care,G334
http://statistics.data.gov.uk/id/local-authority/00BF,London Borough of Sutton,26/05/2015,4997272,940.24,Caremark (Sutton),25541,Peoples Services Directorate,Home Care,G334
http://statistics.data.gov.uk/id/local-authority/00BF,London Borough of Sutton,09/10/2016,4997283,538.62,Caremark (Sutton),25541,Peoples Services Directorate,Home Care,G334
http://statistics.data.gov.uk/id/local-authority/00BF,London Borough of Sutton,26/05/2015,4997301,869.07,Caremark (Sutton),25541,Peoples Services Directorate,Home Care,G334
http://statistics.data.gov.uk/id/local-authority/00BF,London Borough of Sutton,09/10/2016,4997316,538.62,Caremark (Sutton),25541,Peoples Services Directorate,Home Care,G334
http://statistics.data.gov.uk/id/local-authority/00BF,London Borough of Sutton,16/10/2016,40005389,538.62,Caremark (Sutton),25541,Peoples Services Directorate,Home Care,G334
http://statistics.data.gov.uk/id/local-authority/00BF,London Borough of Sutton,16/10/2016,40005548,538.62,Caremark (Sutton),25541,Peoples Services Directorate,Home Care,G334
http://statistics.data.gov.uk/id/local-authority/00BF,London Borough of Sutton,07/10/2016,4994077,"5,270.48",Caretech Community Services Ltd,10791,Peoples Services Directorate,Residential Care - Ext Provider,G310
http://statistics.data.gov.uk/id/local-authority/00BF,London Borough of Sutton,07/10/2016,4994294,"5,270.48",Caretech Community Services Ltd,10791,Peoples Services Directorate,Residential Care - Ext Provider,G310
http://statistics.data.gov.uk/id/local-authority/00BF,London Borough of Sutton,07/10/2016,4994337,"5,405.88",Caretech Community Services Ltd,10791,Peoples Services Directorate,Residential Care - Ext Provider,G310
http://statistics.data.gov.uk/id/local-authority/00BF,London Borough of Sutton,07/10/2016,4994408,"5,270.48",Caretech Community Services Ltd,10791,Peoples Services Directorate,Residential Care - Ext Provider,G310
http://statistics.data.gov.uk/id/local-authority/00BF,London Borough of Sutton,07/10/2016,4994068,"2,630.60",Carlene House,10763,Peoples Services Directorate,Residential Care - Ext Provider,G310
http://statistics.data.gov.uk/id/local-authority/00BF,London Borough of Sutton,07/10/2016,4994091,"2,625.28",Carlene House,10763,Peoples Services Directorate,Residential Care - Ext Provider,G310
http://statistics.data.gov.uk/id/local-authority/00BF,London Borough of Sutton,07/10/2016,4994316,"2,682.68",Carlene House,10763,Peoples Services Directorate,Residential Care - Ext Provider,G310
http://statistics.data.gov.uk/id/local-authority/00BF,London Borough of Sutton,07/10/2016,4994359,"2,625.28",Carlene House,10763,Peoples Services Directorate,Residential Care - Ext Provider,G310
http://statistics.data.gov.uk/id/local-authority/00BF,London Borough of Sutton,07/10/2016,4994365,"2,740.64",Carlene House,10763,Peoples Services Directorate,Residential Care - Ext Provider,G310
http://statistics.data.gov.uk/id/local-authority/00BF,London Borough of Sutton,07/10/2016,4994372,"4,440.00",Carlene House,10763,Peoples Services Directorate,Residential Care - Ext Provider,G310
http://statistics.data.gov.uk/id/local-authority/00BF,London Borough of Sutton,07/10/2016,4994395,"2,654.68",Carlene House,10763,Peoples Services Directorate,Residential Care - Ext Provider,G310
http://statistics.data.gov.uk/id/local-authority/00BF,London Borough of Sutton,17/10/2016,1225649,"1,422.30",Carly-Jo Etherington-Stanbrook,25990,Peoples Services Directorate,Non-Maintained Childrens' Nurseries - 2 Year Olds,G404
http://statistics.data.gov.uk/id/local-authority/00BF,London Borough of Sutton,17/10/2016,1225651,569.20,Caroline Brown,27834,Peoples Services Directorate,Non-Maintained Childrens' Nurseries - 2 Year Olds,G404
http://statistics.data.gov.uk/id/local-authority/00BF,London Borough of Sutton,21/10/2016,40003917,854.17,Redacted,99379,Peoples Services Directorate,Adoption Allowance,H330
http://statistics.data.gov.uk/id/local-authority/00BF,London Borough of Sutton,03/10/2016,6894809,"46,160.00",Carshalton Boys Sports College (Academy),23984,Peoples Services Directorate,Building Works -Main Contractor,Y350
http://statistics.data.gov.uk/id/local-authority/00BF,London Borough of Sutton,15/09/2016,4992708,"17,046.30",Castle Homes Ltd,10759,Peoples Services Directorate,Residential Care-Children,G330
http://statistics.data.gov.uk/id/local-authority/00BF,London Borough of Sutton,15/09/2016,4992709,"22,424.59",Castle Homes Ltd,10759,Peoples Services Directorate,Residential Care-Children,G330
http://statistics.data.gov.uk/id/local-authority/00BF,London Borough of Sutton,10/10/2016,6894401,"6,480.00",Castleton Software Solutions Ltd,28711,HRA Directorate,IT Equipment - Repair and Maintenance,F382
http://statistics.data.gov.uk/id/local-authority/00BF,London Borough of Sutton,17/10/2016,1225602,"6,790.86",Caterpillars Day Nursery,28020,Peoples Services Directorate,Non-Maintained Childrens' Nurseries - 2 Year Olds,G404
http://statistics.data.gov.uk/id/local-authority/00BF,London Borough of Sutton,17/10/2016,1225667,"9,607.20",Caterpillars Day Nursery,28020,Peoples Services Directorate,Non-Maintained Childrens' Nurseries - 3 Year Olds,G405
http://statistics.data.gov.uk/id/local-authority/00BF,London Borough of Sutton,12/10/2016,6894036,"1,055.95",Caysh Enterprise Cic,28016,Peoples Services Directorate,Approved Lodgings,H323
http://statistics.data.gov.uk/id/local-authority/00BF,London Borough of Sutton,26/10/2016,1226112,"29,666.67",Caysh Housing Project,23133,"Environment, Housing & Regeneration Directorate",Supporting People - Teenage Parent Services,H247
http://statistics.data.gov.uk/id/local-authority/00BF,London Borough of Sutton,30/09/2016,6892789,"1,164.00",Caysh Housing Project,23133,Peoples Services Directorate,Approved Lodgings,H323
http://statistics.data.gov.uk/id/local-authority/00BF,London Borough of Sutton,30/09/2016,6892790,"1,164.00",Caysh Housing Project,23133,Peoples Services Directorate,Approved Lodgings,H323
http://statistics.data.gov.uk/id/local-authority/00BF,London Borough of Sutton,30/09/2016,6892791,"1,164.00",Caysh Housing Project,23133,Peoples Services Directorate,Approved Lodgings,H323
http://statistics.data.gov.uk/id/local-authority/00BF,London Borough of Sutton,30/09/2016,6892792,"1,146.00",Caysh Housing Project,23133,Peoples Services Directorate,Approved Lodgings,H323
http://statistics.data.gov.uk/id/local-authority/00BF,London Borough of Sutton,30/09/2016,6892793,"1,146.00",Caysh Housing Project,23133,Peoples Services Directorate,Approved Lodgings,H323
http://statistics.data.gov.uk/id/local-authority/00BF,London Borough of Sutton,30/09/2016,6892794,"1,186.80",Caysh Housing Project,23133,Peoples Services Directorate,Approved Lodgings,H323
http://statistics.data.gov.uk/id/local-authority/00BF,London Borough of Sutton,30/09/2016,6892795,"1,141.80",Caysh Housing Project,23133,Peoples Services Directorate,Approved Lodgings,H323
http://statistics.data.gov.uk/id/local-authority/00BF,London Borough of Sutton,30/09/2016,6892796,"1,085.10",Caysh Housing Project,23133,Peoples Services Directorate,Approved Lodgings,H323
http://statistics.data.gov.uk/id/local-authority/00BF,London Borough of Sutton,30/09/2016,6892797,"1,141.80",Caysh Housing Project,23133,Peoples Services Directorate,Approved Lodgings,H323
http://statistics.data.gov.uk/id/local-authority/00BF,London Borough of Sutton,30/09/2016,6892798,"1,164.00",Caysh Housing Project,23133,Peoples Services Directorate,Approved Lodgings,H323
http://statistics.data.gov.uk/id/local-authority/00BF,London Borough of Sutton,30/09/2016,6892799,"1,141.80",Caysh Housing Project,23133,Peoples Services Directorate,Approved Lodgings,H323
http://statistics.data.gov.uk/id/local-authority/00BF,London Borough of Sutton,30/09/2016,6892800,"1,164.00",Caysh Housing Project,23133,Peoples Services Directorate,Approved Lodgings,H323
http://statistics.data.gov.uk/id/local-authority/00BF,London Borough of Sutton,30/09/2016,6892801,"1,146.00",Caysh Housing Project,23133,Peoples Services Directorate,Approved Lodgings,H323
http://statistics.data.gov.uk/id/local-authority/00BF,London Borough of Sutton,30/09/2016,6892841,"10,933.80",Caysh Housing Project,23133,Peoples Services Directorate,Approved Lodgings,H323
http://statistics.data.gov.uk/id/local-authority/00BF,London Borough of Sutton,03/10/2016,6893008,"3,993.00","CDARS, Community Drug and Alcohol Recovery Service",11089,"Environment, Housing & Regeneration Directorate",Provider Contract Payments,F470
http://statistics.data.gov.uk/id/local-authority/00BF,London Borough of Sutton,03/10/2016,6893009,"5,208.00","CDARS, Community Drug and Alcohol Recovery Service",11089,"Environment, Housing & Regeneration Directorate",Provider Contract Payments,F470
http://statistics.data.gov.uk/id/local-authority/00BF,London Borough of Sutton,03/06/2016,4993970,836.57,Central & Cecil Housing Trust,18882,Peoples Services Directorate,Residential Care - Ext Provider,G310
http://statistics.data.gov.uk/id/local-authority/00BF,London Borough of Sutton,03/06/2016,4993971,"3,347.14",Central & Cecil Housing Trust,18882,Peoples Services Directorate,Residential Care - Ext Provider,G310
http://statistics.data.gov.uk/id/local-authority/00BF,London Borough of Sutton,03/06/2016,4993975,"1,338.86",Central & Cecil Housing Trust,18882,Peoples Services Directorate,Residential Care - Ext Provider,G310
http://statistics.data.gov.uk/id/local-authority/00BF,London Borough of Sutton,03/06/2016,4994034,"2,599.57",Central & Cecil Housing Trust,18882,Peoples Services Directorate,Residential Care - Ext Provider,G310
http://statistics.data.gov.uk/id/local-authority/00BF,London Borough of Sutton,07/10/2016,6893392,"2,470.00",Centre For Mental Health Training Ltd,26823,"Environment, Housing & Regeneration Directorate",Fees - Consultants (Ad Hoc),F283
http://statistics.data.gov.uk/id/local-authority/00BF,London Borough of Sutton,01/08/2016,4992634,"14,571.30",Channels & Choices - Residential,25797,Peoples Services Directorate,Residential Care-Children,G330
http://statistics.data.gov.uk/id/local-authority/00BF,London Borough of Sutton,01/08/2016,4992635,"14,571.30",Channels & Choices - Residential,25797,Peoples Services Directorate,Residential Care-Children,G330
http://statistics.data.gov.uk/id/local-authority/00BF,London Borough of Sutton,01/09/2016,40004887,"15,057.01",Channels & Choices - Residential,25797,Peoples Services Directorate,Residential Care-Children,G330
http://statistics.data.gov.uk/id/local-authority/00BF,London Borough of Sutton,01/09/2016,40004888,"15,057.01",Channels & Choices - Residential,25797,Peoples Services Directorate,Residential Care-Children,G330
http://statistics.data.gov.uk/id/local-authority/00BF,London Borough of Sutton,10/10/2016,1225445,837.42,Cheam Baptist Church Pre-School,10924,Peoples Services Directorate,Top-up Funding,G064
http://statistics.data.gov.uk/id/local-authority/00BF,London Borough of Sutton,17/10/2016,1225603,796.54,Cheam Baptist Church Pre-School,10924,Peoples Services Directorate,Non-Maintained Childrens' Nurseries - 2 Year Olds,G404
http://statistics.data.gov.uk/id/local-authority/00BF,London Borough of Sutton,17/10/2016,1225668,"8,703.60",Cheam Baptist Church Pre-School,10924,Peoples Services Directorate,Non-Maintained Childrens' Nurseries - 3 Year Olds,G405
http://statistics.data.gov.uk/id/local-authority/00BF,London Borough of Sutton,01/10/2016,6893785,"1,000.00",Cheam Chamber of Trade,28321,"Environment, Housing & Regeneration Directorate",Assistance to Voluntary Organisations,F471
http://statistics.data.gov.uk/id/local-authority/00BF,London Borough of Sutton,02/09/2016,4994554,544.00,Cheam Common Junior Academy Extended Schools,26790,Peoples Services Directorate,Provider Contract Payments,F470
http://statistics.data.gov.uk/id/local-authority/00BF,London Borough of Sutton,02/09/2016,4994555,680.00,Cheam Common Junior Academy Extended Schools,26790,Peoples Services Directorate,Provider Contract Payments,F470
http://statistics.data.gov.uk/id/local-authority/00BF,London Borough of Sutton,02/09/2016,4994556,720.00,Cheam Common Junior Academy Extended Schools,26790,Peoples Services Directorate,Provider Contract Payments,F470
http://statistics.data.gov.uk/id/local-authority/00BF,London Borough of Sutton,02/09/2016,4994557,544.00,Cheam Common Junior Academy Extended Schools,26790,Peoples Services Directorate,Provider Contract Payments,F470
http://statistics.data.gov.uk/id/local-authority/00BF,London Borough of Sutton,02/09/2016,4994558,720.00,Cheam Common Junior Academy Extended Schools,26790,Peoples Services Directorate,Provider Contract Payments,F470
http://statistics.data.gov.uk/id/local-authority/00BF,London Borough of Sutton,02/09/2016,4994559,600.00,Cheam Common Junior Academy Extended Schools,26790,Peoples Services Directorate,Provider Contract Payments,F470
http://statistics.data.gov.uk/id/local-authority/00BF,London Borough of Sutton,02/09/2016,4994563,"1,200.00",Cheam Common Junior Academy Extended Schools,26790,Peoples Services Directorate,Provider Contract Payments,F470
http://statistics.data.gov.uk/id/local-authority/00BF,London Borough of Sutton,03/10/2016,6893004,715.00,Cheam Family Practice,10918,Peoples Services Directorate,Provider Contract Payments,F470
http://statistics.data.gov.uk/id/local-authority/00BF,London Borough of Sutton,04/10/2016,6893090,"1,620.00",Cheam Family Practice,10918,Peoples Services Directorate,Provider Contract Payments,F470
http://statistics.data.gov.uk/id/local-authority/00BF,London Borough of Sutton,05/10/2016,6893874,"4,302.00",Cheam Park Farm Primary School (LEO Academy Trust),23882,Peoples Services Directorate,Materials - General,F100
http://statistics.data.gov.uk/id/local-authority/00BF,London Borough of Sutton,20/09/2016,6893969,"35,000.00",Cheam Park Farm Primary School (LEO Academy Trust),23882,Peoples Services Directorate,External Fees  - Architects,Y100
http://statistics.data.gov.uk/id/local-authority/00BF,London Borough of Sutton,30/08/2016,6893182,443.70,Cheam Priory Day Centre,10894,Peoples Services Directorate,Home Care,G334
http://statistics.data.gov.uk/id/local-authority/00BF,London Borough of Sutton,29/09/2016,6893183,443.70,Cheam Priory Day Centre,10894,Peoples Services Directorate,Home Care,G334
http://statistics.data.gov.uk/id/local-authority/00BF,London Borough of Sutton,30/09/2016,1225813,900.00,Cheam Station Cars,15604,Peoples Services Directorate,Hired Peoples Transport (Children),E072
http://statistics.data.gov.uk/id/local-authority/00BF,London Borough of Sutton,30/09/2016,1225815,"3,230.00",Cheam Station Cars,15604,Peoples Services Directorate,Hired Peoples Transport (Children),E072
http://statistics.data.gov.uk/id/local-authority/00BF,London Borough of Sutton,30/09/2016,1225816,"1,210.00",Cheam Station Cars,15604,Peoples Services Directorate,Hired Peoples Transport (Children),E072
http://statistics.data.gov.uk/id/local-authority/00BF,London Borough of Sutton,30/09/2016,1225817,"1,140.00",Cheam Station Cars,15604,Peoples Services Directorate,Hired Peoples Transport (Children),E072
http://statistics.data.gov.uk/id/local-authority/00BF,London Borough of Sutton,30/09/2016,1225818,850.00,Cheam Station Cars,15604,Peoples Services Directorate,Hired Peoples Transport (Children),E072
http://statistics.data.gov.uk/id/local-authority/00BF,London Borough of Sutton,30/09/2016,1225819,"1,155.00",Cheam Station Cars,15604,Peoples Services Directorate,Hired Peoples Transport (Children),E072
http://statistics.data.gov.uk/id/local-authority/00BF,London Borough of Sutton,30/09/2016,1225820,"3,000.00",Cheam Station Cars,15604,Peoples Services Directorate,Hired Peoples Transport (Children),E072
http://statistics.data.gov.uk/id/local-authority/00BF,London Borough of Sutton,30/09/2016,1225821,"2,808.00",Cheam Station Cars,15604,Peoples Services Directorate,Hired Peoples Transport (Children),E072
http://statistics.data.gov.uk/id/local-authority/00BF,London Borough of Sutton,30/09/2016,1225822,"3,280.00",Cheam Station Cars,15604,Peoples Services Directorate,Hired Peoples Transport (Children),E072
http://statistics.data.gov.uk/id/local-authority/00BF,London Borough of Sutton,30/09/2016,1225823,450.00,Cheam Station Cars,15604,Peoples Services Directorate,Hired Peoples Transport (Children),E072
http://statistics.data.gov.uk/id/local-authority/00BF,London Borough of Sutton,30/09/2016,1225824,875.00,Cheam Station Cars,15604,Peoples Services Directorate,Hired Peoples Transport (Children),E072
http://statistics.data.gov.uk/id/local-authority/00BF,London Borough of Sutton,30/09/2016,1225825,630.00,Cheam Station Cars,15604,Peoples Services Directorate,Hired Peoples Transport (Children),E072
http://statistics.data.gov.uk/id/local-authority/00BF,London Borough of Sutton,30/09/2016,1225826,800.00,Cheam Station Cars,15604,Peoples Services Directorate,Hired Peoples Transport (Children),E072
http://statistics.data.gov.uk/id/local-authority/00BF,London Borough of Sutton,30/09/2016,1225828,875.00,Cheam Station Cars,15604,Peoples Services Directorate,Hired Peoples Transport (Children),E072
http://statistics.data.gov.uk/id/local-authority/00BF,London Borough of Sutton,30/09/2016,1225829,700.00,Cheam Station Cars,15604,Peoples Services Directorate,Hired Peoples Transport (Children),E072
http://statistics.data.gov.uk/id/local-authority/00BF,London Borough of Sutton,30/09/2016,1225831,"1,610.00",Cheam Station Cars,15604,Peoples Services Directorate,Hired Peoples Transport (Children),E072
http://statistics.data.gov.uk/id/local-authority/00BF,London Borough of Sutton,30/09/2016,1225832,576.00,Cheam Station Cars,15604,Peoples Services Directorate,Hired Peoples Transport (Children),E072
http://statistics.data.gov.uk/id/local-authority/00BF,London Borough of Sutton,30/09/2016,1225833,"3,358.00",Cheam Station Cars,15604,Peoples Services Directorate,Hired Peoples Transport (Children),E072
http://statistics.data.gov.uk/id/local-authority/00BF,London Borough of Sutton,30/09/2016,1225834,"1,924.00",Cheam Station Cars,15604,Peoples Services Directorate,Hired Peoples Transport (Children),E072
http://statistics.data.gov.uk/id/local-authority/00BF,London Borough of Sutton,30/09/2016,1225835,875.00,Cheam Station Cars,15604,Peoples Services Directorate,Hired Peoples Transport (Children),E072
http://statistics.data.gov.uk/id/local-authority/00BF,London Borough of Sutton,30/09/2016,1225836,594.00,Cheam Station Cars,15604,Peoples Services Directorate,Hired Peoples Transport (Children),E072
http://statistics.data.gov.uk/id/local-authority/00BF,London Borough of Sutton,30/09/2016,1225895,"1,150.00",Cheam Station Cars,15604,Peoples Services Directorate,Hired Peoples Transport (Children),E072
http://statistics.data.gov.uk/id/local-authority/00BF,London Borough of Sutton,30/09/2016,1225897,720.00,Cheam Station Cars,15604,Peoples Services Directorate,Hired Peoples Transport (Children),E072
http://statistics.data.gov.uk/id/local-authority/00BF,London Borough of Sutton,30/09/2016,1225897,"2,988.00",Cheam Station Cars,15604,Peoples Services Directorate,Hired Peoples Transport (Children),E072
http://statistics.data.gov.uk/id/local-authority/00BF,London Borough of Sutton,07/10/2016,4994050,"3,985.71",Chegworth Nursing Home Bayswift Ltd,10908,Peoples Services Directorate,Nursing Care - Short Term Placements,G328
http://statistics.data.gov.uk/id/local-authority/00BF,London Borough of Sutton,07/10/2016,4994072,"2,800.00",Chegworth Nursing Home Bayswift Ltd,10908,Peoples Services Directorate,Nursing Care - Ext Provider,G311
http://statistics.data.gov.uk/id/local-authority/00BF,London Borough of Sutton,07/10/2016,4994126,"2,352.00",Chegworth Nursing Home Bayswift Ltd,10908,Peoples Services Directorate,Nursing Care - Ext Provider,G311
http://statistics.data.gov.uk/id/local-authority/00BF,London Borough of Sutton,07/10/2016,4994142,"2,467.96",Chegworth Nursing Home Bayswift Ltd,10908,Peoples Services Directorate,Nursing Care - Ext Provider,G311
http://statistics.data.gov.uk/id/local-authority/00BF,London Borough of Sutton,07/10/2016,4994180,"2,147.31",Chegworth Nursing Home Bayswift Ltd,10908,Peoples Services Directorate,Nursing Care - Ext Provider,G311
http://statistics.data.gov.uk/id/local-authority/00BF,London Borough of Sutton,07/10/2016,4994203,"3,600.00",Chegworth Nursing Home Bayswift Ltd,10908,Peoples Services Directorate,Nursing Care - Ext Provider,G311
http://statistics.data.gov.uk/id/local-authority/00BF,London Borough of Sutton,07/10/2016,4994275,"2,019.96",Chegworth Nursing Home Bayswift Ltd,10908,Peoples Services Directorate,Nursing Care - Ext Provider,G311
http://statistics.data.gov.uk/id/local-authority/00BF,London Borough of Sutton,07/10/2016,4994288,"2,781.64",Chegworth Nursing Home Bayswift Ltd,10908,Peoples Services Directorate,Nursing Care - Ext Provider,G311
http://statistics.data.gov.uk/id/local-authority/00BF,London Borough of Sutton,07/10/2016,4994295,"1,904.00",Chegworth Nursing Home Bayswift Ltd,10908,Peoples Services Directorate,Nursing Care - Ext Provider,G311
http://statistics.data.gov.uk/id/local-authority/00BF,London Borough of Sutton,07/10/2016,4994390,"1,928.24",Chegworth Nursing Home Bayswift Ltd,10908,Peoples Services Directorate,Nursing Care - Ext Provider,G311
http://statistics.data.gov.uk/id/local-authority/00BF,London Borough of Sutton,07/10/2016,4994414,"2,539.84",Chegworth Nursing Home Bayswift Ltd,10908,Peoples Services Directorate,Nursing Care - Ext Provider,G311
http://statistics.data.gov.uk/id/local-authority/00BF,London Borough of Sutton,18/09/2016,4994991,588.00,Chenash Homecare Specialists And Care Agency,25667,Peoples Services Directorate,Home Care,G334
http://statistics.data.gov.uk/id/local-authority/00BF,London Borough of Sutton,18/09/2016,4994996,735.00,Chenash Homecare Specialists And Care Agency,25667,Peoples Services Directorate,Home Care,G334
http://statistics.data.gov.uk/id/local-authority/00BF,London Borough of Sutton,18/09/2016,4995018,518.00,Chenash Homecare Specialists And Care Agency,25667,Peoples Services Directorate,Home Care,G334
http://statistics.data.gov.uk/id/local-authority/00BF,London Borough of Sutton,18/09/2016,4995019,485.69,Chenash Homecare Specialists And Care Agency,25667,Peoples Services Directorate,Home Care,G334
http://statistics.data.gov.uk/id/local-authority/00BF,London Borough of Sutton,09/10/2016,40005385,462.00,Chenash Homecare Specialists And Care Agency,25667,Peoples Services Directorate,Home Care,G334
http://statistics.data.gov.uk/id/local-authority/00BF,London Borough of Sutton,25/09/2016,40005552,588.00,Chenash Homecare Specialists And Care Agency,25667,Peoples Services Directorate,Home Care,G334
http://statistics.data.gov.uk/id/local-authority/00BF,London Borough of Sutton,02/10/2016,40005553,588.00,Chenash Homecare Specialists And Care Agency,25667,Peoples Services Directorate,Home Care,G334
http://statistics.data.gov.uk/id/local-authority/00BF,London Borough of Sutton,09/10/2016,40005554,588.00,Chenash Homecare Specialists And Care Agency,25667,Peoples Services Directorate,Home Care,G334
http://statistics.data.gov.uk/id/local-authority/00BF,London Borough of Sutton,25/09/2016,40005559,735.00,Chenash Homecare Specialists And Care Agency,25667,Peoples Services Directorate,Home Care,G334
http://statistics.data.gov.uk/id/local-authority/00BF,London Borough of Sutton,02/10/2016,40005560,735.00,Chenash Homecare Specialists And Care Agency,25667,Peoples Services Directorate,Home Care,G334
http://statistics.data.gov.uk/id/local-authority/00BF,London Borough of Sutton,09/10/2016,40005561,735.00,Chenash Homecare Specialists And Care Agency,25667,Peoples Services Directorate,Home Care,G334
http://statistics.data.gov.uk/id/local-authority/00BF,London Borough of Sutton,25/09/2016,40005584,448.00,Chenash Homecare Specialists And Care Agency,25667,Peoples Services Directorate,Home Care,G334
http://statistics.data.gov.uk/id/local-authority/00BF,London Borough of Sutton,02/10/2016,40005585,441.00,Chenash Homecare Specialists And Care Agency,25667,Peoples Services Directorate,Home Care,G334
http://statistics.data.gov.uk/id/local-authority/00BF,London Borough of Sutton,09/10/2016,40005586,441.00,Chenash Homecare Specialists And Care Agency,25667,Peoples Services Directorate,Home Care,G334
http://statistics.data.gov.uk/id/local-authority/00BF,London Borough of Sutton,09/10/2016,40005607,490.00,Chenash Homecare Specialists And Care Agency,25667,Peoples Services Directorate,Home Care,G334
http://statistics.data.gov.uk/id/local-authority/00BF,London Borough of Sutton,25/09/2016,40005671,518.00,Chenash Homecare Specialists And Care Agency,25667,Peoples Services Directorate,Home Care,G334
http://statistics.data.gov.uk/id/local-authority/00BF,London Borough of Sutton,02/10/2016,40005672,546.00,Chenash Homecare Specialists And Care Agency,25667,Peoples Services Directorate,Home Care,G334
http://statistics.data.gov.uk/id/local-authority/00BF,London Borough of Sutton,09/10/2016,40005673,518.00,Chenash Homecare Specialists And Care Agency,25667,Peoples Services Directorate,Home Care,G334
http://statistics.data.gov.uk/id/local-authority/00BF,London Borough of Sutton,25/09/2016,40005674,462.00,Chenash Homecare Specialists And Care Agency,25667,Peoples Services Directorate,Home Care,G334
http://statistics.data.gov.uk/id/local-authority/00BF,London Borough of Sutton,02/10/2016,40005675,462.00,Chenash Homecare Specialists And Care Agency,25667,Peoples Services Directorate,Home Care,G334
http://statistics.data.gov.uk/id/local-authority/00BF,London Borough of Sutton,07/10/2016,4994324,"2,409.80",Cherry Lodge,10934,Peoples Services Directorate,Residential Care - Ext Provider,G310
http://statistics.data.gov.uk/id/local-authority/00BF,London Borough of Sutton,07/10/2016,4994338,"3,360.00",Cherry Lodge,10934,Peoples Services Directorate,Residential Care - Ext Provider,G310
http://statistics.data.gov.uk/id/local-authority/00BF,London Borough of Sutton,04/08/2016,4992680,"4,417.93",Children of All Nations,19625,Peoples Services Directorate,Foster Parents,G326
http://statistics.data.gov.uk/id/local-authority/00BF,London Borough of Sutton,14/09/2016,4992681,"4,417.93",Children of All Nations,19625,Peoples Services Directorate,Foster Parents,G326
http://statistics.data.gov.uk/id/local-authority/00BF,London Borough of Sutton,20/10/2016,40004947,"4,565.06",Children of All Nations,19625,Peoples Services Directorate,Foster Parents,G326
http://statistics.data.gov.uk/id/local-authority/00BF,London Borough of Sutton,20/10/2016,40004948,"4,565.06",Children of All Nations,19625,Peoples Services Directorate,Foster Parents,G326
http://statistics.data.gov.uk/id/local-authority/00BF,London Borough of Sutton,19/10/2016,1226041,"12,765.75",Children's Trust,10927,Peoples Services Directorate,NMSS Payments,G061
http://statistics.data.gov.uk/id/local-authority/00BF,London Borough of Sutton,19/10/2016,1226042,"12,765.75",Children's Trust,10927,Peoples Services Directorate,NMSS Payments,G061
http://statistics.data.gov.uk/id/local-authority/00BF,London Borough of Sutton,17/10/2016,1225669,"5,489.36",Chiltern Day Nursery,10941,Peoples Services Directorate,Non-Maintained Childrens' Nurseries - 3 Year Olds,G405
http://statistics.data.gov.uk/id/local-authority/00BF,London Borough of Sutton,07/10/2016,4994148,"7,682.20",Choice Care Group,22029,Peoples Services Directorate,Residential Care - Ext Provider,G310
http://statistics.data.gov.uk/id/local-authority/00BF,London Borough of Sutton,07/10/2016,4994304,"7,511.00",Choice Care Group,22029,Peoples Services Directorate,Residential Care - Ext Provider,G310
http://statistics.data.gov.uk/id/local-authority/00BF,London Borough of Sutton,07/10/2016,4994405,"7,511.00",Choice Care Group,22029,Peoples Services Directorate,Residential Care - Ext Provider,G310
http://statistics.data.gov.uk/id/local-authority/00BF,London Borough of Sutton,21/09/2016,40003320,739.20,Choice Support,22320,Peoples Services Directorate,Supported Living - Ext Provider,G306
http://statistics.data.gov.uk/id/local-authority/00BF,London Borough of Sutton,21/09/2016,40003320,"4,768.50",Choice Support,22320,Peoples Services Directorate,Supported Living - Ext Provider,G306
http://statistics.data.gov.uk/id/local-authority/00BF,London Borough of Sutton,21/09/2016,40003321,"3,135.32",Choice Support,22320,Peoples Services Directorate,Supported Living - Ext Provider,G306
http://statistics.data.gov.uk/id/local-authority/00BF,London Borough of Sutton,21/09/2016,40003321,528.00,Choice Support,22320,Peoples Services Directorate,Supported Living - Ext Provider,G306
http://statistics.data.gov.uk/id/local-authority/00BF,London Borough of Sutton,21/09/2016,40003321,"2,745.60",Choice Support,22320,Peoples Services Directorate,Supported Living - Ext Provider,G306
http://statistics.data.gov.uk/id/local-authority/00BF,London Borough of Sutton,21/09/2016,40003327,739.20,Choice Support,22320,Peoples Services Directorate,Supported Living - Ext Provider,G306
http://statistics.data.gov.uk/id/local-authority/00BF,London Borough of Sutton,21/09/2016,40003327,"4,874.10",Choice Support,22320,Peoples Services Directorate,Supported Living - Ext Provider,G306
http://statistics.data.gov.uk/id/local-authority/00BF,London Borough of Sutton,21/09/2016,40003328,739.20,Choice Support,22320,Peoples Services Directorate,Supported Living - Ext Provider,G306
http://statistics.data.gov.uk/id/local-authority/00BF,London Borough of Sutton,21/09/2016,40003328,"4,365.90",Choice Support,22320,Peoples Services Directorate,Supported Living - Ext Provider,G306
http://statistics.data.gov.uk/id/local-authority/00BF,London Borough of Sutton,21/09/2016,40003329,739.20,Choice Support,22320,Peoples Services Directorate,Supported Living - Ext Provider,G306
http://statistics.data.gov.uk/id/local-authority/00BF,London Borough of Sutton,21/09/2016,40003329,"5,111.70",Choice Support,22320,Peoples Services Directorate,Supported Living - Ext Provider,G306
http://statistics.data.gov.uk/id/local-authority/00BF,London Borough of Sutton,21/09/2016,40003330,"1,445.40",Choice Support,22320,Peoples Services Directorate,Supported Living - Ext Provider,G306
http://statistics.data.gov.uk/id/local-authority/00BF,London Borough of Sutton,21/09/2016,40003330,528.00,Choice Support,22320,Peoples Services Directorate,Supported Living - Ext Provider,G306
http://statistics.data.gov.uk/id/local-authority/00BF,London Borough of Sutton,21/09/2016,40003330,"1,748.99",Choice Support,22320,Peoples Services Directorate,Supported Living - Ext Provider,G306
http://statistics.data.gov.uk/id/local-authority/00BF,London Borough of Sutton,21/09/2016,40003339,739.20,Choice Support,22320,Peoples Services Directorate,Supported Living - Ext Provider,G306
http://statistics.data.gov.uk/id/local-authority/00BF,London Borough of Sutton,21/09/2016,40003339,"4,761.90",Choice Support,22320,Peoples Services Directorate,Supported Living - Ext Provider,G306
http://statistics.data.gov.uk/id/local-authority/00BF,London Borough of Sutton,21/09/2016,40003340,739.20,Choice Support,22320,Peoples Services Directorate,Supported Living - Ext Provider,G306
http://statistics.data.gov.uk/id/local-authority/00BF,London Borough of Sutton,21/09/2016,40003340,"5,091.90",Choice Support,22320,Peoples Services Directorate,Supported Living - Ext Provider,G306
http://statistics.data.gov.uk/id/local-authority/00BF,London Borough of Sutton,21/09/2016,40003341,"2,290.20",Choice Support,22320,Peoples Services Directorate,Supported Living - Ext Provider,G306
http://statistics.data.gov.uk/id/local-authority/00BF,London Borough of Sutton,21/09/2016,40003341,528.00,Choice Support,22320,Peoples Services Directorate,Supported Living - Ext Provider,G306
http://statistics.data.gov.uk/id/local-authority/00BF,London Borough of Sutton,21/09/2016,40003341,"1,484.99",Choice Support,22320,Peoples Services Directorate,Supported Living - Ext Provider,G306
http://statistics.data.gov.uk/id/local-authority/00BF,London Borough of Sutton,21/09/2016,40003348,739.20,Choice Support,22320,Peoples Services Directorate,Supported Living - Ext Provider,G306
http://statistics.data.gov.uk/id/local-authority/00BF,London Borough of Sutton,21/09/2016,40003348,"6,035.70",Choice Support,22320,Peoples Services Directorate,Supported Living - Ext Provider,G306
http://statistics.data.gov.uk/id/local-authority/00BF,London Borough of Sutton,21/09/2016,40003349,739.20,Choice Support,22320,Peoples Services Directorate,Supported Living - Ext Provider,G306
http://statistics.data.gov.uk/id/local-authority/00BF,London Borough of Sutton,21/09/2016,40003349,"5,501.10",Choice Support,22320,Peoples Services Directorate,Supported Living - Ext Provider,G306
http://statistics.data.gov.uk/id/local-authority/00BF,London Borough of Sutton,21/09/2016,40003350,"1,485.00",Choice Support,22320,Peoples Services Directorate,Supported Living - Ext Provider,G306
http://statistics.data.gov.uk/id/local-authority/00BF,London Borough of Sutton,21/09/2016,40003350,528.00,Choice Support,22320,Peoples Services Directorate,Supported Living - Ext Provider,G306
http://statistics.data.gov.uk/id/local-authority/00BF,London Borough of Sutton,21/09/2016,40003350,"1,550.99",Choice Support,22320,Peoples Services Directorate,Supported Living - Ext Provider,G306
http://statistics.data.gov.uk/id/local-authority/00BF,London Borough of Sutton,21/09/2016,40003351,"1,201.20",Choice Support,22320,Peoples Services Directorate,Supported Living - Ext Provider,G306
http://statistics.data.gov.uk/id/local-authority/00BF,London Borough of Sutton,21/09/2016,40003351,528.00,Choice Support,22320,Peoples Services Directorate,Supported Living - Ext Provider,G306
http://statistics.data.gov.uk/id/local-authority/00BF,London Borough of Sutton,21/09/2016,40003351,"1,623.59",Choice Support,22320,Peoples Services Directorate,Supported Living - Ext Provider,G306
http://statistics.data.gov.uk/id/local-authority/00BF,London Borough of Sutton,21/09/2016,40003357,"2,046.00",Choice Support,22320,Peoples Services Directorate,Supported Living - Ext Provider,G306
http://statistics.data.gov.uk/id/local-authority/00BF,London Borough of Sutton,21/09/2016,40003357,528.00,Choice Support,22320,Peoples Services Directorate,Supported Living - Ext Provider,G306
http://statistics.data.gov.uk/id/local-authority/00BF,London Borough of Sutton,21/09/2016,40003357,"1,319.99",Choice Support,22320,Peoples Services Directorate,Supported Living - Ext Provider,G306
http://statistics.data.gov.uk/id/local-authority/00BF,London Borough of Sutton,03/10/2016,1224704,"1,000.00",Christchurch Fledgelings Pre-School,10896,Peoples Services Directorate,Provider Contract Payments,F470
http://statistics.data.gov.uk/id/local-authority/00BF,London Borough of Sutton,17/10/2016,1225604,"5,804.20",Christchurch Fledgelings Pre-School,10896,Peoples Services Directorate,Non-Maintained Childrens' Nurseries - 2 Year Olds,G404
http://statistics.data.gov.uk/id/local-authority/00BF,London Borough of Sutton,17/10/2016,1225670,"4,005.20",Christchurch Fledgelings Pre-School,10896,Peoples Services Directorate,Non-Maintained Childrens' Nurseries - 3 Year Olds,G405
http://statistics.data.gov.uk/id/local-authority/00BF,London Borough of Sutton,16/08/2016,6889538,"8,976.88",Chroma Vision Limited,20351,"Environment, Housing & Regeneration Directorate",IT Equipment - Repair and Maintenance,F382
http://statistics.data.gov.uk/id/local-authority/00BF,London Borough of Sutton,16/08/2016,6889538,"7,236.87",Chroma Vision Limited,20351,"Environment, Housing & Regeneration Directorate",IT Equipment - Repair and Maintenance,F382
http://statistics.data.gov.uk/id/local-authority/00BF,London Borough of Sutton,26/09/2016,6892550,"3,123.00",Chroma Vision Limited,20351,"Environment, Housing & Regeneration Directorate",IT Equipment - Repair and Maintenance,F382
http://statistics.data.gov.uk/id/local-authority/00BF,London Borough of Sutton,04/10/2016,6893100,"8,976.88",Chroma Vision Limited,20351,"Environment, Housing & Regeneration Directorate",IT Equipment - Repair and Maintenance,F382
http://statistics.data.gov.uk/id/local-authority/00BF,London Borough of Sutton,04/10/2016,6893100,"7,236.87",Chroma Vision Limited,20351,"Environment, Housing & Regeneration Directorate",IT Equipment - Repair and Maintenance,F382
http://statistics.data.gov.uk/id/local-authority/00BF,London Borough of Sutton,28/07/2016,6894687,775.00,CIPFA Business Limited,12335,Resources Directorate,General Office Expenses,F235
http://statistics.data.gov.uk/id/local-authority/00BF,London Borough of Sutton,30/09/2016,6893355,"1,760.00",City Sprint UK (Excel) Ltd,26267,Peoples Services Directorate,Hired Vehicles,E070
http://statistics.data.gov.uk/id/local-authority/00BF,London Borough of Sutton,20/07/2016,6887602,"1,496.00",City Suburban Tree Surgeons,24817,"Environment, Housing & Regeneration Directorate",Trees,G401
http://statistics.data.gov.uk/id/local-authority/00BF,London Borough of Sutton,08/09/2016,6891313,"1,777.00",City Suburban Tree Surgeons,24817,"Environment, Housing & Regeneration Directorate",Trees,G401
http://statistics.data.gov.uk/id/local-authority/00BF,London Borough of Sutton,08/09/2016,6891316,"2,146.00",City Suburban Tree Surgeons,24817,"Environment, Housing & Regeneration Directorate",Emergency Repairs,D540
http://statistics.data.gov.uk/id/local-authority/00BF,London Borough of Sutton,01/10/2016,5014755,"-21,804.00",Cityglen Ltd T/A Hytyme ltd,24115,"Environment, Housing & Regeneration Directorate",Bed and Breakfast Accommodation,G400
http://statistics.data.gov.uk/id/local-authority/00BF,London Borough of Sutton,01/10/2016,6894137,"21,804.00",Cityglen Ltd T/A Hytyme ltd,24115,"Environment, Housing & Regeneration Directorate",Bed and Breakfast Accommodation,G400
http://statistics.data.gov.uk/id/local-authority/00BF,London Borough of Sutton,01/10/2016,6894368,"21,849.00",Cityglen Ltd T/A Hytyme ltd,24115,"Environment, Housing & Regeneration Directorate",Bed and Breakfast Accommodation,G400
http://statistics.data.gov.uk/id/local-authority/00BF,London Borough of Sutton,29/09/2016,6894276,900.00,Civica UK Ltd,10978,"Environment, Housing & Regeneration Directorate",Fees - Computer Software,F384
http://statistics.data.gov.uk/id/local-authority/00BF,London Borough of Sutton,01/10/2016,6893250,"2,520.00",CJS Plants,10997,"Environment, Housing & Regeneration Directorate",Other-Materials,F115
http://statistics.data.gov.uk/id/local-authority/00BF,London Borough of Sutton,01/10/2016,6893251,"2,716.00",CJS Plants,10997,"Environment, Housing & Regeneration Directorate",Other-Materials,F115
http://statistics.data.gov.uk/id/local-authority/00BF,London Borough of Sutton,01/10/2016,6893252,"2,824.00",CJS Plants,10997,"Environment, Housing & Regeneration Directorate",Other-Materials,F115
http://statistics.data.gov.uk/id/local-authority/00BF,London Borough of Sutton,01/10/2016,6893253,900.00,CJS Plants,10997,"Environment, Housing & Regeneration Directorate",Other-Materials,F115
http://statistics.data.gov.uk/id/local-authority/00BF,London Borough of Sutton,01/10/2016,6893263,"5,290.00",CJS Plants,10997,"Environment, Housing & Regeneration Directorate",Assistance to Voluntary Organisations,F471
http://statistics.data.gov.uk/id/local-authority/00BF,London Borough of Sutton,01/10/2016,6893264,"8,124.00",CJS Plants,10997,"Environment, Housing & Regeneration Directorate",Assistance to Voluntary Organisations,F471
http://statistics.data.gov.uk/id/local-authority/00BF,London Borough of Sutton,07/10/2016,4994040,"2,805.00",Claremont Care Svs Ltd,18724,Peoples Services Directorate,Nursing Care - Ext Provider,G311
http://statistics.data.gov.uk/id/local-authority/00BF,London Borough of Sutton,07/10/2016,4994230,"4,000.00",Claremont Care Svs Ltd,18724,Peoples Services Directorate,Nursing Care - Ext Provider,G311
http://statistics.data.gov.uk/id/local-authority/00BF,London Borough of Sutton,07/10/2016,4994308,"2,400.00",Claremont Care Svs Ltd,18724,Peoples Services Directorate,Interim Placements - Ext Provider,G317
http://statistics.data.gov.uk/id/local-authority/00BF,London Borough of Sutton,07/10/2016,4994348,"3,400.00",Claremont Care Svs Ltd,18724,Peoples Services Directorate,Nursing Care - Ext Provider,G311
http://statistics.data.gov.uk/id/local-authority/00BF,London Borough of Sutton,07/10/2016,4994423,"4,200.00",Claremont Care Svs Ltd,18724,Peoples Services Directorate,Nursing Care - Ext Provider,G311
http://statistics.data.gov.uk/id/local-authority/00BF,London Borough of Sutton,07/10/2016,4994208,"1,080.00",Clarity Treatment Services Ltd,26052,Peoples Services Directorate,Interim Placements - Ext Provider,G317
http://statistics.data.gov.uk/id/local-authority/00BF,London Borough of Sutton,23/05/2016,5014750,"11,849.73",Clifden House,21335,Peoples Services Directorate,Residential Care - Ext Provider,G310
http://statistics.data.gov.uk/id/local-authority/00BF,London Borough of Sutton,07/10/2016,4994117,"2,000.00",Cloyda Limited,20402,Peoples Services Directorate,Residential Care - Ext Provider,G310
http://statistics.data.gov.uk/id/local-authority/00BF,London Borough of Sutton,07/10/2016,4994043,"7,200.00",Cmg Homes Ltd,11026,Peoples Services Directorate,Residential Care - Ext Provider,G310
http://statistics.data.gov.uk/id/local-authority/00BF,London Borough of Sutton,07/10/2016,4994212,"7,000.00",Cmg Homes Ltd,11026,Peoples Services Directorate,Residential Care - Ext Provider,G310
http://statistics.data.gov.uk/id/local-authority/00BF,London Borough of Sutton,07/10/2016,4994237,"7,036.00",Cmg Homes Ltd,11026,Peoples Services Directorate,Residential Care - Ext Provider,G310
http://statistics.data.gov.uk/id/local-authority/00BF,London Borough of Sutton,07/10/2016,4994276,"5,416.92",Cmg Homes Ltd,11026,Peoples Services Directorate,Residential Care - Ext Provider,G310
http://statistics.data.gov.uk/id/local-authority/00BF,London Borough of Sutton,18/10/2016,4997266,"4,003.69",Cmg Homes Ltd,11026,Peoples Services Directorate,Supported Living - Ext Provider,G306
http://statistics.data.gov.uk/id/local-authority/00BF,London Borough of Sutton,18/10/2016,4997267,"4,592.43",Cmg Homes Ltd,11026,Peoples Services Directorate,Supported Living - Ext Provider,G306
http://statistics.data.gov.uk/id/local-authority/00BF,London Borough of Sutton,18/10/2016,4997269,"3,808.57",Cmg Homes Ltd,11026,Peoples Services Directorate,Supported Living - Ext Provider,G306
http://statistics.data.gov.uk/id/local-authority/00BF,London Borough of Sutton,30/09/2016,6893557,"1,444.73",Cobalt Telephone Technologies,15645,"Environment, Housing & Regeneration Directorate",General Office Expenses,F235
http://statistics.data.gov.uk/id/local-authority/00BF,London Borough of Sutton,17/10/2016,1225671,"8,301.00",Collingwood School,11094,Peoples Services Directorate,Non-Maintained Childrens' Nurseries - 3 Year Olds,G405
http://statistics.data.gov.uk/id/local-authority/00BF,London Borough of Sutton,29/09/2016,6892714,540.00,Comcir Radio Communications Ltd,22582,"Environment, Housing & Regeneration Directorate",Materials - General,F100
http://statistics.data.gov.uk/id/local-authority/00BF,London Borough of Sutton,19/09/2016,4993660,713.92,Comfort Care Services UK Ltd,17585,Peoples Services Directorate,Supported Living - Ext Provider,G306
http://statistics.data.gov.uk/id/local-authority/00BF,London Borough of Sutton,04/10/2016,6893056,579.87,Commercial & Plant Component Co,11047,"Environment, Housing & Regeneration Directorate",Materials - General,F100
http://statistics.data.gov.uk/id/local-authority/00BF,London Borough of Sutton,04/10/2016,40003562,476.00,Community Home Care Provider,11097,Peoples Services Directorate,Home Care,G334
http://statistics.data.gov.uk/id/local-authority/00BF,London Borough of Sutton,04/10/2016,40003564,675.00,Community Home Care Provider,11097,Peoples Services Directorate,Home Care,G334
http://statistics.data.gov.uk/id/local-authority/00BF,London Borough of Sutton,28/09/2016,40003567,675.00,Community Home Care Provider,11097,Peoples Services Directorate,Home Care,G334
http://statistics.data.gov.uk/id/local-authority/00BF,London Borough of Sutton,21/09/2016,40003570,476.00,Community Home Care Provider,11097,Peoples Services Directorate,Home Care,G334
http://statistics.data.gov.uk/id/local-authority/00BF,London Borough of Sutton,19/10/2016,40003575,661.50,Community Home Care Provider,11097,Peoples Services Directorate,Home Care,G334
http://statistics.data.gov.uk/id/local-authority/00BF,London Borough of Sutton,16/09/2016,40003576,476.00,Community Home Care Provider,11097,Peoples Services Directorate,Home Care,G334
http://statistics.data.gov.uk/id/local-authority/00BF,London Borough of Sutton,06/09/2016,40003578,537.75,Community Home Care Provider,11097,Peoples Services Directorate,Home Care,G334
http://statistics.data.gov.uk/id/local-authority/00BF,London Borough of Sutton,28/09/2016,40003585,476.00,Community Home Care Provider,11097,Peoples Services Directorate,Home Care,G334
http://statistics.data.gov.uk/id/local-authority/00BF,London Borough of Sutton,19/10/2016,40003589,476.00,Community Home Care Provider,11097,Peoples Services Directorate,Home Care,G334
http://statistics.data.gov.uk/id/local-authority/00BF,London Borough of Sutton,10/10/2016,40003592,476.00,Community Home Care Provider,11097,Peoples Services Directorate,Home Care,G334
http://statistics.data.gov.uk/id/local-authority/00BF,London Borough of Sutton,10/10/2016,40003593,661.50,Community Home Care Provider,11097,Peoples Services Directorate,Home Care,G334
http://statistics.data.gov.uk/id/local-authority/00BF,London Borough of Sutton,30/09/2016,6893589,"17,674.89",Community Options Ltd,24917,Peoples Services Directorate,Provider Contract Payments,F470
http://statistics.data.gov.uk/id/local-authority/00BF,London Borough of Sutton,17/10/2016,1225646,"1,707.40",Connie GBetuwa,99338,Peoples Services Directorate,Non-Maintained Childrens' Nurseries - 2 Year Olds,G404
http://statistics.data.gov.uk/id/local-authority/00BF,London Borough of Sutton,26/09/2016,6892882,"1,645.00",Conservation By Design Ltd,16409,"Environment, Housing & Regeneration Directorate",External Fees  - Other,Y130
http://statistics.data.gov.uk/id/local-authority/00BF,London Borough of Sutton,05/10/2016,6893406,"1,575.12",Contract Security Services,23827,Chief Executive's Directorate,Security - Cash In Transit,G410
http://statistics.data.gov.uk/id/local-authority/00BF,London Borough of Sutton,17/10/2016,1225636,"2,124.28",Co-operative Childcare,24665,Peoples Services Directorate,Non-Maintained Childrens' Nurseries - 2 Year Olds,G404
http://statistics.data.gov.uk/id/local-authority/00BF,London Borough of Sutton,17/10/2016,1225707,"11,990.40",Co-operative Childcare,24665,Peoples Services Directorate,Non-Maintained Childrens' Nurseries - 3 Year Olds,G405
http://statistics.data.gov.uk/id/local-authority/00BF,London Borough of Sutton,06/10/2016,6893363,"8,493.98",Corelogic Ltd,24747,Peoples Services Directorate,Fees - Computer Software,F384
http://statistics.data.gov.uk/id/local-authority/00BF,London Borough of Sutton,06/10/2016,6893364,"10,685.00",Corelogic Ltd,24747,Peoples Services Directorate,Fees - Computer Software,F384
http://statistics.data.gov.uk/id/local-authority/00BF,London Borough of Sutton,06/10/2016,6893365,"10,749.00",Corelogic Ltd,24747,Peoples Services Directorate,Fees - Computer Software,F384
http://statistics.data.gov.uk/id/local-authority/00BF,London Borough of Sutton,20/07/2016,6894459,"8,493.98",Corelogic Ltd,24747,Peoples Services Directorate,Fees - Computer Software,F384
http://statistics.data.gov.uk/id/local-authority/00BF,London Borough of Sutton,17/08/2016,4992667,"11,505.34",Cornerways - Fostering Services Ltd,11105,Peoples Services Directorate,Residential Care-Children,G330
http://statistics.data.gov.uk/id/local-authority/00BF,London Borough of Sutton,16/09/2016,40004892,"11,134.20",Cornerways - Fostering Services Ltd,11105,Peoples Services Directorate,Residential Care-Children,G330
http://statistics.data.gov.uk/id/local-authority/00BF,London Borough of Sutton,20/06/2016,6893360,"9,974.72",Cornerways Childrens Services Ltd,18435,Peoples Services Directorate,LAC - Education,F269
http://statistics.data.gov.uk/id/local-authority/00BF,London Borough of Sutton,31/08/2016,6892394,757.85,Corporate Document Services Ltd,11098,"Environment, Housing & Regeneration Directorate",Advertising/Publicity (non Staff),F240
http://statistics.data.gov.uk/id/local-authority/00BF,London Borough of Sutton,31/08/2016,6892395,693.45,Corporate Document Services Ltd,11098,"Environment, Housing & Regeneration Directorate",Advertising/Publicity (non Staff),F240
http://statistics.data.gov.uk/id/local-authority/00BF,London Borough of Sutton,30/09/2016,6892861,925.75,Corporate Document Services Ltd,11098,"Environment, Housing & Regeneration Directorate",Community Initiatives,F322
http://statistics.data.gov.uk/id/local-authority/00BF,London Borough of Sutton,30/09/2016,6893002,"18,308.87",Corporate Document Services Ltd,11098,Resources Directorate,Suspense/Holding Accounts,X550
http://statistics.data.gov.uk/id/local-authority/00BF,London Borough of Sutton,07/10/2016,4994409,"3,053.24",Cottisbraine House,11058,Peoples Services Directorate,Residential Care - Ext Provider,G310
http://statistics.data.gov.uk/id/local-authority/00BF,London Borough of Sutton,07/10/2016,6893411,"4,500.00",Craemer UK Ltd,23733,"Environment, Housing & Regeneration Directorate",Materials - General,F100
http://statistics.data.gov.uk/id/local-authority/00BF,London Borough of Sutton,01/10/2016,6892919,"166,565.17",Cranstoun,11184,Peoples Services Directorate,Provider Contract Payments,F470
http://statistics.data.gov.uk/id/local-authority/00BF,London Borough of Sutton,30/09/2016,6892920,"1,954.80",Crest Manor Ltd,25469,Peoples Services Directorate,Approved Lodgings,H323
http://statistics.data.gov.uk/id/local-authority/00BF,London Borough of Sutton,30/09/2016,6892921,"1,500.00",Crest Manor Ltd,25469,Peoples Services Directorate,Approved Lodgings,H323
http://statistics.data.gov.uk/id/local-authority/00BF,London Borough of Sutton,30/09/2016,6892922,874.80,Crest Manor Ltd,25469,Peoples Services Directorate,Approved Lodgings,H323
http://statistics.data.gov.uk/id/local-authority/00BF,London Borough of Sutton,30/09/2016,6892923,"2,019.90",Crest Manor Ltd,25469,Peoples Services Directorate,Approved Lodgings,H323
http://statistics.data.gov.uk/id/local-authority/00BF,London Borough of Sutton,30/09/2016,6892924,975.00,Crest Manor Ltd,25469,Peoples Services Directorate,Approved Lodgings,H323
http://statistics.data.gov.uk/id/local-authority/00BF,London Borough of Sutton,30/09/2016,6892925,845.00,Crest Manor Ltd,25469,Peoples Services Directorate,Approved Lodgings,H323
http://statistics.data.gov.uk/id/local-authority/00BF,London Borough of Sutton,30/09/2016,6892926,845.00,Crest Manor Ltd,25469,Peoples Services Directorate,Approved Lodgings,H323
http://statistics.data.gov.uk/id/local-authority/00BF,London Borough of Sutton,30/09/2016,6892927,"1,464.90",Crest Manor Ltd,25469,Peoples Services Directorate,Approved Lodgings,H323
http://statistics.data.gov.uk/id/local-authority/00BF,London Borough of Sutton,30/09/2016,1225842,"1,300.00",Cricket Green School,24359,Peoples Services Directorate,Special Educational Needs,G331
http://statistics.data.gov.uk/id/local-authority/00BF,London Borough of Sutton,30/09/2016,1225843,"2,600.00",Cricket Green School,24359,Peoples Services Directorate,Special Educational Needs,G331
http://statistics.data.gov.uk/id/local-authority/00BF,London Borough of Sutton,08/08/2016,6893979,450.00,Croham Services for Children Limited,20855,Peoples Services Directorate,Fostering Allowance - Respite/Emergency,H342
http://statistics.data.gov.uk/id/local-authority/00BF,London Borough of Sutton,07/10/2016,4994289,"2,502.47",Crossways Community,11187,Peoples Services Directorate,Residential Care - Ext Provider,G310
http://statistics.data.gov.uk/id/local-authority/00BF,London Borough of Sutton,01/10/2016,6893057,475.00,Croydon Care Solutions Ltd,24776,Peoples Services Directorate,Equipment,H250
http://statistics.data.gov.uk/id/local-authority/00BF,London Borough of Sutton,26/10/2016,1226113,"1,832.14",Croydon Churches Housing Association,19583,"Environment, Housing & Regeneration Directorate",Supporting People - Older People Services,H244
http://statistics.data.gov.uk/id/local-authority/00BF,London Borough of Sutton,30/09/2016,1225255,"3,135.00",Cruisers Ltd,18087,Peoples Services Directorate,Hired Peoples Transport (Children),E072
http://statistics.data.gov.uk/id/local-authority/00BF,London Borough of Sutton,30/09/2016,1225256,"2,718.00",Cruisers Ltd,18087,Peoples Services Directorate,Hired Peoples Transport (Children),E072
http://statistics.data.gov.uk/id/local-authority/00BF,London Borough of Sutton,07/10/2016,4994019,"8,926.00",CSS Ltd t/a Grove Care,19184,Peoples Services Directorate,Residential Care - Ext Provider,G310
http://statistics.data.gov.uk/id/local-authority/00BF,London Borough of Sutton,18/10/2016,6894259,427.00,Culvers House Primary School,11252,Peoples Services Directorate,Payments to Schools,G065
http://statistics.data.gov.uk/id/local-authority/00BF,London Borough of Sutton,08/10/2016,6894412,450.70,Culvers House Primary School,11252,Peoples Services Directorate,Payments to Schools,G065
http://statistics.data.gov.uk/id/local-authority/00BF,London Borough of Sutton,04/10/2016,6893141,550.00,Curve Solutions Ltd,23246,Peoples Services Directorate,Training - Course Fees,A520
http://statistics.data.gov.uk/id/local-authority/00BF,London Borough of Sutton,21/09/2016,6892163,-800.00,Cyclehoop Ltd,28489,"Environment, Housing & Regeneration Directorate",Surveys & Analysis,Y685
http://statistics.data.gov.uk/id/local-authority/00BF,London Borough of Sutton,12/10/2016,40003740,"7,907.10",Daley Bread Ltd T/A Daley Care,28917,Peoples Services Directorate,Approved Lodgings,H323
http://statistics.data.gov.uk/id/local-authority/00BF,London Borough of Sutton,12/10/2016,40003741,"9,664.20",Daley Bread Ltd T/A Daley Care,28917,Peoples Services Directorate,Accommodation - Supported Living,H201
http://statistics.data.gov.uk/id/local-authority/00BF,London Borough of Sutton,04/10/2016,6893146,"1,719.60",Deborah Klee Consultancy Ltd,25029,Peoples Services Directorate,Contractual Consultant Fees,G430
http://statistics.data.gov.uk/id/local-authority/00BF,London Borough of Sutton,30/09/2016,6893313,468.17,Deepstore Ltd,21074,Resources Directorate,Offsite Storage,F231
http://statistics.data.gov.uk/id/local-authority/00BF,London Borough of Sutton,30/09/2016,6893316,594.96,Deepstore Ltd,21074,Resources Directorate,Offsite Storage,F231
http://statistics.data.gov.uk/id/local-authority/00BF,London Borough of Sutton,30/09/2016,6893318,458.97,Deepstore Ltd,21074,Resources Directorate,Offsite Storage,F231
http://statistics.data.gov.uk/id/local-authority/00BF,London Borough of Sutton,01/09/2016,6892161,"1,705.00",Denhan Property Services,28353,"Environment, Housing & Regeneration Directorate",Bed and Breakfast Accommodation,G400
http://statistics.data.gov.uk/id/local-authority/00BF,London Borough of Sutton,01/09/2016,6892162,"1,410.50",Denhan Property Services,28353,"Environment, Housing & Regeneration Directorate",Bed and Breakfast Accommodation,G400
http://statistics.data.gov.uk/id/local-authority/00BF,London Borough of Sutton,01/09/2016,6892177,"1,116.00",Denhan Property Services,28353,"Environment, Housing & Regeneration Directorate",Bed and Breakfast Accommodation,G400
http://statistics.data.gov.uk/id/local-authority/00BF,London Borough of Sutton,30/09/2016,6892976,856.72,Dennis Eagle,11416,"Environment, Housing & Regeneration Directorate",Materials - General,F100
http://statistics.data.gov.uk/id/local-authority/00BF,London Borough of Sutton,03/10/2016,6893069,585.80,Dennis Eagle,11416,"Environment, Housing & Regeneration Directorate",Materials - General,F100
http://statistics.data.gov.uk/id/local-authority/00BF,London Borough of Sutton,11/10/2016,6893564,-585.80,Dennis Eagle,11416,"Environment, Housing & Regeneration Directorate",Materials - General,F100
http://statistics.data.gov.uk/id/local-authority/00BF,London Borough of Sutton,21/10/2016,6894489,"1,046.64",Dennis Eagle,11416,"Environment, Housing & Regeneration Directorate",Materials - General,F100
http://statistics.data.gov.uk/id/local-authority/00BF,London Borough of Sutton,26/10/2016,6894746,519.92,Dennis Eagle,11416,"Environment, Housing & Regeneration Directorate",Materials - General,F100
http://statistics.data.gov.uk/id/local-authority/00BF,London Borough of Sutton,27/09/2016,6892639,500.00,Devonshire Primary School,11321,Peoples Services Directorate,Payments to Schools,G065
http://statistics.data.gov.uk/id/local-authority/00BF,London Borough of Sutton,30/09/2016,6893237,"27,334.66",DHP (UK) Ltd,27763,Peoples Services Directorate,External Fees  - Psa,Y131
http://statistics.data.gov.uk/id/local-authority/00BF,London Borough of Sutton,05/09/2016,4993714,"3,496.00",Direct Care And Support Services,23268,Peoples Services Directorate,Supported Living - Ext Provider,G306
http://statistics.data.gov.uk/id/local-authority/00BF,London Borough of Sutton,04/10/2016,40003323,"2,268.00",Direct Care And Support Services,23268,Peoples Services Directorate,Supported Living - Ext Provider,G306
http://statistics.data.gov.uk/id/local-authority/00BF,London Borough of Sutton,04/10/2016,40003333,"2,280.30",Direct Care And Support Services,23268,Peoples Services Directorate,Supported Living - Ext Provider,G306
http://statistics.data.gov.uk/id/local-authority/00BF,London Borough of Sutton,05/10/2016,40003358,"3,132.80",Direct Care And Support Services,23268,Peoples Services Directorate,Supported Living - Ext Provider,G306
http://statistics.data.gov.uk/id/local-authority/00BF,London Borough of Sutton,04/10/2016,40003363,"2,417.40",Direct Care And Support Services,23268,Peoples Services Directorate,Supported Living - Ext Provider,G306
http://statistics.data.gov.uk/id/local-authority/00BF,London Borough of Sutton,04/10/2016,40003369,"3,496.00",Direct Care And Support Services,23268,Peoples Services Directorate,Supported Living - Ext Provider,G306
http://statistics.data.gov.uk/id/local-authority/00BF,London Borough of Sutton,05/10/2016,40003370,"2,664.48",Direct Care And Support Services,23268,Peoples Services Directorate,Supported Living - Ext Provider,G306
http://statistics.data.gov.uk/id/local-authority/00BF,London Borough of Sutton,01/07/2016,40003378,"4,212.00",Direct Care And Support Services,23268,Peoples Services Directorate,Supported Living - Ext Provider,G306
http://statistics.data.gov.uk/id/local-authority/00BF,London Borough of Sutton,30/09/2016,40003767,"4,385.76",Direct Care Ltd,28832,Peoples Services Directorate,Residential Care-Children,G330
http://statistics.data.gov.uk/id/local-authority/00BF,London Borough of Sutton,30/09/2016,6893236,"10,832.00",Disclosure & Barring Service (DBS),11206,Resources Directorate,DBS Checks,A506
http://statistics.data.gov.uk/id/local-authority/00BF,London Borough of Sutton,30/09/2016,6893236,"10,832.00",Disclosure & Barring Service (DBS),11206,Resources Directorate,DBS Checks,A506
http://statistics.data.gov.uk/id/local-authority/00BF,London Borough of Sutton,26/09/2016,6892727,"2,150.00",DMA Signs Limited,20534,"Environment, Housing & Regeneration Directorate",Notices And Signs,Y445
http://statistics.data.gov.uk/id/local-authority/00BF,London Borough of Sutton,17/10/2016,1225605,"5,446.70",Dolphin Day Nursery,11373,Peoples Services Directorate,Non-Maintained Childrens' Nurseries - 2 Year Olds,G404
http://statistics.data.gov.uk/id/local-authority/00BF,London Borough of Sutton,17/10/2016,1225672,"4,279.60",Dolphin Day Nursery,11373,Peoples Services Directorate,Non-Maintained Childrens' Nurseries - 3 Year Olds,G405
http://statistics.data.gov.uk/id/local-authority/00BF,London Borough of Sutton,17/10/2016,1225645,569.20,Donna Dobson,28335,Peoples Services Directorate,Non-Maintained Childrens' Nurseries - 2 Year Olds,G404
http://statistics.data.gov.uk/id/local-authority/00BF,London Borough of Sutton,04/10/2016,6893054,852.50,Dr  Kangalingam Sugumar,25742,Peoples Services Directorate,Provider Contract Payments,F470
http://statistics.data.gov.uk/id/local-authority/00BF,London Borough of Sutton,06/10/2016,6893772,640.00,Dr  Kangalingam Sugumar,25742,Peoples Services Directorate,Provider Contract Payments,F470
http://statistics.data.gov.uk/id/local-authority/00BF,London Borough of Sutton,30/09/2016,6893076,580.00,Dr Danielle Shbero,28728,Peoples Services Directorate,Personal Requisites,F106
http://statistics.data.gov.uk/id/local-authority/00BF,London Borough of Sutton,27/09/2016,6893533,"3,304.00",Dr M O Oladinni,26649,Peoples Services Directorate,Fees - Other,F299
http://statistics.data.gov.uk/id/local-authority/00BF,London Borough of Sutton,28/09/2016,6892900,577.50,Dr Pattani & Partners,25731,Peoples Services Directorate,Provider Contract Payments,F470
http://statistics.data.gov.uk/id/local-authority/00BF,London Borough of Sutton,10/10/2016,6893773,"1,787.50",Dr R Seyan & Dr A Saffar & Dr M Rodin,25745,Peoples Services Directorate,Provider Contract Payments,F470
http://statistics.data.gov.uk/id/local-authority/00BF,London Borough of Sutton,06/10/2016,6893774,880.00,Dr R Seyan & Dr A Saffar & Dr M Rodin,25745,Peoples Services Directorate,Provider Contract Payments,F470
http://statistics.data.gov.uk/id/local-authority/00BF,London Borough of Sutton,30/09/2016,6893465,"1,420.00",Dr S Grice & Partners,25737,Peoples Services Directorate,Provider Contract Payments,F470
http://statistics.data.gov.uk/id/local-authority/00BF,London Borough of Sutton,07/10/2016,6893467,742.50,Dr S Grice & Partners,25737,Peoples Services Directorate,Provider Contract Payments,F470
http://statistics.data.gov.uk/id/local-authority/00BF,London Borough of Sutton,05/10/2016,6893234,467.50,Dr S Kanthan and Dr K Kanthan,28475,Peoples Services Directorate,Provider Contract Payments,F470
http://statistics.data.gov.uk/id/local-authority/00BF,London Borough of Sutton,03/10/2016,6892995,"1,100.00",Dr Satish Durgam,28486,Peoples Services Directorate,Provider Contract Payments,F470
http://statistics.data.gov.uk/id/local-authority/00BF,London Borough of Sutton,17/10/2016,6894260,"1,457.50",Dr T H Toosy and Dr Raza Toosy (Park Road Medical),14524,Peoples Services Directorate,Provider Contract Payments,F470
http://statistics.data.gov.uk/id/local-authority/00BF,London Borough of Sutton,15/08/2016,6889494,650.00,Drama Buds,28563,Peoples Services Directorate,Other Services,F340
http://statistics.data.gov.uk/id/local-authority/00BF,London Borough of Sutton,03/10/2016,6892989,797.50,Drs Jolley and Dutta,25741,Peoples Services Directorate,Provider Contract Payments,F470
http://statistics.data.gov.uk/id/local-authority/00BF,London Borough of Sutton,03/10/2016,6892990,"1,237.50",Drs Muktar & Partners,28421,Peoples Services Directorate,Provider Contract Payments,F470
http://statistics.data.gov.uk/id/local-authority/00BF,London Borough of Sutton,29/09/2016,6892742,"1,077.77",DSI Billing Services Ltd,17962,Resources Directorate,Postages - General,F350
http://statistics.data.gov.uk/id/local-authority/00BF,London Borough of Sutton,06/10/2016,6893328,562.18,DSI Billing Services Ltd,17962,Resources Directorate,Postages - General,F350
http://statistics.data.gov.uk/id/local-authority/00BF,London Borough of Sutton,13/10/2016,6893935,"1,468.37",DSI Billing Services Ltd,17962,Resources Directorate,Postages - General,F350
http://statistics.data.gov.uk/id/local-authority/00BF,London Borough of Sutton,20/10/2016,6894430,"1,316.18",DSI Billing Services Ltd,17962,Resources Directorate,Postages - General,F350
http://statistics.data.gov.uk/id/local-authority/00BF,London Borough of Sutton,27/10/2016,6894890,"2,713.82",DSI Billing Services Ltd,17962,Resources Directorate,Postage Central Recharge,F351
http://statistics.data.gov.uk/id/local-authority/00BF,London Borough of Sutton,03/10/2016,6893050,"11,200.00",Due North Limited,22671,Chief Executive's Directorate,Purchase of IT Equipment,F380
http://statistics.data.gov.uk/id/local-authority/00BF,London Borough of Sutton,26/09/2016,4992695,"2,000.00",Dunfield & Mead Ltd,28055,Peoples Services Directorate,Accommodation - Supported Living,H201
http://statistics.data.gov.uk/id/local-authority/00BF,London Borough of Sutton,26/09/2016,4992696,"2,000.00",Dunfield & Mead Ltd,28055,Peoples Services Directorate,Accommodation - Supported Living,H201
http://statistics.data.gov.uk/id/local-authority/00BF,London Borough of Sutton,26/09/2016,4992697,"1,800.00",Dunfield & Mead Ltd,28055,Peoples Services Directorate,Accommodation - Supported Living,H201
http://statistics.data.gov.uk/id/local-authority/00BF,London Borough of Sutton,26/09/2016,4992698,"2,000.00",Dunfield & Mead Ltd,28055,Peoples Services Directorate,Accommodation - Supported Living,H201
http://statistics.data.gov.uk/id/local-authority/00BF,London Borough of Sutton,26/09/2016,4992701,"2,000.00",Dunfield & Mead Ltd,28055,Peoples Services Directorate,Accommodation - Supported Living,H201
http://statistics.data.gov.uk/id/local-authority/00BF,London Borough of Sutton,26/09/2016,4992702,"2,000.00",Dunfield & Mead Ltd,28055,Peoples Services Directorate,Accommodation - Supported Living,H201
http://statistics.data.gov.uk/id/local-authority/00BF,London Borough of Sutton,26/09/2016,4992703,"2,000.00",Dunfield & Mead Ltd,28055,Peoples Services Directorate,Accommodation - Supported Living,H201
http://statistics.data.gov.uk/id/local-authority/00BF,London Borough of Sutton,26/09/2016,4992704,"1,800.00",Dunfield & Mead Ltd,28055,Peoples Services Directorate,Accommodation - Supported Living,H201
http://statistics.data.gov.uk/id/local-authority/00BF,London Borough of Sutton,26/09/2016,4992705,"1,800.00",Dunfield & Mead Ltd,28055,Peoples Services Directorate,Accommodation - Supported Living,H201
http://statistics.data.gov.uk/id/local-authority/00BF,London Borough of Sutton,12/09/2016,6892843,"2,000.00",Dunfield & Mead Ltd,28055,Peoples Services Directorate,Approved Lodgings,H323
http://statistics.data.gov.uk/id/local-authority/00BF,London Borough of Sutton,12/09/2016,6892844,"2,000.00",Dunfield & Mead Ltd,28055,Peoples Services Directorate,Approved Lodgings,H323
http://statistics.data.gov.uk/id/local-authority/00BF,London Borough of Sutton,12/09/2016,6892845,"2,000.00",Dunfield & Mead Ltd,28055,Peoples Services Directorate,Approved Lodgings,H323
http://statistics.data.gov.uk/id/local-authority/00BF,London Borough of Sutton,12/09/2016,6892846,"2,000.00",Dunfield & Mead Ltd,28055,Peoples Services Directorate,Approved Lodgings,H323
http://statistics.data.gov.uk/id/local-authority/00BF,London Borough of Sutton,07/10/2016,4994274,"2,999.92",Dunheved Lodge,11403,Peoples Services Directorate,Residential Care - Ext Provider,G310
http://statistics.data.gov.uk/id/local-authority/00BF,London Borough of Sutton,01/12/2015,6892834,832.65,E & R Moffat Ltd,97126,Peoples Services Directorate,Other Equipment - Purchase,F015
http://statistics.data.gov.uk/id/local-authority/00BF,London Borough of Sutton,05/08/2016,6892835,874.50,E & R Moffat Ltd,97126,Peoples Services Directorate,Other Equipment - Purchase,F015
http://statistics.data.gov.uk/id/local-authority/00BF,London Borough of Sutton,31/08/2016,6892810,"2,443.00",E Homes And Shelters,28378,"Environment, Housing & Regeneration Directorate",Bed and Breakfast Accommodation,G400
http://statistics.data.gov.uk/id/local-authority/00BF,London Borough of Sutton,30/09/2016,6893545,"3,111.00",E Homes And Shelters,28378,"Environment, Housing & Regeneration Directorate",Bed and Breakfast Accommodation,G400
http://statistics.data.gov.uk/id/local-authority/00BF,London Borough of Sutton,27/09/2016,6893154,806.40,Earth Anchors Ltd,15290,"Environment, Housing & Regeneration Directorate",Special,D535
http://statistics.data.gov.uk/id/local-authority/00BF,London Borough of Sutton,07/10/2016,4993984,"3,300.00",Eastcroft Nursing Home,11420,Peoples Services Directorate,Nursing Care - Ext Provider,G311
http://statistics.data.gov.uk/id/local-authority/00BF,London Borough of Sutton,30/09/2016,6893618,730.85,Ecolocal Services Ltd,11438,Resources Directorate,Courier Post,F355
http://statistics.data.gov.uk/id/local-authority/00BF,London Borough of Sutton,27/10/2016,6894877,"7,427.04",Econ Engineering Ltd,11432,"Environment, Housing & Regeneration Directorate",Council Transport,E060
http://statistics.data.gov.uk/id/local-authority/00BF,London Borough of Sutton,13/10/2016,6893899,"1,296.80",Ede's (UK) Ltd,16609,Peoples Services Directorate,Equipment -General,Y520
http://statistics.data.gov.uk/id/local-authority/00BF,London Borough of Sutton,22/09/2016,6893139,-617.26,EDF Energy (Seeboard),13999,HRA Directorate,Electricity - Anti Hypothermia Heating,D622
http://statistics.data.gov.uk/id/local-authority/00BF,London Borough of Sutton,03/10/2016,6893548,"1,185.27",EDF Energy (Seeboard),13999,"Environment, Housing & Regeneration Directorate",Electricity - General,D620
http://statistics.data.gov.uk/id/local-authority/00BF,London Borough of Sutton,04/10/2016,6893697,-593.84,EDF Energy (Seeboard),13999,HRA Directorate,Electricity - Anti Hypothermia Heating,D622
http://statistics.data.gov.uk/id/local-authority/00BF,London Borough of Sutton,04/10/2016,6893697,672.12,EDF Energy (Seeboard),13999,HRA Directorate,Electricity - Anti Hypothermia Heating,D622
http://statistics.data.gov.uk/id/local-authority/00BF,London Borough of Sutton,27/10/2016,6894848,"2,631.00",Edward Hanlon,99898,"Environment, Housing & Regeneration Directorate",Depositors,X460
http://statistics.data.gov.uk/id/local-authority/00BF,London Borough of Sutton,24/09/2016,6893030,"7,190.17",EE Airtime,24846,Resources Directorate,Telephones - Rentals,F370
http://statistics.data.gov.uk/id/local-authority/00BF,London Borough of Sutton,24/09/2016,6893031,538.52,EE Airtime,24846,Resources Directorate,Telephones - Rentals,F370
http://statistics.data.gov.uk/id/local-authority/00BF,London Borough of Sutton,30/09/2016,6893046,"4,000.00",Eldercare,22163,Peoples Services Directorate,Agency Services,G431
http://statistics.data.gov.uk/id/local-authority/00BF,London Borough of Sutton,30/09/2016,6893047,"13,484.22",Eldercare,22163,HRA Directorate,Supporting People - Alarm Services,H237
http://statistics.data.gov.uk/id/local-authority/00BF,London Borough of Sutton,30/09/2016,6893144,"7,333.90",Eldercare,22163,Peoples Services Directorate,Agency Services,G431
http://statistics.data.gov.uk/id/local-authority/00BF,London Borough of Sutton,30/09/2016,6893145,"4,818.54",Eldercare,22163,Peoples Services Directorate,Equipment,H250
http://statistics.data.gov.uk/id/local-authority/00BF,London Borough of Sutton,07/10/2016,4994005,"4,484.80",Eleanor Nursing & Social Care Ltd,25134,Peoples Services Directorate,Residential Care - Ext Provider,G310
http://statistics.data.gov.uk/id/local-authority/00BF,London Borough of Sutton,21/09/2016,6892598,"1,782.48",Elizabethan Security,22830,"Environment, Housing & Regeneration Directorate",Special,D535
http://statistics.data.gov.uk/id/local-authority/00BF,London Borough of Sutton,21/09/2016,6892598,"1,782.48",Elizabethan Security,22830,"Environment, Housing & Regeneration Directorate",Special,D535
http://statistics.data.gov.uk/id/local-authority/00BF,London Borough of Sutton,20/10/2016,6894743,"1,782.48",Elizabethan Security,22830,"Environment, Housing & Regeneration Directorate",Special,D535
http://statistics.data.gov.uk/id/local-authority/00BF,London Borough of Sutton,20/10/2016,6894743,"1,782.48",Elizabethan Security,22830,"Environment, Housing & Regeneration Directorate",Special,D535
http://statistics.data.gov.uk/id/local-authority/00BF,London Borough of Sutton,17/10/2016,1225606,568.40,Elmwood Nursery,21238,Peoples Services Directorate,Non-Maintained Childrens' Nurseries - 2 Year Olds,G404
http://statistics.data.gov.uk/id/local-authority/00BF,London Borough of Sutton,17/10/2016,1225673,"3,134.10",Elmwood Nursery,21238,Peoples Services Directorate,Non-Maintained Childrens' Nurseries - 3 Year Olds,G405
http://statistics.data.gov.uk/id/local-authority/00BF,London Borough of Sutton,30/09/2016,6893230,"3,400.00",Emma James,28802,Peoples Services Directorate,Contractual Consultant Fees,G430
http://statistics.data.gov.uk/id/local-authority/00BF,London Borough of Sutton,24/10/2016,6894733,"2,550.00",Emma James,28802,Peoples Services Directorate,Contractual Consultant Fees,G430
http://statistics.data.gov.uk/id/local-authority/00BF,London Borough of Sutton,19/09/2016,6892953,595.00,Emorsgate Seeds,26753,"Environment, Housing & Regeneration Directorate",Nature Conservation,G014
http://statistics.data.gov.uk/id/local-authority/00BF,London Borough of Sutton,21/09/2016,6892068,"1,500.00",Energy Auditing Agency Ltd,11519,Resources Directorate,Fees - Computer Software,F384
http://statistics.data.gov.uk/id/local-authority/00BF,London Borough of Sutton,24/08/2016,4992968,690.46,Enviva Paediatric Care/formerlyPNL Nursing Link Ltd (Pnl),28212,Peoples Services Directorate,Provider Contract Payments,F470
http://statistics.data.gov.uk/id/local-authority/00BF,London Borough of Sutton,31/08/2016,4992989,599.61,Enviva Paediatric Care/formerlyPNL Nursing Link Ltd (Pnl),28212,Peoples Services Directorate,Provider Contract Payments,F470
http://statistics.data.gov.uk/id/local-authority/00BF,London Borough of Sutton,06/09/2016,4994471,"1,435.43",Enviva Paediatric Care/formerlyPNL Nursing Link Ltd (Pnl),28212,Peoples Services Directorate,Provider Contract Payments,F470
http://statistics.data.gov.uk/id/local-authority/00BF,London Borough of Sutton,21/09/2016,4994479,981.18,Enviva Paediatric Care/formerlyPNL Nursing Link Ltd (Pnl),28212,Peoples Services Directorate,Provider Contract Payments,F470
http://statistics.data.gov.uk/id/local-authority/00BF,London Borough of Sutton,28/09/2016,4994516,"1,199.22",Enviva Paediatric Care/formerlyPNL Nursing Link Ltd (Pnl),28212,Peoples Services Directorate,Provider Contract Payments,F470
http://statistics.data.gov.uk/id/local-authority/00BF,London Borough of Sutton,14/09/2016,4994517,835.82,Enviva Paediatric Care/formerlyPNL Nursing Link Ltd (Pnl),28212,Peoples Services Directorate,Provider Contract Payments,F470
http://statistics.data.gov.uk/id/local-authority/00BF,London Borough of Sutton,05/10/2016,4997330,799.48,Enviva Paediatric Care/formerlyPNL Nursing Link Ltd (Pnl),28212,Peoples Services Directorate,Provider Contract Payments,F470
http://statistics.data.gov.uk/id/local-authority/00BF,London Borough of Sutton,12/10/2016,4997344,763.14,Enviva Paediatric Care/formerlyPNL Nursing Link Ltd (Pnl),28212,Peoples Services Directorate,Provider Contract Payments,F470
http://statistics.data.gov.uk/id/local-authority/00BF,London Borough of Sutton,03/08/2016,6893539,654.12,Enviva Paediatric Care/formerlyPNL Nursing Link Ltd (Pnl),28212,Peoples Services Directorate,Home Care,G334
http://statistics.data.gov.uk/id/local-authority/00BF,London Borough of Sutton,15/06/2016,6893540,"1,739.78",Enviva Paediatric Care/formerlyPNL Nursing Link Ltd (Pnl),28212,Peoples Services Directorate,Home Care,G334
http://statistics.data.gov.uk/id/local-authority/00BF,London Borough of Sutton,19/09/2016,40004312,908.50,Enviva Paediatric Care/formerlyPNL Nursing Link Ltd (Pnl),28212,Peoples Services Directorate,Provider Contract Payments,F470
http://statistics.data.gov.uk/id/local-authority/00BF,London Borough of Sutton,07/10/2016,4994048,"1,780.00",Eothen Homes Ltd,11539,Peoples Services Directorate,Residential Care - Ext Provider,G310
http://statistics.data.gov.uk/id/local-authority/00BF,London Borough of Sutton,07/10/2016,4994205,"1,780.00",Eothen Homes Ltd,11539,Peoples Services Directorate,Residential Care - Ext Provider,G310
http://statistics.data.gov.uk/id/local-authority/00BF,London Borough of Sutton,07/10/2016,4994243,"1,724.16",Eothen Homes Ltd,11539,Peoples Services Directorate,Residential Care - Ext Provider,G310
http://statistics.data.gov.uk/id/local-authority/00BF,London Borough of Sutton,07/10/2016,4994298,"2,948.00",Eothen Homes Ltd,11539,Peoples Services Directorate,Residential Care - Ext Provider,G310
http://statistics.data.gov.uk/id/local-authority/00BF,London Borough of Sutton,07/10/2016,4994327,"1,724.16",Eothen Homes Ltd,11539,Peoples Services Directorate,Interim Placements - Ext Provider,G317
http://statistics.data.gov.uk/id/local-authority/00BF,London Borough of Sutton,17/10/2016,1225644,569.20,Epsom & St Helier Nhs Trust,11542,Peoples Services Directorate,Non-Maintained Childrens' Nurseries - 2 Year Olds,G404
http://statistics.data.gov.uk/id/local-authority/00BF,London Borough of Sutton,17/10/2016,1225715,"6,565.20",Epsom & St Helier Nhs Trust,11542,Peoples Services Directorate,Non-Maintained Childrens' Nurseries - 3 Year Olds,G405
http://statistics.data.gov.uk/id/local-authority/00BF,London Borough of Sutton,17/10/2016,1225716,"9,238.30",Epsom & St Helier Nhs Trust,11542,Peoples Services Directorate,Non-Maintained Childrens' Nurseries - 3 Year Olds,G405
http://statistics.data.gov.uk/id/local-authority/00BF,London Borough of Sutton,30/09/2016,6893106,570.31,Ernest Doe & Sons Ltd,11372,"Environment, Housing & Regeneration Directorate",Operational Equipment - Environmental Health,F011
http://statistics.data.gov.uk/id/local-authority/00BF,London Borough of Sutton,30/09/2016,6893107,663.89,Ernest Doe & Sons Ltd,11372,"Environment, Housing & Regeneration Directorate",Operational Equipment - Environmental Health,F011
http://statistics.data.gov.uk/id/local-authority/00BF,London Borough of Sutton,21/10/2016,6894482,558.68,Ernest Doe & Sons Ltd,11372,"Environment, Housing & Regeneration Directorate",Operational Equipment - Environmental Health,F011
http://statistics.data.gov.uk/id/local-authority/00BF,London Borough of Sutton,21/10/2016,6894484,588.77,Ernest Doe & Sons Ltd,11372,"Environment, Housing & Regeneration Directorate",Operational Equipment - Environmental Health,F011
http://statistics.data.gov.uk/id/local-authority/00BF,London Borough of Sutton,21/09/2016,40004906,"4,550.00",Ethelbert Specialist Homes Ltd,11560,Peoples Services Directorate,Residential Care-Children,G330
http://statistics.data.gov.uk/id/local-authority/00BF,London Borough of Sutton,17/07/2016,6892734,"1,365.00",Euro Hotels (Thornton Heath) Ltd,10030,Peoples Services Directorate,C.C.A Rent & Utilities,H211
http://statistics.data.gov.uk/id/local-authority/00BF,London Borough of Sutton,31/08/2016,6894121,975.00,Experian Limited,11588,"Environment, Housing & Regeneration Directorate",Subscriptions - General,F450
http://statistics.data.gov.uk/id/local-authority/00BF,London Borough of Sutton,31/08/2015,6894125,975.00,Experian Limited,11588,"Environment, Housing & Regeneration Directorate",Subscriptions - General,F450
http://statistics.data.gov.uk/id/local-authority/00BF,London Borough of Sutton,17/10/2016,6894029,456.00,Explore Learning,28430,Peoples Services Directorate,LAC - Education,F269
http://statistics.data.gov.uk/id/local-authority/00BF,London Borough of Sutton,07/09/2016,6891476,"2,475.67",F M Conway Limited,97060,"Environment, Housing & Regeneration Directorate",Traffic Management - Special Works,D590
http://statistics.data.gov.uk/id/local-authority/00BF,London Borough of Sutton,28/10/2016,6894853,"15,033.23",F M Conway Limited,97060,"Environment, Housing & Regeneration Directorate",Road Markings,D523
http://statistics.data.gov.uk/id/local-authority/00BF,London Borough of Sutton,17/10/2016,1225607,"4,097.32",Fairlands Pre-School,11598,Peoples Services Directorate,Non-Maintained Childrens' Nurseries - 2 Year Olds,G404
http://statistics.data.gov.uk/id/local-authority/00BF,London Borough of Sutton,17/10/2016,1225674,"3,572.40",Fairlands Pre-School,11598,Peoples Services Directorate,Non-Maintained Childrens' Nurseries - 3 Year Olds,G405
http://statistics.data.gov.uk/id/local-authority/00BF,London Borough of Sutton,26/10/2016,1226114,"25,916.67",Family Mosaic Housing,21012,"Environment, Housing & Regeneration Directorate",Supporting People - Mental Health Services,H243
http://statistics.data.gov.uk/id/local-authority/00BF,London Borough of Sutton,26/10/2016,1226115,"18,833.33",Family Mosaic Housing,21012,"Environment, Housing & Regeneration Directorate",Supporting People - Generic Services,H241
http://statistics.data.gov.uk/id/local-authority/00BF,London Borough of Sutton,07/10/2016,4993987,"3,400.00",Family Star Ltd,19653,Peoples Services Directorate,Nursing Care - Ext Provider,G311
http://statistics.data.gov.uk/id/local-authority/00BF,London Borough of Sutton,30/09/2016,6892983,541.00,Fat Badger LTD,99863,Peoples Services Directorate,Training - Course Fees,A520
http://statistics.data.gov.uk/id/local-authority/00BF,London Borough of Sutton,01/09/2016,6893092,592.00,Fierce Neutral Ltd,16535,"Environment, Housing & Regeneration Directorate",Bed and Breakfast Accommodation,G400
http://statistics.data.gov.uk/id/local-authority/00BF,London Borough of Sutton,01/09/2016,6893094,777.00,Fierce Neutral Ltd,16535,"Environment, Housing & Regeneration Directorate",Bed and Breakfast Accommodation,G400
http://statistics.data.gov.uk/id/local-authority/00BF,London Borough of Sutton,01/09/2016,6893097,"1,147.00",Fierce Neutral Ltd,16535,"Environment, Housing & Regeneration Directorate",Bed and Breakfast Accommodation,G400
http://statistics.data.gov.uk/id/local-authority/00BF,London Borough of Sutton,01/09/2016,6893101,630.00,Fierce Neutral Ltd,16535,"Environment, Housing & Regeneration Directorate",Bed and Breakfast Accommodation,G400
http://statistics.data.gov.uk/id/local-authority/00BF,London Borough of Sutton,01/09/2016,6893102,945.00,Fierce Neutral Ltd,16535,"Environment, Housing & Regeneration Directorate",Bed and Breakfast Accommodation,G400
http://statistics.data.gov.uk/id/local-authority/00BF,London Borough of Sutton,01/09/2016,6893103,693.00,Fierce Neutral Ltd,16535,"Environment, Housing & Regeneration Directorate",Bed and Breakfast Accommodation,G400
http://statistics.data.gov.uk/id/local-authority/00BF,London Borough of Sutton,03/06/2016,6893322,925.00,Fierce Neutral Ltd,16535,"Environment, Housing & Regeneration Directorate",Bed and Breakfast Accommodation,G400
http://statistics.data.gov.uk/id/local-authority/00BF,London Borough of Sutton,01/08/2016,6893324,"1,860.00",Fierce Neutral Ltd,16535,"Environment, Housing & Regeneration Directorate",Bed and Breakfast Accommodation,G400
http://statistics.data.gov.uk/id/local-authority/00BF,London Borough of Sutton,01/12/2015,6893327,595.00,Fierce Neutral Ltd,16535,"Environment, Housing & Regeneration Directorate",Bed and Breakfast Accommodation,G400
http://statistics.data.gov.uk/id/local-authority/00BF,London Borough of Sutton,01/10/2016,6893429,"1,350.00",Fierce Neutral Ltd,16535,"Environment, Housing & Regeneration Directorate",Bed and Breakfast Accommodation,G400
http://statistics.data.gov.uk/id/local-authority/00BF,London Borough of Sutton,01/10/2016,6893430,"1,350.00",Fierce Neutral Ltd,16535,"Environment, Housing & Regeneration Directorate",Bed and Breakfast Accommodation,G400
http://statistics.data.gov.uk/id/local-authority/00BF,London Borough of Sutton,01/10/2016,6893431,"1,110.00",Fierce Neutral Ltd,16535,"Environment, Housing & Regeneration Directorate",Bed and Breakfast Accommodation,G400
http://statistics.data.gov.uk/id/local-authority/00BF,London Borough of Sutton,01/10/2016,6893433,"1,350.00",Fierce Neutral Ltd,16535,"Environment, Housing & Regeneration Directorate",Bed and Breakfast Accommodation,G400
http://statistics.data.gov.uk/id/local-authority/00BF,London Borough of Sutton,01/10/2016,6893434,"1,110.00",Fierce Neutral Ltd,16535,"Environment, Housing & Regeneration Directorate",Bed and Breakfast Accommodation,G400
http://statistics.data.gov.uk/id/local-authority/00BF,London Borough of Sutton,01/10/2016,6893435,"1,110.00",Fierce Neutral Ltd,16535,"Environment, Housing & Regeneration Directorate",Bed and Breakfast Accommodation,G400
http://statistics.data.gov.uk/id/local-authority/00BF,London Borough of Sutton,01/10/2016,6893436,"1,350.00",Fierce Neutral Ltd,16535,"Environment, Housing & Regeneration Directorate",Bed and Breakfast Accommodation,G400
http://statistics.data.gov.uk/id/local-authority/00BF,London Borough of Sutton,01/10/2016,6893437,"1,110.00",Fierce Neutral Ltd,16535,"Environment, Housing & Regeneration Directorate",Bed and Breakfast Accommodation,G400
http://statistics.data.gov.uk/id/local-authority/00BF,London Borough of Sutton,01/10/2016,6893438,"1,350.00",Fierce Neutral Ltd,16535,"Environment, Housing & Regeneration Directorate",Bed and Breakfast Accommodation,G400
http://statistics.data.gov.uk/id/local-authority/00BF,London Borough of Sutton,01/10/2016,6893439,"1,350.00",Fierce Neutral Ltd,16535,"Environment, Housing & Regeneration Directorate",Bed and Breakfast Accommodation,G400
http://statistics.data.gov.uk/id/local-authority/00BF,London Borough of Sutton,01/10/2016,6893440,"1,110.00",Fierce Neutral Ltd,16535,"Environment, Housing & Regeneration Directorate",Bed and Breakfast Accommodation,G400
http://statistics.data.gov.uk/id/local-authority/00BF,London Borough of Sutton,01/10/2016,6893441,"1,350.00",Fierce Neutral Ltd,16535,"Environment, Housing & Regeneration Directorate",Bed and Breakfast Accommodation,G400
http://statistics.data.gov.uk/id/local-authority/00BF,London Borough of Sutton,01/10/2016,6893442,"1,110.00",Fierce Neutral Ltd,16535,"Environment, Housing & Regeneration Directorate",Bed and Breakfast Accommodation,G400
http://statistics.data.gov.uk/id/local-authority/00BF,London Borough of Sutton,01/10/2016,6893444,"1,110.00",Fierce Neutral Ltd,16535,"Environment, Housing & Regeneration Directorate",Bed and Breakfast Accommodation,G400
http://statistics.data.gov.uk/id/local-authority/00BF,London Borough of Sutton,01/10/2016,6893446,"1,350.00",Fierce Neutral Ltd,16535,"Environment, Housing & Regeneration Directorate",Bed and Breakfast Accommodation,G400
http://statistics.data.gov.uk/id/local-authority/00BF,London Borough of Sutton,01/10/2016,6893447,"1,350.00",Fierce Neutral Ltd,16535,"Environment, Housing & Regeneration Directorate",Bed and Breakfast Accommodation,G400
http://statistics.data.gov.uk/id/local-authority/00BF,London Borough of Sutton,01/10/2016,6893448,999.00,Fierce Neutral Ltd,16535,"Environment, Housing & Regeneration Directorate",Bed and Breakfast Accommodation,G400
http://statistics.data.gov.uk/id/local-authority/00BF,London Borough of Sutton,01/10/2016,6893450,990.00,Fierce Neutral Ltd,16535,"Environment, Housing & Regeneration Directorate",Bed and Breakfast Accommodation,G400
http://statistics.data.gov.uk/id/local-authority/00BF,London Borough of Sutton,01/10/2016,6893451,"1,350.00",Fierce Neutral Ltd,16535,"Environment, Housing & Regeneration Directorate",Bed and Breakfast Accommodation,G400
http://statistics.data.gov.uk/id/local-authority/00BF,London Borough of Sutton,01/10/2016,6893452,"1,110.00",Fierce Neutral Ltd,16535,"Environment, Housing & Regeneration Directorate",Bed and Breakfast Accommodation,G400
http://statistics.data.gov.uk/id/local-authority/00BF,London Borough of Sutton,01/10/2016,6893453,"1,350.00",Fierce Neutral Ltd,16535,"Environment, Housing & Regeneration Directorate",Bed and Breakfast Accommodation,G400
http://statistics.data.gov.uk/id/local-authority/00BF,London Borough of Sutton,01/10/2016,6893454,"1,350.00",Fierce Neutral Ltd,16535,"Environment, Housing & Regeneration Directorate",Bed and Breakfast Accommodation,G400
http://statistics.data.gov.uk/id/local-authority/00BF,London Borough of Sutton,01/10/2016,6893455,840.00,Fierce Neutral Ltd,16535,"Environment, Housing & Regeneration Directorate",Bed and Breakfast Accommodation,G400
http://statistics.data.gov.uk/id/local-authority/00BF,London Borough of Sutton,01/10/2016,6893457,666.00,Fierce Neutral Ltd,16535,"Environment, Housing & Regeneration Directorate",Bed and Breakfast Accommodation,G400
http://statistics.data.gov.uk/id/local-authority/00BF,London Borough of Sutton,01/10/2016,6893459,858.00,Fierce Neutral Ltd,16535,"Environment, Housing & Regeneration Directorate",Bed and Breakfast Accommodation,G400
http://statistics.data.gov.uk/id/local-authority/00BF,London Borough of Sutton,01/10/2016,6893461,"1,110.00",Fierce Neutral Ltd,16535,"Environment, Housing & Regeneration Directorate",Bed and Breakfast Accommodation,G400
http://statistics.data.gov.uk/id/local-authority/00BF,London Borough of Sutton,03/10/2016,6894371,"15,568.18",Financial Data Management PLC,28773,Resources Directorate,Printing - General,F215
http://statistics.data.gov.uk/id/local-authority/00BF,London Borough of Sutton,07/10/2016,4993999,"3,438.00",Fircroft Homes,11660,Peoples Services Directorate,Residential Care - Ext Provider,G310
http://statistics.data.gov.uk/id/local-authority/00BF,London Borough of Sutton,07/10/2016,4994176,"2,600.00",Firtree House Nursing Home,11653,Peoples Services Directorate,Nursing Care - Ext Provider,G311
http://statistics.data.gov.uk/id/local-authority/00BF,London Borough of Sutton,01/09/2016,4993744,"1,184.79",Fitzroy,11657,Peoples Services Directorate,Day Care,G337
http://statistics.data.gov.uk/id/local-authority/00BF,London Borough of Sutton,07/10/2016,4994021,"3,758.08",Fitzroy,11657,Peoples Services Directorate,Residential Care - Ext Provider,G310
http://statistics.data.gov.uk/id/local-authority/00BF,London Borough of Sutton,07/10/2016,6893471,"1,091.00",Foster Refrigerator (Uk) Ltd,11720,Peoples Services Directorate,Other Equipment - Purchase,F015
http://statistics.data.gov.uk/id/local-authority/00BF,London Borough of Sutton,13/10/2016,6893915,"1,091.00",Foster Refrigerator (Uk) Ltd,11720,Peoples Services Directorate,Other Equipment - Purchase,F015
http://statistics.data.gov.uk/id/local-authority/00BF,London Borough of Sutton,17/10/2016,6894115,"1,007.00",Foster Refrigerator (Uk) Ltd,11720,Peoples Services Directorate,Other Equipment - Purchase,F015
http://statistics.data.gov.uk/id/local-authority/00BF,London Borough of Sutton,03/10/2016,40003742,"3,128.57",Fostering For You,24993,Peoples Services Directorate,Foster Parents,G326
http://statistics.data.gov.uk/id/local-authority/00BF,London Borough of Sutton,03/10/2016,40003753,"3,128.57",Fostering For You,24993,Peoples Services Directorate,Foster Parents,G326
http://statistics.data.gov.uk/id/local-authority/00BF,London Borough of Sutton,01/04/2016,6892612,978.39,Fostering Network,11730,Peoples Services Directorate,Personal Requisites,F106
http://statistics.data.gov.uk/id/local-authority/00BF,London Borough of Sutton,01/04/2016,6892612,703.00,Fostering Network,11730,Peoples Services Directorate,Personal Requisites,F106
http://statistics.data.gov.uk/id/local-authority/00BF,London Borough of Sutton,21/04/2016,5014749,"13,875.00",Foxholes Nursing Home Ltd,28704,Peoples Services Directorate,Nursing Care - Ext Provider,G311
http://statistics.data.gov.uk/id/local-authority/00BF,London Borough of Sutton,21/04/2016,5014749,"-1,758.40",Foxholes Nursing Home Ltd,28704,Peoples Services Directorate,Nursing Care - 3rd party top up payment,G360
http://statistics.data.gov.uk/id/local-authority/00BF,London Borough of Sutton,09/09/2016,5014754,"1,017.15",Foxley Lodge,16555,Peoples Services Directorate,Residential Care - Ext Provider,G310
http://statistics.data.gov.uk/id/local-authority/00BF,London Borough of Sutton,07/10/2016,4994201,"2,928.00",Friends Of The Elderly,11766,Peoples Services Directorate,Residential Care - Ext Provider,G310
http://statistics.data.gov.uk/id/local-authority/00BF,London Borough of Sutton,07/10/2016,4994290,"1,660.00",Friends Of The Elderly,11766,Peoples Services Directorate,Residential Care - Ext Provider,G310
http://statistics.data.gov.uk/id/local-authority/00BF,London Borough of Sutton,07/10/2016,4994312,"1,674.20",Friends Of The Elderly,11766,Peoples Services Directorate,Residential Care - Ext Provider,G310
http://statistics.data.gov.uk/id/local-authority/00BF,London Borough of Sutton,07/10/2016,4994345,"1,692.00",Friends Of The Elderly,11766,Peoples Services Directorate,Residential Care - Ext Provider,G310
http://statistics.data.gov.uk/id/local-authority/00BF,London Borough of Sutton,07/10/2016,4994385,"1,840.00",Friends Of The Elderly,11766,Peoples Services Directorate,Residential Care - Ext Provider,G310
http://statistics.data.gov.uk/id/local-authority/00BF,London Borough of Sutton,07/10/2016,4994417,"1,692.00",Friends Of The Elderly,11766,Peoples Services Directorate,Residential Care - Ext Provider,G310
http://statistics.data.gov.uk/id/local-authority/00BF,London Borough of Sutton,03/10/2016,40003344,"5,723.20",Frontier Support Services,28792,Peoples Services Directorate,Supported Living - Ext Provider,G306
http://statistics.data.gov.uk/id/local-authority/00BF,London Borough of Sutton,31/10/2016,6894647,"39,058.04",G Burley & Sons Ltd,10701,"Environment, Housing & Regeneration Directorate",Grass Verges - Maintenance,D561
http://statistics.data.gov.uk/id/local-authority/00BF,London Borough of Sutton,07/10/2016,4994074,"2,294.12",Gable Lodge,11789,Peoples Services Directorate,Nursing Care - Ext Provider,G311
http://statistics.data.gov.uk/id/local-authority/00BF,London Borough of Sutton,07/10/2016,4994218,"2,200.00",Gable Lodge,11789,Peoples Services Directorate,Interim Placements - Ext Provider,G317
http://statistics.data.gov.uk/id/local-authority/00BF,London Borough of Sutton,07/10/2016,4994392,"3,000.00",Galleon Care Homes Ltd,23693,Peoples Services Directorate,Nursing Care - Ext Provider,G311
http://statistics.data.gov.uk/id/local-authority/00BF,London Borough of Sutton,07/10/2016,4994179,"2,400.00",Gate Lodge Care Home,16164,Peoples Services Directorate,Interim Placements - Ext Provider,G317
http://statistics.data.gov.uk/id/local-authority/00BF,London Borough of Sutton,07/10/2016,4994361,"1,744.00",Gate Lodge Care Home,16164,Peoples Services Directorate,Residential Care - Ext Provider,G310
http://statistics.data.gov.uk/id/local-authority/00BF,London Borough of Sutton,18/09/2016,5014738,-550.00,GB Property Services,97013,Peoples Services Directorate,Repairs to Administrative Equipment,F030
http://statistics.data.gov.uk/id/local-authority/00BF,London Borough of Sutton,18/09/2016,6891878,550.00,GB Property Services,97013,Peoples Services Directorate,Repairs to Administrative Equipment,F030
http://statistics.data.gov.uk/id/local-authority/00BF,London Borough of Sutton,12/09/2016,6892584,"2,540.00",GB Property Services,97013,Resources Directorate,Special,D535
http://statistics.data.gov.uk/id/local-authority/00BF,London Borough of Sutton,18/07/2016,4993743,661.07,Geneva Road Ltd,23449,Peoples Services Directorate,Day Care,G337
http://statistics.data.gov.uk/id/local-authority/00BF,London Borough of Sutton,17/10/2016,1225609,"1,706.60",Glaisdale Day Nursery,21887,Peoples Services Directorate,Non-Maintained Childrens' Nurseries - 2 Year Olds,G404
http://statistics.data.gov.uk/id/local-authority/00BF,London Borough of Sutton,17/10/2016,1225677,"9,362.40",Glaisdale Day Nursery,21887,Peoples Services Directorate,Non-Maintained Childrens' Nurseries - 3 Year Olds,G405
http://statistics.data.gov.uk/id/local-authority/00BF,London Borough of Sutton,28/04/2016,6894699,"3,500.00",Global MSC Security Ltd,24964,"Environment, Housing & Regeneration Directorate",IT Equipment - Repair and Maintenance,F382
http://statistics.data.gov.uk/id/local-authority/00BF,London Borough of Sutton,29/07/2016,6892073,650.00,Go Plant Environmental,11867,"Environment, Housing & Regeneration Directorate",Centralised Transport Hire,E068
http://statistics.data.gov.uk/id/local-authority/00BF,London Borough of Sutton,29/07/2016,6892074,650.00,Go Plant Environmental,11867,"Environment, Housing & Regeneration Directorate",Centralised Transport Hire,E068
http://statistics.data.gov.uk/id/local-authority/00BF,London Borough of Sutton,29/07/2016,6892076,447.01,Go Plant Environmental,11867,"Environment, Housing & Regeneration Directorate",Centralised Transport Hire,E068
http://statistics.data.gov.uk/id/local-authority/00BF,London Borough of Sutton,16/09/2016,6892352,585.00,Go Plant Environmental,11867,"Environment, Housing & Regeneration Directorate",Centralised Transport Hire,E068
http://statistics.data.gov.uk/id/local-authority/00BF,London Borough of Sutton,16/09/2016,6892355,650.00,Go Plant Environmental,11867,"Environment, Housing & Regeneration Directorate",Centralised Transport Hire,E068
http://statistics.data.gov.uk/id/local-authority/00BF,London Borough of Sutton,16/09/2016,6892356,650.00,Go Plant Environmental,11867,"Environment, Housing & Regeneration Directorate",Centralised Transport Hire,E068
http://statistics.data.gov.uk/id/local-authority/00BF,London Borough of Sutton,16/09/2016,6892359,550.00,Go Plant Environmental,11867,"Environment, Housing & Regeneration Directorate",Centralised Transport Hire,E068
http://statistics.data.gov.uk/id/local-authority/00BF,London Borough of Sutton,23/09/2016,6892889,650.00,Go Plant Environmental,11867,"Environment, Housing & Regeneration Directorate",Centralised Transport Hire,E068
http://statistics.data.gov.uk/id/local-authority/00BF,London Borough of Sutton,23/09/2016,6892890,650.00,Go Plant Environmental,11867,"Environment, Housing & Regeneration Directorate",Centralised Transport Hire,E068
http://statistics.data.gov.uk/id/local-authority/00BF,London Borough of Sutton,23/09/2016,6892892,585.00,Go Plant Environmental,11867,"Environment, Housing & Regeneration Directorate",Centralised Transport Hire,E068
http://statistics.data.gov.uk/id/local-authority/00BF,London Borough of Sutton,23/09/2016,6892894,550.00,Go Plant Environmental,11867,"Environment, Housing & Regeneration Directorate",Centralised Transport Hire,E068
http://statistics.data.gov.uk/id/local-authority/00BF,London Borough of Sutton,30/09/2016,6893757,650.00,Go Plant Environmental,11867,"Environment, Housing & Regeneration Directorate",Centralised Transport Hire,E068
http://statistics.data.gov.uk/id/local-authority/00BF,London Borough of Sutton,30/09/2016,6893758,550.00,Go Plant Environmental,11867,"Environment, Housing & Regeneration Directorate",Centralised Transport Hire,E068
http://statistics.data.gov.uk/id/local-authority/00BF,London Borough of Sutton,30/09/2016,6893760,585.00,Go Plant Environmental,11867,"Environment, Housing & Regeneration Directorate",Centralised Transport Hire,E068
http://statistics.data.gov.uk/id/local-authority/00BF,London Borough of Sutton,30/09/2016,6893763,650.00,Go Plant Environmental,11867,"Environment, Housing & Regeneration Directorate",Centralised Transport Hire,E068
http://statistics.data.gov.uk/id/local-authority/00BF,London Borough of Sutton,07/10/2016,6894206,550.00,Go Plant Environmental,11867,"Environment, Housing & Regeneration Directorate",Centralised Transport Hire,E068
http://statistics.data.gov.uk/id/local-authority/00BF,London Borough of Sutton,07/10/2016,6894207,650.00,Go Plant Environmental,11867,"Environment, Housing & Regeneration Directorate",Centralised Transport Hire,E068
http://statistics.data.gov.uk/id/local-authority/00BF,London Borough of Sutton,07/10/2016,6894208,650.00,Go Plant Environmental,11867,"Environment, Housing & Regeneration Directorate",Centralised Transport Hire,E068
http://statistics.data.gov.uk/id/local-authority/00BF,London Borough of Sutton,07/10/2016,6894765,585.00,Go Plant Environmental,11867,"Environment, Housing & Regeneration Directorate",Centralised Transport Hire,E068
http://statistics.data.gov.uk/id/local-authority/00BF,London Borough of Sutton,21/10/2016,6894857,650.00,Go Plant Environmental,11867,"Environment, Housing & Regeneration Directorate",Centralised Transport Hire,E068
http://statistics.data.gov.uk/id/local-authority/00BF,London Borough of Sutton,21/10/2016,6894858,650.00,Go Plant Environmental,11867,"Environment, Housing & Regeneration Directorate",Centralised Transport Hire,E068
http://statistics.data.gov.uk/id/local-authority/00BF,London Borough of Sutton,21/10/2016,6894860,585.00,Go Plant Environmental,11867,"Environment, Housing & Regeneration Directorate",Centralised Transport Hire,E068
http://statistics.data.gov.uk/id/local-authority/00BF,London Borough of Sutton,21/10/2016,6894865,550.00,Go Plant Environmental,11867,"Environment, Housing & Regeneration Directorate",Centralised Transport Hire,E068
http://statistics.data.gov.uk/id/local-authority/00BF,London Borough of Sutton,14/10/2016,6894869,550.00,Go Plant Environmental,11867,"Environment, Housing & Regeneration Directorate",Centralised Transport Hire,E068
http://statistics.data.gov.uk/id/local-authority/00BF,London Borough of Sutton,14/10/2016,6894871,585.00,Go Plant Environmental,11867,"Environment, Housing & Regeneration Directorate",Centralised Transport Hire,E068
http://statistics.data.gov.uk/id/local-authority/00BF,London Borough of Sutton,14/10/2016,6894873,650.00,Go Plant Environmental,11867,"Environment, Housing & Regeneration Directorate",Centralised Transport Hire,E068
http://statistics.data.gov.uk/id/local-authority/00BF,London Borough of Sutton,14/10/2016,6894874,650.00,Go Plant Environmental,11867,"Environment, Housing & Regeneration Directorate",Centralised Transport Hire,E068
http://statistics.data.gov.uk/id/local-authority/00BF,London Borough of Sutton,07/10/2016,4994101,"1,882.40",Grange Cottage Ltd,11892,Peoples Services Directorate,Residential Care - Ext Provider,G310
http://statistics.data.gov.uk/id/local-authority/00BF,London Borough of Sutton,07/10/2016,4994185,"2,600.00",Grange Cottage Ltd,11892,Peoples Services Directorate,Residential Care - Ext Provider,G310
http://statistics.data.gov.uk/id/local-authority/00BF,London Borough of Sutton,07/10/2016,4994380,"3,238.40",Grange Cottage Ltd,11892,Peoples Services Directorate,Residential Care - Ext Provider,G310
http://statistics.data.gov.uk/id/local-authority/00BF,London Borough of Sutton,07/10/2016,4994424,"1,882.40",Grange Cottage Ltd,11892,Peoples Services Directorate,Residential Care - Ext Provider,G310
http://statistics.data.gov.uk/id/local-authority/00BF,London Borough of Sutton,28/09/2016,6893027,"10,500.00",Grant Thornton Uk LLP,27828,Resources Directorate,External Audit Fees,F291
http://statistics.data.gov.uk/id/local-authority/00BF,London Borough of Sutton,28/09/2016,6894198,"23,572.50",Grant Thornton Uk LLP,27828,Resources Directorate,External Audit Fees,F291
http://statistics.data.gov.uk/id/local-authority/00BF,London Borough of Sutton,07/10/2016,4994107,"1,712.32",Grasmere Rest Home,11893,Peoples Services Directorate,Residential Care - Ext Provider,G310
http://statistics.data.gov.uk/id/local-authority/00BF,London Borough of Sutton,07/10/2016,4994115,"1,801.36",Grasmere Rest Home,11893,Peoples Services Directorate,Residential Care - Ext Provider,G310
http://statistics.data.gov.uk/id/local-authority/00BF,London Borough of Sutton,07/10/2016,4994138,"2,314.28",Grasmere Rest Home,11893,Peoples Services Directorate,Residential Care - Ext Provider,G310
http://statistics.data.gov.uk/id/local-authority/00BF,London Borough of Sutton,07/10/2016,4994150,"2,700.00",Grasmere Rest Home,11893,Peoples Services Directorate,Residential Care - Ext Provider,G310
http://statistics.data.gov.uk/id/local-authority/00BF,London Borough of Sutton,07/10/2016,4994260,"2,274.96",Grasmere Rest Home,11893,Peoples Services Directorate,Residential Care - Ext Provider,G310
http://statistics.data.gov.uk/id/local-authority/00BF,London Borough of Sutton,07/10/2016,4994264,"1,680.16",Grasmere Rest Home,11893,Peoples Services Directorate,Residential Care - Ext Provider,G310
http://statistics.data.gov.uk/id/local-authority/00BF,London Borough of Sutton,07/10/2016,4994283,"1,801.36",Grasmere Rest Home,11893,Peoples Services Directorate,Residential Care - Ext Provider,G310
http://statistics.data.gov.uk/id/local-authority/00BF,London Borough of Sutton,07/10/2016,4994310,"2,408.56",Grasmere Rest Home,11893,Peoples Services Directorate,Interim Placements - Ext Provider,G317
http://statistics.data.gov.uk/id/local-authority/00BF,London Borough of Sutton,07/10/2016,4994333,"1,764.92",Grasmere Rest Home,11893,Peoples Services Directorate,Residential Care - Ext Provider,G310
http://statistics.data.gov.uk/id/local-authority/00BF,London Borough of Sutton,07/10/2016,4994352,"1,712.32",Grasmere Rest Home,11893,Peoples Services Directorate,Residential Care - Ext Provider,G310
http://statistics.data.gov.uk/id/local-authority/00BF,London Borough of Sutton,23/09/2016,6892657,"2,108.60",Grassroots Trading Co Ltd,11904,"Environment, Housing & Regeneration Directorate",Materials - General,F100
http://statistics.data.gov.uk/id/local-authority/00BF,London Borough of Sutton,29/09/2016,6893677,544.50,Grassroots Trading Co Ltd,11904,"Environment, Housing & Regeneration Directorate",Operational Equipment - Environmental Health,F011
http://statistics.data.gov.uk/id/local-authority/00BF,London Borough of Sutton,29/09/2016,6892732,875.00,Greater London Authority,11908,HRA Directorate,Other Services,F340
http://statistics.data.gov.uk/id/local-authority/00BF,London Borough of Sutton,22/09/2016,6893025,588.40,Green Machines Sweepers Ltd,26278,"Environment, Housing & Regeneration Directorate",Materials - General,F100
http://statistics.data.gov.uk/id/local-authority/00BF,London Borough of Sutton,03/10/2016,6893541,"2,000.00",Green Machines Sweepers Ltd,26278,"Environment, Housing & Regeneration Directorate",Centralised Transport Hire,E068
http://statistics.data.gov.uk/id/local-authority/00BF,London Borough of Sutton,03/10/2016,6893542,"2,000.00",Green Machines Sweepers Ltd,26278,"Environment, Housing & Regeneration Directorate",Centralised Transport Hire,E068
http://statistics.data.gov.uk/id/local-authority/00BF,London Borough of Sutton,21/09/2016,1226037,979.60,Green Wrythe Primary School,11902,Peoples Services Directorate,Top-up Funding,G064
http://statistics.data.gov.uk/id/local-authority/00BF,London Borough of Sutton,20/09/2016,6893978,"8,500.00",Green Wrythe Primary School,11902,Peoples Services Directorate,Building Works -Main Contractor,Y350
http://statistics.data.gov.uk/id/local-authority/00BF,London Borough of Sutton,07/10/2016,4993996,"5,616.08",Greenfield Care Homes Limited,22712,Peoples Services Directorate,Residential Care - Ext Provider,G310
http://statistics.data.gov.uk/id/local-authority/00BF,London Borough of Sutton,12/09/2016,6893563,"2,938.33",Guys and St Thomas NHS Foundation Trust,25430,Peoples Services Directorate,Provider Contract Payments,F470
http://statistics.data.gov.uk/id/local-authority/00BF,London Borough of Sutton,11/10/2016,6894089,"2,938.33",Guys and St Thomas NHS Foundation Trust,25430,Peoples Services Directorate,Provider Contract Payments,F470
http://statistics.data.gov.uk/id/local-authority/00BF,London Borough of Sutton,01/10/2016,6894108,-463.44,Guys and St Thomas NHS Foundation Trust,25430,Peoples Services Directorate,Provider Contract Payments,F470
http://statistics.data.gov.uk/id/local-authority/00BF,London Borough of Sutton,20/09/2016,6893968,"5,000.00",Hackbridge Primary School,12000,Peoples Services Directorate,Building Works -Main Contractor,Y350
http://statistics.data.gov.uk/id/local-authority/00BF,London Borough of Sutton,11/10/2016,6894806,"25,000.00",Hackbridge Primary School,12000,Peoples Services Directorate,Building Works -Main Contractor,Y350
http://statistics.data.gov.uk/id/local-authority/00BF,London Borough of Sutton,12/10/2016,6894307,"21,207.20",Hall Fuels Ltd,11982,"Environment, Housing & Regeneration Directorate",Fuel Etc,E030
http://statistics.data.gov.uk/id/local-authority/00BF,London Borough of Sutton,03/10/2016,1225438,"26,175.00",Hamilton Lodge (Education) Ltd,11978,Peoples Services Directorate,NMSS Payments,G061
http://statistics.data.gov.uk/id/local-authority/00BF,London Borough of Sutton,26/09/2016,6893854,450.00,Haptic Architects,25995,Peoples Services Directorate,External Fees  - Other,Y130
http://statistics.data.gov.uk/id/local-authority/00BF,London Borough of Sutton,18/10/2016,6894223,600.00,Havant & East Hants Mind,25776,Peoples Services Directorate,Provider Contract Payments,F470
